Workbook

Sheet Uppgifter
B2: Årsarebtstid - Lärare
B4: År | C4: 2026 | D4: 2027 | L4: Information
B6: Namn
L7: I fyllnad av arbetstid
B8: Lunch | C8: 00:30:00 | L8: Denna årsarbetstidsmallen är uppdelad i månadsflikar, och arbetad tid anges dag för dag.
B9: (normalt)
L10: Detta jämfört med den tidigare mallen som var uppdelad i veckor där hela läsåret syntes i en och samma bild och du fyllde i arbetad tid totalt per vecka.
B11: Sysselsättningsgrad; | E11: 1
B12: Årsarbetstid; | E12: 1360
B13: Årsarbetstid enligt SSG; | E13: =E12*E11 -> 1360
L14: Avstämningsperioder
B15: Kopiera arbetstid och lunchtid till rapporten för höstterminen | G15: =C4 -> 2026 | L15: I den gröna fliken Avstämningsperioder finner du översikten hur perioderna ser ut samt avstämningen för respektive period. Dom är uppdelade så det är 2 perioder per termin. Dom är även fördelade så att antalet aktiva veckor i respektive period är så lika som möjligt.
B17: Kopiera arbetstid och lunchtid till rapporten för vårterminen | G17: =D4 -> 2027
B20: 1. Fyll i namn, normal lunchtid (minst 30 min.)
B21: 2. Fyll i sysselsättningsgrad ovan i den gråa rutan. | L21: Förtroendetid
B22: 3. Fyll i "Årsarbetsschema", Blåa fliken. Går bra att fylla i termin för termin. | L22: I respektive månadsflik finns det en kolumn för förtroendetid. Den är tillagd för din egen skull, om du vill kunna följa den tid du gör. Du fyller i tid på respektive dag och den summeras per månad i respektive blad. Du kan via den gula fliken Arbetat få en sammanställning och översikt över dessa timmar.
C23: Skriv personnummer och arbetsställe längst upp.
C24: Om man ej arbetar heltid, justera snitt arbetstiden per dag i cellen Arbetstid/dag som
C25: finns under kalenderöversitken för höstterminen. Ex) arbetar 50% = 7h * 0,5 = 3,5 = 3:30 h:min
B26: 4. Klicka på knappen "Kopiera" ovan. Det finns en knapp för höstterminen och en för vårteminen.
B28: Kom ihåg | C28: Fyll inte i Övertid, Restid vid tjänsteresa.
C29: Samt att skilja på arbetstiden och förtoendetiden.

Sheet Instruktioner
B1: =PROPER(TEXT(B4,"MMMM ÅÅÅÅ")) -> Augusti 2026 | G1: =IF(Uppgifter!$C$6="","",Uppgifter!$C$6) -> 
N2: Dagsumma | O2: Vdag
B3: Datum | C3: Kod | D3: In | E3: Ut | F3: Lunch | G3: Planerat | H3: Ledighet | I3: Arbetadtid | J3: Förtroendetid | L3: Anteckningar
B4: =DATEVALUE(Uppgifter!C4 & "-08-01") -> 2026-08-01 | I4: =IF(N4<0,-N4,N4) -> 0 | J4: + | N4: =IF(E4>0,E4-D4-F4-H4,IF(C4="",0,IF(C4="F",0,Årsarbetsschema!$D$40))) -> 0 | O4: 6 | P4: Sj
B5: =B4+1 -> 2026-08-02 | I5: 0 | J5: + | N5: =IF(E5>0,E5-D5-F5-H5,IF(C5="",0,IF(C5="F",0,Årsarbetsschema!$D$40))) -> 0 | O5: 6 | P5: Tj
B6: =B5+1 -> 2026-08-03 | I6: 0 | J6: + | N6: =IF(E6>0,E6-D6-F6-H6,IF(C6="",0,IF(C6="F",0,Årsarbetsschema!$D$40))) -> 0 | O6: 6 | P6: VB
B7: 2026-08-04 | I7: 0 | J7: + | N7: =IF(E7>0,E7-D7-F7-H7,IF(C7="",0,IF(C7="F",0,Årsarbetsschema!$D$40))) -> 0 | O7: 6 | P7: FL
B8: 2026-08-05 | I8: 0 | J8: + | N8: =IF(E8>0,E8-D8-F8-H8,IF(C8="",0,IF(C8="F",0,Årsarbetsschema!$D$40))) -> 0 | O8: 6
B9: 2026-08-06 | I9: 0 | J9: + | N9: =IF(E9>0,E9-D9-F9-H9,IF(C9="",0,IF(C9="F",0,Årsarbetsschema!$D$40))) -> 0 | O9: 6
B10: 2026-08-07 | I10: 0 | J10: + | N10: =IF(E10>0,E10-D10-F10-H10,IF(C10="",0,IF(C10="F",0,Årsarbetsschema!$D$40))) -> 0 | O10: 7
B11: 2026-08-08 | I11: 0 | J11: + | N11: =IF(E11>0,E11-D11-F11-H11,IF(C11="",0,IF(C11="F",0,Årsarbetsschema!$D$40))) -> 0 | O11: 6
B12: 2026-08-09 | D12: 07:00:00 | E12: 15:30:00 | F12: 00:30:00 | G12: 08:00:00 | I12: 0.3333333333 | J12: + | K12: 0.0625 | N12: =IF(E12>0,E12-D12-F12-H12,IF(C12="",0,IF(C12="F",0,Årsarbetsschema!$D$40))) -> 0.3333333333 | O12: -1
B13: 2026-08-10 | D13: 07:00:00 | E13: 15:30:00 | F13: 00:30:00 | G13: 08:00:00 | I13: 0.3333333333 | J13: + | N13: =IF(E13>0,E13-D13-F13-H13,IF(C13="",0,IF(C13="F",0,Årsarbetsschema!$D$40))) -> 0.3333333333 | O13: -1
B14: 2026-08-11 | C14: VB | F14: 00:30:00 | G14: 07:00:00 | I14: 0.2916666667 | J14: + | N14: =IF(E14>0,E14-D14-F14-H14,IF(C14="",0,IF(C14="F",0,Årsarbetsschema!$D$40))) -> 0.2916666667 | O14: -1
B15: 2026-08-12 | D15: 07:00:00 | E15: 14:30:00 | F15: 00:30:00 | G15: 07:00:00 | I15: 0.2916666667 | J15: + | N15: =IF(E15>0,E15-D15-F15-H15,IF(C15="",0,IF(C15="F",0,Årsarbetsschema!$D$40))) -> 0.2916666667 | O15: -1
B16: 2026-08-13 | I16: 0 | J16: + | N16: =IF(E16>0,E16-D16-F16-H16,IF(C16="",0,IF(C16="F",0,Årsarbetsschema!$D$40))) -> 0 | O16: 6
B17: 2026-08-14 | I17: 0 | J17: + | N17: =IF(E17>0,E17-D17-F17-H17,IF(C17="",0,IF(C17="F",0,Årsarbetsschema!$D$40))) -> 0 | O17: 7
B18: 2026-08-15 | D18: 07:00:00 | E18: 14:30:00 | F18: 00:30:00 | G18: 07:00:00 | I18: 0.2916666667 | J18: + | N18: =IF(E18>0,E18-D18-F18-H18,IF(C18="",0,IF(C18="F",0,Årsarbetsschema!$D$40))) -> 0.2916666667 | O18: -1
B19: 2026-08-16 | D19: 07:00:00 | E19: 14:30:00 | F19: 00:30:00 | G19: 07:00:00 | I19: 0.2916666667 | J19: + | N19: =IF(E19>0,E19-D19-F19-H19,IF(C19="",0,IF(C19="F",0,Årsarbetsschema!$D$40))) -> 0.2916666667 | O19: 2
B20: 2026-08-17 | D20: 07:00:00 | E20: 14:30:00 | F20: 00:30:00 | G20: 07:00:00 | I20: 0.2916666667 | J20: + | N20: =IF(E20>0,E20-D20-F20-H20,IF(C20="",0,IF(C20="F",0,Årsarbetsschema!$D$40))) -> 0.2916666667 | O20: 3
B21: 2026-08-18 | D21: 07:00:00 | E21: 14:30:00 | F21: 00:30:00 | G21: 07:00:00 | H21: 01:00:00 | I21: 0.25 | J21: + | L21: Tandläkaren | N21: =IF(E21>0,E21-D21-F21-H21,IF(C21="",0,IF(C21="F",0,Årsarbetsschema!$D$40))) -> 0.25 | O21: 4
B22: 2026-08-19 | D22: 07:00:00 | E22: 14:30:00 | F22: 00:30:00 | G22: 07:00:00 | I22: 0.2916666667 | J22: + | N22: =IF(E22>0,E22-D22-F22-H22,IF(C22="",0,IF(C22="F",0,Årsarbetsschema!$D$40))) -> 0.2916666667 | O22: 5
B23: 2026-08-20 | I23: 0 | J23: + | N23: =IF(E23>0,E23-D23-F23-H23,IF(C23="",0,IF(C23="F",0,Årsarbetsschema!$D$40))) -> 0 | O23: 6
B24: 2026-08-21 | I24: 0 | J24: + | N24: =IF(E24>0,E24-D24-F24-H24,IF(C24="",0,IF(C24="F",0,Årsarbetsschema!$D$40))) -> 0 | O24: 7
B25: 2026-08-22 | C25: Sj | F25: 00:30:00 | G25: 07:00:00 | I25: 0.2916666667 | J25: + | N25: =IF(E25>0,E25-D25-F25-H25,IF(C25="",0,IF(C25="F",0,Årsarbetsschema!$D$40))) -> 0.2916666667 | O25: 1
B26: 2026-08-23 | D26: 07:00:00 | E26: 14:30:00 | F26: 00:30:00 | G26: 08:00:00 | I26: 0.2916666667 | J26: + | N26: =IF(E26>0,E26-D26-F26-H26,IF(C26="",0,IF(C26="F",0,Årsarbetsschema!$D$40))) -> 0.2916666667 | O26: 2
B27: 2026-08-24 | D27: 07:00:00 | E27: 14:30:00 | F27: 00:30:00 | G27: 07:00:00 | I27: 0.2916666667 | J27: + | N27: =IF(E27>0,E27-D27-F27-H27,IF(C27="",0,IF(C27="F",0,Årsarbetsschema!$D$40))) -> 0.2916666667 | O27: 3
B28: 2026-08-25 | D28: 07:00:00 | E28: 14:30:00 | F28: 00:30:00 | G28: 07:00:00 | I28: 0.2916666667 | J28: + | N28: =IF(E28>0,E28-D28-F28-H28,IF(C28="",0,IF(C28="F",0,Årsarbetsschema!$D$40))) -> 0.2916666667 | O28: 4
B29: 2026-08-26 | D29: 07:00:00 | E29: 14:30:00 | F29: 00:30:00 | G29: 07:00:00 | I29: 0.2916666667 | J29: + | N29: =IF(E29>0,E29-D29-F29-H29,IF(C29="",0,IF(C29="F",0,Årsarbetsschema!$D$40))) -> 0.2916666667 | O29: 5
B30: 2026-08-27 | I30: 0 | J30: + | N30: =IF(E30>0,E30-D30-F30-H30,IF(C30="",0,IF(C30="F",0,Årsarbetsschema!$D$40))) -> 0 | O30: 6
B31: 2026-08-28 | I31: 0 | J31: + | N31: =IF(E31>0,E31-D31-F31-H31,IF(C31="",0,IF(C31="F",0,Årsarbetsschema!$D$40))) -> 0 | O31: 7
B32: 2026-08-29 | D32: 07:00:00 | E32: 14:30:00 | F32: 00:30:00 | G32: 07:00:00 | I32: 0.2916666667 | J32: + | N32: =IF(E32>0,E32-D32-F32-H32,IF(C32="",0,IF(C32="F",0,Årsarbetsschema!$D$40))) -> 0.2916666667 | O32: 1
B33: 2026-08-30 | D33: 07:00:00 | E33: 14:30:00 | F33: 00:30:00 | G33: 07:00:00 | I33: 0.2916666667 | J33: + | N33: =IF(E33>0,E33-D33-F33-H33,IF(C33="",0,IF(C33="F",0,Årsarbetsschema!$D$40))) -> 0.2916666667 | O33: 2
B34: 2026-08-31 | D34: 07:00:00 | E34: 14:30:00 | F34: 00:30:00 | G34: 08:00:00 | I34: 0.2916666667 | J34: + | N34: =IF(E34>0,E34-D34-F34-H34,IF(C34="",0,IF(C34="F",0,Årsarbetsschema!$D$40))) -> 0.2916666667 | O34: 3
H35: Månad | I35: 5 | J35: + | K35: =SUM(K4:K34) -> 0.0625 | N35: =SUM(N4:N34) -> 5
H36: Totalt | I36: 5 | J36: + | K36: =K35 -> 0.0625 | N36: =N35+N3 -> 5
B38: =IF(Uppgifter!$C$6="","",Uppgifter!$C$6) -> 

Sheet Årsarbetsschema
B1: ="Årsarbetstidsschema " & Uppgifter!C4 & "/" & Uppgifter!D4 & " för " & IF(Uppgifter!C6<>"",Uppgifter!C6,"") -> Årsarbetstidsschema 2026/2027 för
J2: Personnummer | L2: Arbetsställe | R2: =Uppgifter!C4 -> 2026 | X2: =Uppgifter!D4 -> 2027
C4: =Uppgifter!C4 -> 2026 | I4: =Uppgifter!D4 -> 2027
B5: Datum | C5: Aug | D5: Sept | E5: Okt | F5: Nov | G5: Dec | I5: Jan | J5: Feb | K5: Mars | L5: April | M5: Maj | N5: Juni | Q5: DATUM | R5: 8 | S5: 9 | T5: 10 | U5: 11 | V5: 12 | X5: 1 | Y5: 2 | Z5: 3 | AA5: 4 | AB5: 5 | AC5: 6
B6: 1 | D6: 07:00:00 | E6: 07:00:00 | G6: 07:00:00 | J6: 07:00:00 | K6: 07:00:00 | N6: 07:00:00 | Q6: 1 | R6: 6 | S6: 2 | T6: 4 | U6: 7 | V6: 2 | X6: 6 | Y6: 1 | Z6: 1 | AA6: 6 | AB6: 6 | AC6: 2
B7: 2 | D7: 07:00:00 | E7: 07:00:00 | F7: 07:00:00 | G7: 07:00:00 | J7: 07:00:00 | K7: 07:00:00 | N7: 07:00:00 | Q7: 2 | R7: 6 | S7: 3 | T7: 5 | U7: 1 | V7: 3 | X7: 6 | Y7: 2 | Z7: 2 | AA7: 6 | AB7: 7 | AC7: 3
B8: 3 | D8: 07:00:00 | F8: 07:00:00 | G8: 07:00:00 | J8: 07:00:00 | K8: 07:00:00 | M8: 07:00:00 | N8: 07:00:00 | Q8: 3 | R8: 6 | S8: 4 | T8: 6 | U8: 2 | V8: 4 | X8: 6 | Y8: 3 | Z8: 3 | AA8: 6 | AB8: 1 | AC8: 4
B9: 4 | D9: 07:00:00 | F9: 07:00:00 | G9: 07:00:00 | J9: 07:00:00 | K9: 07:00:00 | M9: 07:00:00 | N9: 07:00:00 | Q9: 4 | R9: 6 | S9: 5 | T9: 7 | U9: 3 | V9: 5 | X9: 6 | Y9: 4 | Z9: 4 | AA9: 7 | AB9: 2 | AC9: 5
B10: 5 | E10: 07:00:00 | F10: 07:00:00 | J10: 07:00:00 | K10: 07:00:00 | L10: 07:00:00 | M10: 07:00:00 | Q10: 5 | R10: 6 | S10: 6 | T10: 1 | U10: 4 | V10: 6 | X10: 6 | Y10: 5 | Z10: 5 | AA10: 1 | AB10: 3 | AC10: 6
B11: 6 | E11: 07:00:00 | F11: 07:00:00 | L11: 07:00:00 | Q11: 6 | R11: 6 | S11: 7 | T11: 2 | U11: 5 | V11: 7 | X11: 6 | Y11: 6 | Z11: 6 | AA11: 2 | AB11: 6 | AC11: 7
B12: 7 | D12: 07:00:00 | E12: 07:00:00 | G12: 07:00:00 | L12: 07:00:00 | N12: 07:00:00 | Q12: 7 | R12: 6 | S12: 1 | T12: 3 | U12: 6 | V12: 1 | X12: 6 | Y12: 7 | Z12: 7 | AA12: 3 | AB12: 6 | AC12: 1
B13: 8 | D13: 07:00:00 | E13: 07:00:00 | G13: 07:00:00 | J13: 07:00:00 | K13: 07:00:00 | L13: 07:00:00 | N13: 07:00:00 | Q13: 8 | R13: 6 | S13: 2 | T13: 4 | U13: 7 | V13: 2 | X13: 6 | Y13: 1 | Z13: 1 | AA13: 4 | AB13: 6 | AC13: 2
B14: 9 | D14: 07:00:00 | E14: 07:00:00 | F14: 07:00:00 | G14: 07:00:00 | J14: 07:00:00 | K14: 07:00:00 | L14: 07:00:00 | N14: 07:00:00 | Q14: 9 | R14: 6 | S14: 3 | T14: 5 | U14: 1 | V14: 3 | X14: 6 | Y14: 2 | Z14: 2 | AA14: 5 | AB14: 7 | AC14: 3
B15: 10 | C15: 07:00:00 | D15: 07:00:00 | F15: 07:00:00 | G15: 07:00:00 | J15: 07:00:00 | K15: 07:00:00 | M15: 07:00:00 | N15: 07:00:00 | Q15: 10 | R15: -1 | S15: 4 | T15: 6 | U15: 2 | V15: 4 | X15: 7 | Y15: 3 | Z15: 3 | AA15: 6 | AB15: 1 | AC15: 4
B16: 11 | C16: 07:00:00 | D16: 07:00:00 | F16: 07:00:00 | G16: 07:00:00 | I16: 07:00:00 | J16: 07:00:00 | K16: 07:00:00 | M16: 07:00:00 | N16: 07:00:00 | Q16: 11 | R16: -1 | S16: 5 | T16: 7 | U16: 3 | V16: 5 | X16: -1 | Y16: 4 | Z16: 4 | AA16: 7 | AB16: 2 | AC16: -1
B17: 12 | C17: 07:00:00 | E17: 07:00:00 | F17: 07:00:00 | I17: 07:00:00 | J17: 07:00:00 | K17: 07:00:00 | L17: 07:00:00 | M17: 07:00:00 | Q17: 12 | R17: -1 | S17: 6 | T17: 1 | U17: 4 | V17: 6 | X17: -1 | Y17: 5 | Z17: 5 | AA17: 1 | AB17: 3 | AC17: 6
B18: 13 | C18: 07:00:00 | E18: 07:00:00 | F18: 07:00:00 | I18: 07:00:00 | L18: 07:00:00 | M18: 07:00:00 | Q18: 13 | R18: -1 | S18: 7 | T18: 2 | U18: 5 | V18: 7 | X18: 3 | Y18: 6 | Z18: 6 | AA18: 2 | AB18: 4 | AC18: 7
B19: 14 | C19: 07:00:00 | D19: 07:00:00 | E19: 07:00:00 | G19: 07:00:00 | I19: 07:00:00 | L19: 07:00:00 | M19: 07:00:00 | N19: 07:00:00 | Q19: 14 | R19: -1 | S19: 1 | T19: 3 | U19: 6 | V19: 1 | X19: 4 | Y19: 7 | Z19: 7 | AA19: 3 | AB19: 5 | AC19: -1
B20: 15 | D20: 07:00:00 | E20: 07:00:00 | G20: 07:00:00 | I20: 07:00:00 | J20: 07:00:00 | K20: 07:00:00 | L20: 07:00:00 | N20: 07:00:00 | Q20: 15 | R20: 6 | S20: 2 | T20: 4 | U20: 7 | V20: 2 | X20: 5 | Y20: 1 | Z20: 1 | AA20: 4 | AB20: 6 | AC20: -1
B21: 16 | D21: 07:00:00 | E21: 07:00:00 | F21: 07:00:00 | G21: 07:00:00 | J21: 07:00:00 | K21: 07:00:00 | L21: 07:00:00 | N21: 07:00:00 | Q21: 16 | R21: 7 | S21: 3 | T21: 5 | U21: 1 | V21: 3 | X21: 6 | Y21: 2 | Z21: 2 | AA21: 5 | AB21: 7 | AC21: -1
B22: 17 | C22: 07:00:00 | D22: 07:00:00 | F22: 07:00:00 | G22: 07:00:00 | J22: 07:00:00 | K22: 07:00:00 | M22: 07:00:00 | Q22: 17 | R22: -1 | S22: 4 | T22: 6 | U22: 2 | V22: 4 | X22: 7 | Y22: 3 | Z22: 3 | AA22: 6 | AB22: 1 | AC22: 6
B23: 18 | C23: 07:00:00 | D23: 07:00:00 | F23: 07:00:00 | G23: 07:00:00 | I23: 07:00:00 | J23: 07:00:00 | K23: 07:00:00 | M23: 07:00:00 | Q23: 18 | R23: 2 | S23: 5 | T23: 7 | U23: 3 | V23: 5 | X23: 1 | Y23: 4 | Z23: 4 | AA23: 7 | AB23: 2 | AC23: 6
B24: 19 | C24: 07:00:00 | E24: 07:00:00 | F24: 07:00:00 | I24: 07:00:00 | J24: 07:00:00 | K24: 07:00:00 | L24: 07:00:00 | M24: 07:00:00 | Q24: 19 | R24: 3 | S24: 6 | T24: 1 | U24: 4 | V24: 6 | X24: 2 | Y24: 5 | Z24: 5 | AA24: 1 | AB24: 3 | AC24: 6
B25: 20 | C25: 07:00:00 | E25: 07:00:00 | F25: 07:00:00 | I25: 07:00:00 | L25: 07:00:00 | M25: 07:00:00 | Q25: 20 | R25: 4 | S25: 7 | T25: 2 | U25: 5 | V25: 7 | X25: 3 | Y25: 6 | Z25: 6 | AA25: 2 | AB25: 4 | AC25: 7
B26: 21 | C26: 07:00:00 | D26: 07:00:00 | E26: 07:00:00 | G26: 07:00:00 | I26: 07:00:00 | L26: 07:00:00 | M26: 07:00:00 | Q26: 21 | R26: 5 | S26: 1 | T26: 3 | U26: 6 | V26: 1 | X26: 4 | Y26: 7 | Z26: 7 | AA26: 3 | AB26: 5 | AC26: 6
B27: 22 | D27: 07:00:00 | E27: 07:00:00 | G27: 07:00:00 | I27: 07:00:00 | K27: 07:00:00 | L27: 07:00:00 | Q27: 22 | R27: 6 | S27: 2 | T27: 4 | U27: 7 | V27: 2 | X27: 5 | Y27: 6 | Z27: 1 | AA27: 4 | AB27: 6 | AC27: 6
B28: 23 | D28: 07:00:00 | E28: 07:00:00 | F28: 07:00:00 | K28: 07:00:00 | L28: 07:00:00 | Q28: 23 | R28: 7 | S28: 3 | T28: 5 | U28: 1 | V28: 6 | X28: 6 | Y28: 6 | Z28: 2 | AA28: 5 | AB28: 7 | AC28: 6
B29: 24 | C29: 07:00:00 | D29: 07:00:00 | F29: 07:00:00 | K29: 07:00:00 | M29: 07:00:00 | Q29: 24 | R29: 1 | S29: 4 | T29: 6 | U29: 2 | V29: 6 | X29: 7 | Y29: 6 | Z29: 3 | AA29: 6 | AB29: 1 | AC29: 6
B30: 25 | C30: 07:00:00 | D30: 07:00:00 | F30: 07:00:00 | I30: 07:00:00 | K30: 07:00:00 | M30: 07:00:00 | Q30: 25 | R30: 2 | S30: -1 | T30: 7 | U30: 3 | V30: 6 | X30: 1 | Y30: 6 | Z30: 4 | AA30: 7 | AB30: 2 | AC30: 6
B31: 26 | C31: 07:00:00 | E31: 07:00:00 | F31: 07:00:00 | I31: 07:00:00 | L31: 07:00:00 | M31: 07:00:00 | Q31: 26 | R31: 3 | S31: 6 | T31: -1 | U31: 4 | V31: 6 | X31: 2 | Y31: 6 | Z31: 6 | AA31: 1 | AB31: 3 | AC31: 6
B32: 27 | C32: 07:00:00 | E32: 07:00:00 | F32: 07:00:00 | I32: 07:00:00 | L32: 07:00:00 | M32: 07:00:00 | Q32: 27 | R32: 4 | S32: 7 | T32: -1 | U32: 5 | V32: 6 | X32: 3 | Y32: 6 | Z32: 6 | AA32: 2 | AB32: 4 | AC32: 6
B33: 28 | C33: 07:00:00 | D33: 07:00:00 | E33: 07:00:00 | I33: 07:00:00 | L33: 07:00:00 | M33: 07:00:00 | Q33: 28 | R33: 5 | S33: 1 | T33: -1 | U33: 6 | V33: 6 | X33: 4 | Y33: 7 | Z33: 7 | AA33: 3 | AB33: 5 | AC33: 6
B34: 29 | D34: 07:00:00 | I34: 07:00:00 | L34: 07:00:00 | Q34: 29 | R34: 6 | S34: 2 | T34: 6 | U34: 7 | V34: 6 | X34: 5 | Z34: 6 | AA34: 4 | AB34: 6 | AC34: 6
B35: 30 | D35: 07:00:00 | F35: 07:00:00 | Q35: 30 | R35: 7 | S35: 3 | T35: 6 | U35: 1 | V35: 6 | X35: 6 | Z35: 6 | AA35: 6 | AB35: 7 | AC35: 6
B36: 31 | C36: 07:00:00 | M36: 07:00:00 | Q36: 31 | R36: 1 | T36: 6 | V36: 6 | X36: 7 | Z36: 6 | AB36: 1
C38: =SUM(C6:C36)*24 -> 112 | D38: =SUM(D6:D36)*24 -> 154 | E38: =SUM(E6:E36)*24 -> 140 | F38: =SUM(F6:F36)*24 -> 147 | G38: =SUM(G6:G36)*24 -> 112 | I38: =SUM(I6:I36)*24 -> 105 | J38: =SUM(J6:J36)*24 -> 105 | K38: =SUM(K6:K36)*24 -> 133 | L38: =SUM(L6:L36)*24 -> 133 | M38: 133 | N38: =SUM(N6:N36)*24 -> 84 | O38: =SUM(C38:N38) -> 1358
R39: -1 Dagar som ska markeras blått är: Kompetensutvecklignsdagar
C40: Arbetstid/dag | D40: 07:00:00 | G40: ="mindre än " & TEXT(D40,"TT:MM") -> mindre än 07:00 | I40: =IF(D40>0,D40-0.0001,0) -> 06:59:51.360 | K40: ="Årsarbetstid " & R2 & "/" &X2 -> Årsarbetstid 2026/2027 | N40: =Uppgifter!E13 -> 1360 | R40: 6 på dagar som lovdagar/feriedagar/helgdag 1,2,3,4,5 dagar mån. tis, ons,tros el fre som är arbetsdag men ej komp.utdag.
C41: =Uppgifter!E11*Årsarbetsschema!C51 -> 1.458333333 | D41: tim/vecka | G41: ="mer än " & TEXT(D40,"TT:MM") -> mer än 07:00 | I41: =D40+0.001 -> 07:01:26.400 | L41: Utlagda arbetstimmar | N41: =SUM(C38:N38) -> 1358
C42: 38.8 | D42: Veckor | G42: Arbetsfria dagar | L42: Skillnad | N42: =N41-N40 -> -2
C43: =C50 -> 38.8 | D43: Veckor ifyllda | G43: Kompetensutvecklingsdagar | I43: =COUNTIF(R5:AD36,"-1") -> 16
G47: Datum | J47: Arbetstagare | N47: Datum
C50: =SUM((COUNTA($C$6:$N$36)/5)) -> 38.8 | D50: Veckor ifyllda
C51: 1.458333333 | D51: Heltidsmått
C52: =C41/C51 -> 1 | D52: Arbetsprocent

Sheet Arbetat
C4: Hösttermin | F4: =Uppgifter!C4 -> 2026 | I4: Vårtermin | L4: =Uppgifter!D4 -> 2027 | R4: =Uppgifter!C4 -> 2026 | W4: =Uppgifter!D4 -> 2027
B5: Datum | C5: Augusti | D5: September | E5: Oktober | F5: November | G5: December | I5: Januari | J5: Februari | K5: Mars | L5: April | M5: Maj | N5: Juni | R5: 8 | S5: 9 | T5: 10 | U5: 11 | V5: 12 | W5: 1 | X5: 2 | Y5: 3 | Z5: 4 | AA5: 5 | AB5: 6 | AD5: =C5 -> Augusti | AE5: =D5 -> September | AF5: =E5 -> Oktober | AG5: =F5 -> November | AH5: =G5 -> December | AJ5: =I5 -> Januari | AK5: Februari | AL5: Mars | AM5: April | AN5: Maj | AO5: Juni
B6: 1 | C6: =Aug!$I4 -> 00:00:00 | D6: =Sept!$I4 -> 00:00:00 | E6: =Okt!$I4 -> 00:00:00 | F6: =Nov!$I4 -> 00:00:00 | G6: =Dec!$I4 -> 00:00:00 | I6: =Jan!$I4 -> 00:00:00 | J6: =Feb!$I4 -> 00:00:00 | K6: =Mars!$I4 -> 00:00:00 | L6: =April!$I4 -> 00:00:00 | M6: =Maj!$I4 -> 00:00:00 | N6: =Juni!$I4 -> 00:00:00 | R6: =Årsarbetsschema!R6 -> 6 | S6: =Årsarbetsschema!S6 -> 2 | T6: =Årsarbetsschema!T6 -> 4 | U6: =Årsarbetsschema!U6 -> 7 | V6: =Årsarbetsschema!V6 -> 2 | W6: =Årsarbetsschema!X6 -> 6 | X6: =Årsarbetsschema!Y6 -> 1 | Y6: =Årsarbetsschema!Z6 -> 1 | Z6: =Årsarbetsschema!AA6 -> 6 | AA6: =Årsarbetsschema!AB6 -> 6 | AB6: =Årsarbetsschema!AC6 -> 2 | AD6: =Årsarbetsschema!C6 -> 0 | AE6: =Årsarbetsschema!D6 -> 0.2916666667 | AF6: =Årsarbetsschema!E6 -> 0.2916666667 | AG6: =Årsarbetsschema!F6 -> 0 | AH6: =Årsarbetsschema!G6 -> 0.2916666667 | AJ6: =Årsarbetsschema!I6 -> 0 | AK6: =Årsarbetsschema!J6 -> 0.2916666667 | AL6: =Årsarbetsschema!K6 -> 0.2916666667 | AM6: =Årsarbetsschema!L6 -> 0 | AN6: =Årsarbetsschema!M6 -> 0 | AO6: =Årsarbetsschema!N6 -> 0.2916666667
B7: 2 | C7: =Aug!$I5 -> 00:00:00 | D7: =Sept!$I5 -> 00:00:00 | E7: =Okt!$I5 -> 00:00:00 | F7: =Nov!$I5 -> 00:00:00 | G7: =Dec!$I5 -> 00:00:00 | I7: =Jan!$I5 -> 00:00:00 | J7: =Feb!$I5 -> 00:00:00 | K7: =Mars!$I5 -> 00:00:00 | L7: =April!$I5 -> 00:00:00 | M7: =Maj!$I5 -> 00:00:00 | N7: =Juni!$I5 -> 00:00:00 | R7: =Årsarbetsschema!R7 -> 6 | S7: =Årsarbetsschema!S7 -> 3 | T7: =Årsarbetsschema!T7 -> 5 | U7: =Årsarbetsschema!U7 -> 1 | V7: =Årsarbetsschema!V7 -> 3 | W7: =Årsarbetsschema!X7 -> 6 | X7: =Årsarbetsschema!Y7 -> 2 | Y7: =Årsarbetsschema!Z7 -> 2 | Z7: =Årsarbetsschema!AA7 -> 6 | AA7: =Årsarbetsschema!AB7 -> 7 | AB7: =Årsarbetsschema!AC7 -> 3 | AD7: =Årsarbetsschema!C7 -> 0 | AE7: =Årsarbetsschema!D7 -> 0.2916666667 | AF7: =Årsarbetsschema!E7 -> 0.2916666667 | AG7: =Årsarbetsschema!F7 -> 0.2916666667 | AH7: =Årsarbetsschema!G7 -> 0.2916666667 | AJ7: =Årsarbetsschema!I7 -> 0 | AK7: =Årsarbetsschema!J7 -> 0.2916666667 | AL7: =Årsarbetsschema!K7 -> 0.2916666667 | AM7: =Årsarbetsschema!L7 -> 0 | AN7: =Årsarbetsschema!M7 -> 0 | AO7: =Årsarbetsschema!N7 -> 0.2916666667
B8: 3 | C8: =Aug!$I6 -> 00:00:00 | D8: =Sept!$I6 -> 00:00:00 | E8: =Okt!$I6 -> 00:00:00 | F8: =Nov!$I6 -> 00:00:00 | G8: =Dec!$I6 -> 00:00:00 | I8: =Jan!$I6 -> 00:00:00 | J8: =Feb!$I6 -> 00:00:00 | K8: =Mars!$I6 -> 00:00:00 | L8: =April!$I6 -> 00:00:00 | M8: =Maj!$I6 -> 00:00:00 | N8: =Juni!$I6 -> 00:00:00 | R8: =Årsarbetsschema!R8 -> 6 | S8: =Årsarbetsschema!S8 -> 4 | T8: =Årsarbetsschema!T8 -> 6 | U8: =Årsarbetsschema!U8 -> 2 | V8: =Årsarbetsschema!V8 -> 4 | W8: =Årsarbetsschema!X8 -> 6 | X8: =Årsarbetsschema!Y8 -> 3 | Y8: =Årsarbetsschema!Z8 -> 3 | Z8: =Årsarbetsschema!AA8 -> 6 | AA8: =Årsarbetsschema!AB8 -> 1 | AB8: =Årsarbetsschema!AC8 -> 4 | AD8: =Årsarbetsschema!C8 -> 0 | AE8: =Årsarbetsschema!D8 -> 0.2916666667 | AF8: =Årsarbetsschema!E8 -> 0 | AG8: =Årsarbetsschema!F8 -> 0.2916666667 | AH8: =Årsarbetsschema!G8 -> 0.2916666667 | AJ8: =Årsarbetsschema!I8 -> 0 | AK8: =Årsarbetsschema!J8 -> 0.2916666667 | AL8: =Årsarbetsschema!K8 -> 0.2916666667 | AM8: =Årsarbetsschema!L8 -> 0 | AN8: =Årsarbetsschema!M8 -> 0.2916666667 | AO8: =Årsarbetsschema!N8 -> 0.2916666667
B9: 4 | C9: =Aug!$I7 -> 00:00:00 | D9: =Sept!$I7 -> 00:00:00 | E9: =Okt!$I7 -> 00:00:00 | F9: =Nov!$I7 -> 00:00:00 | G9: =Dec!$I7 -> 00:00:00 | I9: =Jan!$I7 -> 00:00:00 | J9: =Feb!$I7 -> 00:00:00 | K9: =Mars!$I7 -> 00:00:00 | L9: =April!$I7 -> 00:00:00 | M9: =Maj!$I7 -> 00:00:00 | N9: =Juni!$I7 -> 00:00:00 | R9: =Årsarbetsschema!R9 -> 6 | S9: =Årsarbetsschema!S9 -> 5 | T9: =Årsarbetsschema!T9 -> 7 | U9: =Årsarbetsschema!U9 -> 3 | V9: =Årsarbetsschema!V9 -> 5 | W9: =Årsarbetsschema!X9 -> 6 | X9: =Årsarbetsschema!Y9 -> 4 | Y9: =Årsarbetsschema!Z9 -> 4 | Z9: =Årsarbetsschema!AA9 -> 7 | AA9: =Årsarbetsschema!AB9 -> 2 | AB9: =Årsarbetsschema!AC9 -> 5 | AD9: =Årsarbetsschema!C9 -> 0 | AE9: =Årsarbetsschema!D9 -> 0.2916666667 | AF9: =Årsarbetsschema!E9 -> 0 | AG9: =Årsarbetsschema!F9 -> 0.2916666667 | AH9: =Årsarbetsschema!G9 -> 0.2916666667 | AJ9: =Årsarbetsschema!I9 -> 0 | AK9: =Årsarbetsschema!J9 -> 0.2916666667 | AL9: =Årsarbetsschema!K9 -> 0.2916666667 | AM9: =Årsarbetsschema!L9 -> 0 | AN9: =Årsarbetsschema!M9 -> 0.2916666667 | AO9: =Årsarbetsschema!N9 -> 0.2916666667
B10: 5 | C10: =Aug!$I8 -> 00:00:00 | D10: =Sept!$I8 -> 00:00:00 | E10: =Okt!$I8 -> 00:00:00 | F10: =Nov!$I8 -> 00:00:00 | G10: =Dec!$I8 -> 00:00:00 | I10: =Jan!$I8 -> 00:00:00 | J10: =Feb!$I8 -> 00:00:00 | K10: =Mars!$I8 -> 00:00:00 | L10: =April!$I8 -> 00:00:00 | M10: =Maj!$I8 -> 00:00:00 | N10: =Juni!$I8 -> 00:00:00 | R10: =Årsarbetsschema!R10 -> 6 | S10: =Årsarbetsschema!S10 -> 6 | T10: =Årsarbetsschema!T10 -> 1 | U10: =Årsarbetsschema!U10 -> 4 | V10: =Årsarbetsschema!V10 -> 6 | W10: =Årsarbetsschema!X10 -> 6 | X10: =Årsarbetsschema!Y10 -> 5 | Y10: =Årsarbetsschema!Z10 -> 5 | Z10: =Årsarbetsschema!AA10 -> 1 | AA10: =Årsarbetsschema!AB10 -> 3 | AB10: =Årsarbetsschema!AC10 -> 6 | AD10: =Årsarbetsschema!C10 -> 0 | AE10: =Årsarbetsschema!D10 -> 0 | AF10: =Årsarbetsschema!E10 -> 0.2916666667 | AG10: =Årsarbetsschema!F10 -> 0.2916666667 | AH10: =Årsarbetsschema!G10 -> 0 | AJ10: =Årsarbetsschema!I10 -> 0 | AK10: =Årsarbetsschema!J10 -> 0.2916666667 | AL10: =Årsarbetsschema!K10 -> 0.2916666667 | AM10: =Årsarbetsschema!L10 -> 0.2916666667 | AN10: =Årsarbetsschema!M10 -> 0.2916666667 | AO10: =Årsarbetsschema!N10 -> 0
B11: 6 | C11: =Aug!$I9 -> 00:00:00 | D11: =Sept!$I9 -> 00:00:00 | E11: =Okt!$I9 -> 00:00:00 | F11: =Nov!$I9 -> 00:00:00 | G11: =Dec!$I9 -> 00:00:00 | I11: =Jan!$I9 -> 00:00:00 | J11: =Feb!$I9 -> 00:00:00 | K11: =Mars!$I9 -> 00:00:00 | L11: =April!$I9 -> 00:00:00 | M11: =Maj!$I9 -> 00:00:00 | N11: =Juni!$I9 -> 00:00:00 | R11: =Årsarbetsschema!R11 -> 6 | S11: =Årsarbetsschema!S11 -> 7 | T11: =Årsarbetsschema!T11 -> 2 | U11: =Årsarbetsschema!U11 -> 5 | V11: =Årsarbetsschema!V11 -> 7 | W11: =Årsarbetsschema!X11 -> 6 | X11: =Årsarbetsschema!Y11 -> 6 | Y11: =Årsarbetsschema!Z11 -> 6 | Z11: =Årsarbetsschema!AA11 -> 2 | AA11: =Årsarbetsschema!AB11 -> 6 | AB11: =Årsarbetsschema!AC11 -> 7 | AD11: =Årsarbetsschema!C11 -> 0 | AE11: =Årsarbetsschema!D11 -> 0 | AF11: =Årsarbetsschema!E11 -> 0.2916666667 | AG11: =Årsarbetsschema!F11 -> 0.2916666667 | AH11: =Årsarbetsschema!G11 -> 0 | AJ11: =Årsarbetsschema!I11 -> 0 | AK11: =Årsarbetsschema!J11 -> 0 | AL11: =Årsarbetsschema!K11 -> 0 | AM11: =Årsarbetsschema!L11 -> 0.2916666667 | AN11: =Årsarbetsschema!M11 -> 0 | AO11: =Årsarbetsschema!N11 -> 0
B12: 7 | C12: =Aug!$I10 -> 00:00:00 | D12: =Sept!$I10 -> 00:00:00 | E12: =Okt!$I10 -> 00:00:00 | F12: =Nov!$I10 -> 00:00:00 | G12: =Dec!$I10 -> 00:00:00 | I12: =Jan!$I10 -> 00:00:00 | J12: =Feb!$I10 -> 00:00:00 | K12: =Mars!$I10 -> 00:00:00 | L12: =April!$I10 -> 00:00:00 | M12: =Maj!$I10 -> 00:00:00 | N12: =Juni!$I10 -> 00:00:00 | R12: =Årsarbetsschema!R12 -> 6 | S12: =Årsarbetsschema!S12 -> 1 | T12: =Årsarbetsschema!T12 -> 3 | U12: =Årsarbetsschema!U12 -> 6 | V12: =Årsarbetsschema!V12 -> 1 | W12: =Årsarbetsschema!X12 -> 6 | X12: =Årsarbetsschema!Y12 -> 7 | Y12: =Årsarbetsschema!Z12 -> 7 | Z12: =Årsarbetsschema!AA12 -> 3 | AA12: =Årsarbetsschema!AB12 -> 6 | AB12: =Årsarbetsschema!AC12 -> 1 | AD12: =Årsarbetsschema!C12 -> 0 | AE12: =Årsarbetsschema!D12 -> 0.2916666667 | AF12: =Årsarbetsschema!E12 -> 0.2916666667 | AG12: =Årsarbetsschema!F12 -> 0 | AH12: =Årsarbetsschema!G12 -> 0.2916666667 | AJ12: =Årsarbetsschema!I12 -> 0 | AK12: =Årsarbetsschema!J12 -> 0 | AL12: =Årsarbetsschema!K12 -> 0 | AM12: =Årsarbetsschema!L12 -> 0.2916666667 | AN12: =Årsarbetsschema!M12 -> 0 | AO12: =Årsarbetsschema!N12 -> 0.2916666667
B13: 8 | C13: =Aug!$I11 -> 00:00:00 | D13: =Sept!$I11 -> 00:00:00 | E13: =Okt!$I11 -> 00:00:00 | F13: =Nov!$I11 -> 00:00:00 | G13: =Dec!$I11 -> 00:00:00 | I13: =Jan!$I11 -> 00:00:00 | J13: =Feb!$I11 -> 00:00:00 | K13: =Mars!$I11 -> 00:00:00 | L13: =April!$I11 -> 00:00:00 | M13: =Maj!$I11 -> 00:00:00 | N13: =Juni!$I11 -> 00:00:00 | R13: =Årsarbetsschema!R13 -> 6 | S13: =Årsarbetsschema!S13 -> 2 | T13: =Årsarbetsschema!T13 -> 4 | U13: =Årsarbetsschema!U13 -> 7 | V13: =Årsarbetsschema!V13 -> 2 | W13: =Årsarbetsschema!X13 -> 6 | X13: =Årsarbetsschema!Y13 -> 1 | Y13: =Årsarbetsschema!Z13 -> 1 | Z13: =Årsarbetsschema!AA13 -> 4 | AA13: =Årsarbetsschema!AB13 -> 6 | AB13: =Årsarbetsschema!AC13 -> 2 | AD13: =Årsarbetsschema!C13 -> 0 | AE13: =Årsarbetsschema!D13 -> 0.2916666667 | AF13: =Årsarbetsschema!E13 -> 0.2916666667 | AG13: =Årsarbetsschema!F13 -> 0 | AH13: =Årsarbetsschema!G13 -> 0.2916666667 | AJ13: =Årsarbetsschema!I13 -> 0 | AK13: =Årsarbetsschema!J13 -> 0.2916666667 | AL13: =Årsarbetsschema!K13 -> 0.2916666667 | AM13: =Årsarbetsschema!L13 -> 0.2916666667 | AN13: =Årsarbetsschema!M13 -> 0 | AO13: =Årsarbetsschema!N13 -> 0.2916666667
B14: 9 | C14: =Aug!$I12 -> 00:00:00 | D14: =Sept!$I12 -> 00:00:00 | E14: =Okt!$I12 -> 00:00:00 | F14: =Nov!$I12 -> 00:00:00 | G14: =Dec!$I12 -> 00:00:00 | I14: =Jan!$I12 -> 00:00:00 | J14: =Feb!$I12 -> 00:00:00 | K14: =Mars!$I12 -> 00:00:00 | L14: =April!$I12 -> 00:00:00 | M14: =Maj!$I12 -> 00:00:00 | N14: =Juni!$I12 -> 00:00:00 | R14: =Årsarbetsschema!R14 -> 6 | S14: =Årsarbetsschema!S14 -> 3 | T14: =Årsarbetsschema!T14 -> 5 | U14: =Årsarbetsschema!U14 -> 1 | V14: =Årsarbetsschema!V14 -> 3 | W14: =Årsarbetsschema!X14 -> 6 | X14: =Årsarbetsschema!Y14 -> 2 | Y14: =Årsarbetsschema!Z14 -> 2 | Z14: =Årsarbetsschema!AA14 -> 5 | AA14: =Årsarbetsschema!AB14 -> 7 | AB14: =Årsarbetsschema!AC14 -> 3 | AD14: =Årsarbetsschema!C14 -> 0 | AE14: =Årsarbetsschema!D14 -> 0.2916666667 | AF14: =Årsarbetsschema!E14 -> 0.2916666667 | AG14: =Årsarbetsschema!F14 -> 0.2916666667 | AH14: =Årsarbetsschema!G14 -> 0.2916666667 | AJ14: =Årsarbetsschema!I14 -> 0 | AK14: =Årsarbetsschema!J14 -> 0.2916666667 | AL14: =Årsarbetsschema!K14 -> 0.2916666667 | AM14: =Årsarbetsschema!L14 -> 0.2916666667 | AN14: =Årsarbetsschema!M14 -> 0 | AO14: =Årsarbetsschema!N14 -> 0.2916666667
B15: 10 | C15: =Aug!$I13 -> 00:00:00 | D15: =Sept!$I13 -> 00:00:00 | E15: =Okt!$I13 -> 00:00:00 | F15: =Nov!$I13 -> 00:00:00 | G15: =Dec!$I13 -> 00:00:00 | I15: =Jan!$I13 -> 00:00:00 | J15: =Feb!$I13 -> 00:00:00 | K15: =Mars!$I13 -> 00:00:00 | L15: =April!$I13 -> 00:00:00 | M15: =Maj!$I13 -> 00:00:00 | N15: =Juni!$I13 -> 00:00:00 | R15: =Årsarbetsschema!R15 -> -1 | S15: =Årsarbetsschema!S15 -> 4 | T15: =Årsarbetsschema!T15 -> 6 | U15: =Årsarbetsschema!U15 -> 2 | V15: =Årsarbetsschema!V15 -> 4 | W15: =Årsarbetsschema!X15 -> 7 | X15: =Årsarbetsschema!Y15 -> 3 | Y15: =Årsarbetsschema!Z15 -> 3 | Z15: =Årsarbetsschema!AA15 -> 6 | AA15: =Årsarbetsschema!AB15 -> 1 | AB15: =Årsarbetsschema!AC15 -> 4 | AD15: =Årsarbetsschema!C15 -> 0.2916666667 | AE15: =Årsarbetsschema!D15 -> 0.2916666667 | AF15: =Årsarbetsschema!E15 -> 0 | AG15: =Årsarbetsschema!F15 -> 0.2916666667 | AH15: =Årsarbetsschema!G15 -> 0.2916666667 | AJ15: =Årsarbetsschema!I15 -> 0 | AK15: =Årsarbetsschema!J15 -> 0.2916666667 | AL15: =Årsarbetsschema!K15 -> 0.2916666667 | AM15: =Årsarbetsschema!L15 -> 0 | AN15: =Årsarbetsschema!M15 -> 0.2916666667 | AO15: =Årsarbetsschema!N15 -> 0.2916666667
B16: 11 | C16: =Aug!$I14 -> 00:00:00 | D16: =Sept!$I14 -> 00:00:00 | E16: =Okt!$I14 -> 00:00:00 | F16: =Nov!$I14 -> 00:00:00 | G16: =Dec!$I14 -> 00:00:00 | I16: =Jan!$I14 -> 00:00:00 | J16: =Feb!$I14 -> 00:00:00 | K16: =Mars!$I14 -> 00:00:00 | L16: =April!$I14 -> 00:00:00 | M16: =Maj!$I14 -> 00:00:00 | N16: =Juni!$I14 -> 00:00:00 | R16: =Årsarbetsschema!R16 -> -1 | S16: =Årsarbetsschema!S16 -> 5 | T16: =Årsarbetsschema!T16 -> 7 | U16: =Årsarbetsschema!U16 -> 3 | V16: =Årsarbetsschema!V16 -> 5 | W16: =Årsarbetsschema!X16 -> -1 | X16: =Årsarbetsschema!Y16 -> 4 | Y16: =Årsarbetsschema!Z16 -> 4 | Z16: =Årsarbetsschema!AA16 -> 7 | AA16: =Årsarbetsschema!AB16 -> 2 | AB16: =Årsarbetsschema!AC16 -> -1 | AD16: =Årsarbetsschema!C16 -> 0.2916666667 | AE16: =Årsarbetsschema!D16 -> 0.2916666667 | AF16: =Årsarbetsschema!E16 -> 0 | AG16: =Årsarbetsschema!F16 -> 0.2916666667 | AH16: =Årsarbetsschema!G16 -> 0.2916666667 | AJ16: =Årsarbetsschema!I16 -> 0.2916666667 | AK16: =Årsarbetsschema!J16 -> 0.2916666667 | AL16: =Årsarbetsschema!K16 -> 0.2916666667 | AM16: =Årsarbetsschema!L16 -> 0 | AN16: =Årsarbetsschema!M16 -> 0.2916666667 | AO16: =Årsarbetsschema!N16 -> 0.2916666667
B17: 12 | C17: =Aug!$I15 -> 00:00:00 | D17: =Sept!$I15 -> 00:00:00 | E17: =Okt!$I15 -> 00:00:00 | F17: =Nov!$I15 -> 00:00:00 | G17: =Dec!$I15 -> 00:00:00 | I17: =Jan!$I15 -> 00:00:00 | J17: =Feb!$I15 -> 00:00:00 | K17: =Mars!$I15 -> 00:00:00 | L17: =April!$I15 -> 00:00:00 | M17: =Maj!$I15 -> 00:00:00 | N17: =Juni!$I15 -> 00:00:00 | R17: =Årsarbetsschema!R17 -> -1 | S17: =Årsarbetsschema!S17 -> 6 | T17: =Årsarbetsschema!T17 -> 1 | U17: =Årsarbetsschema!U17 -> 4 | V17: =Årsarbetsschema!V17 -> 6 | W17: =Årsarbetsschema!X17 -> -1 | X17: =Årsarbetsschema!Y17 -> 5 | Y17: =Årsarbetsschema!Z17 -> 5 | Z17: =Årsarbetsschema!AA17 -> 1 | AA17: =Årsarbetsschema!AB17 -> 3 | AB17: =Årsarbetsschema!AC17 -> 6 | AD17: =Årsarbetsschema!C17 -> 0.2916666667 | AE17: =Årsarbetsschema!D17 -> 0 | AF17: =Årsarbetsschema!E17 -> 0.2916666667 | AG17: =Årsarbetsschema!F17 -> 0.2916666667 | AH17: =Årsarbetsschema!G17 -> 0 | AJ17: =Årsarbetsschema!I17 -> 0.2916666667 | AK17: =Årsarbetsschema!J17 -> 0.2916666667 | AL17: =Årsarbetsschema!K17 -> 0.2916666667 | AM17: =Årsarbetsschema!L17 -> 0.2916666667 | AN17: =Årsarbetsschema!M17 -> 0.2916666667 | AO17: =Årsarbetsschema!N17 -> 0
B18: 13 | C18: =Aug!$I16 -> 00:00:00 | D18: =Sept!$I16 -> 00:00:00 | E18: =Okt!$I16 -> 00:00:00 | F18: =Nov!$I16 -> 00:00:00 | G18: =Dec!$I16 -> 00:00:00 | I18: =Jan!$I16 -> 00:00:00 | J18: =Feb!$I16 -> 00:00:00 | K18: =Mars!$I16 -> 00:00:00 | L18: =April!$I16 -> 00:00:00 | M18: =Maj!$I16 -> 00:00:00 | N18: =Juni!$I16 -> 00:00:00 | R18: =Årsarbetsschema!R18 -> -1 | S18: =Årsarbetsschema!S18 -> 7 | T18: =Årsarbetsschema!T18 -> 2 | U18: =Årsarbetsschema!U18 -> 5 | V18: =Årsarbetsschema!V18 -> 7 | W18: =Årsarbetsschema!X18 -> 3 | X18: =Årsarbetsschema!Y18 -> 6 | Y18: =Årsarbetsschema!Z18 -> 6 | Z18: =Årsarbetsschema!AA18 -> 2 | AA18: =Årsarbetsschema!AB18 -> 4 | AB18: =Årsarbetsschema!AC18 -> 7 | AD18: =Årsarbetsschema!C18 -> 0.2916666667 | AE18: =Årsarbetsschema!D18 -> 0 | AF18: =Årsarbetsschema!E18 -> 0.2916666667 | AG18: =Årsarbetsschema!F18 -> 0.2916666667 | AH18: =Årsarbetsschema!G18 -> 0 | AJ18: =Årsarbetsschema!I18 -> 0.2916666667 | AK18: =Årsarbetsschema!J18 -> 0 | AL18: =Årsarbetsschema!K18 -> 0 | AM18: =Årsarbetsschema!L18 -> 0.2916666667 | AN18: =Årsarbetsschema!M18 -> 0.2916666667 | AO18: =Årsarbetsschema!N18 -> 0
B19: 14 | C19: =Aug!$I17 -> 00:00:00 | D19: =Sept!$I17 -> 00:00:00 | E19: =Okt!$I17 -> 00:00:00 | F19: =Nov!$I17 -> 00:00:00 | G19: =Dec!$I17 -> 00:00:00 | I19: =Jan!$I17 -> 00:00:00 | J19: =Feb!$I17 -> 00:00:00 | K19: =Mars!$I17 -> 00:00:00 | L19: =April!$I17 -> 00:00:00 | M19: =Maj!$I17 -> 00:00:00 | N19: =Juni!$I17 -> 00:00:00 | R19: =Årsarbetsschema!R19 -> -1 | S19: =Årsarbetsschema!S19 -> 1 | T19: =Årsarbetsschema!T19 -> 3 | U19: =Årsarbetsschema!U19 -> 6 | V19: =Årsarbetsschema!V19 -> 1 | W19: =Årsarbetsschema!X19 -> 4 | X19: =Årsarbetsschema!Y19 -> 7 | Y19: =Årsarbetsschema!Z19 -> 7 | Z19: =Årsarbetsschema!AA19 -> 3 | AA19: =Årsarbetsschema!AB19 -> 5 | AB19: =Årsarbetsschema!AC19 -> -1 | AD19: =Årsarbetsschema!C19 -> 0.2916666667 | AE19: =Årsarbetsschema!D19 -> 0.2916666667 | AF19: =Årsarbetsschema!E19 -> 0.2916666667 | AG19: =Årsarbetsschema!F19 -> 0 | AH19: =Årsarbetsschema!G19 -> 0.2916666667 | AJ19: =Årsarbetsschema!I19 -> 0.2916666667 | AK19: =Årsarbetsschema!J19 -> 0 | AL19: =Årsarbetsschema!K19 -> 0 | AM19: =Årsarbetsschema!L19 -> 0.2916666667 | AN19: =Årsarbetsschema!M19 -> 0.2916666667 | AO19: =Årsarbetsschema!N19 -> 0.2916666667
B20: 15 | C20: =Aug!$I18 -> 00:00:00 | D20: =Sept!$I18 -> 00:00:00 | E20: =Okt!$I18 -> 00:00:00 | F20: =Nov!$I18 -> 00:00:00 | G20: =Dec!$I18 -> 00:00:00 | I20: =Jan!$I18 -> 00:00:00 | J20: =Feb!$I18 -> 00:00:00 | K20: =Mars!$I18 -> 00:00:00 | L20: =April!$I18 -> 00:00:00 | M20: =Maj!$I18 -> 00:00:00 | N20: =Juni!$I18 -> 00:00:00 | R20: =Årsarbetsschema!R20 -> 6 | S20: =Årsarbetsschema!S20 -> 2 | T20: =Årsarbetsschema!T20 -> 4 | U20: =Årsarbetsschema!U20 -> 7 | V20: =Årsarbetsschema!V20 -> 2 | W20: =Årsarbetsschema!X20 -> 5 | X20: =Årsarbetsschema!Y20 -> 1 | Y20: =Årsarbetsschema!Z20 -> 1 | Z20: =Årsarbetsschema!AA20 -> 4 | AA20: =Årsarbetsschema!AB20 -> 6 | AB20: =Årsarbetsschema!AC20 -> -1 | AD20: =Årsarbetsschema!C20 -> 0 | AE20: =Årsarbetsschema!D20 -> 0.2916666667 | AF20: =Årsarbetsschema!E20 -> 0.2916666667 | AG20: =Årsarbetsschema!F20 -> 0 | AH20: =Årsarbetsschema!G20 -> 0.2916666667 | AJ20: =Årsarbetsschema!I20 -> 0.2916666667 | AK20: =Årsarbetsschema!J20 -> 0.2916666667 | AL20: =Årsarbetsschema!K20 -> 0.2916666667 | AM20: =Årsarbetsschema!L20 -> 0.2916666667 | AN20: =Årsarbetsschema!M20 -> 0 | AO20: =Årsarbetsschema!N20 -> 0.2916666667
B21: 16 | C21: =Aug!$I19 -> 00:00:00 | D21: =Sept!$I19 -> 00:00:00 | E21: =Okt!$I19 -> 00:00:00 | F21: =Nov!$I19 -> 00:00:00 | G21: =Dec!$I19 -> 00:00:00 | I21: =Jan!$I19 -> 00:00:00 | J21: =Feb!$I19 -> 00:00:00 | K21: =Mars!$I19 -> 00:00:00 | L21: =April!$I19 -> 00:00:00 | M21: =Maj!$I19 -> 00:00:00 | N21: =Juni!$I19 -> 00:00:00 | R21: =Årsarbetsschema!R21 -> 7 | S21: =Årsarbetsschema!S21 -> 3 | T21: =Årsarbetsschema!T21 -> 5 | U21: =Årsarbetsschema!U21 -> 1 | V21: =Årsarbetsschema!V21 -> 3 | W21: =Årsarbetsschema!X21 -> 6 | X21: =Årsarbetsschema!Y21 -> 2 | Y21: =Årsarbetsschema!Z21 -> 2 | Z21: =Årsarbetsschema!AA21 -> 5 | AA21: =Årsarbetsschema!AB21 -> 7 | AB21: =Årsarbetsschema!AC21 -> -1 | AD21: =Årsarbetsschema!C21 -> 0 | AE21: =Årsarbetsschema!D21 -> 0.2916666667 | AF21: =Årsarbetsschema!E21 -> 0.2916666667 | AG21: =Årsarbetsschema!F21 -> 0.2916666667 | AH21: =Årsarbetsschema!G21 -> 0.2916666667 | AJ21: =Årsarbetsschema!I21 -> 0 | AK21: =Årsarbetsschema!J21 -> 0.2916666667 | AL21: =Årsarbetsschema!K21 -> 0.2916666667 | AM21: =Årsarbetsschema!L21 -> 0.2916666667 | AN21: =Årsarbetsschema!M21 -> 0 | AO21: =Årsarbetsschema!N21 -> 0.2916666667
B22: 17 | C22: =Aug!$I20 -> 00:00:00 | D22: =Sept!$I20 -> 00:00:00 | E22: =Okt!$I20 -> 00:00:00 | F22: =Nov!$I20 -> 00:00:00 | G22: =Dec!$I20 -> 00:00:00 | I22: =Jan!$I20 -> 00:00:00 | J22: =Feb!$I20 -> 00:00:00 | K22: =Mars!$I20 -> 00:00:00 | L22: =April!$I20 -> 00:00:00 | M22: =Maj!$I20 -> 00:00:00 | N22: =Juni!$I20 -> 00:00:00 | R22: =Årsarbetsschema!R22 -> -1 | S22: =Årsarbetsschema!S22 -> 4 | T22: =Årsarbetsschema!T22 -> 6 | U22: =Årsarbetsschema!U22 -> 2 | V22: =Årsarbetsschema!V22 -> 4 | W22: =Årsarbetsschema!X22 -> 7 | X22: =Årsarbetsschema!Y22 -> 3 | Y22: =Årsarbetsschema!Z22 -> 3 | Z22: =Årsarbetsschema!AA22 -> 6 | AA22: =Årsarbetsschema!AB22 -> 1 | AB22: =Årsarbetsschema!AC22 -> 6 | AD22: =Årsarbetsschema!C22 -> 0.2916666667 | AE22: =Årsarbetsschema!D22 -> 0.2916666667 | AF22: =Årsarbetsschema!E22 -> 0 | AG22: =Årsarbetsschema!F22 -> 0.2916666667 | AH22: =Årsarbetsschema!G22 -> 0.2916666667 | AJ22: =Årsarbetsschema!I22 -> 0 | AK22: =Årsarbetsschema!J22 -> 0.2916666667 | AL22: =Årsarbetsschema!K22 -> 0.2916666667 | AM22: =Årsarbetsschema!L22 -> 0 | AN22: =Årsarbetsschema!M22 -> 0.2916666667 | AO22: =Årsarbetsschema!N22 -> 0
B23: 18 | C23: =Aug!$I21 -> 00:00:00 | D23: =Sept!$I21 -> 00:00:00 | E23: =Okt!$I21 -> 00:00:00 | F23: =Nov!$I21 -> 00:00:00 | G23: =Dec!$I21 -> 00:00:00 | I23: =Jan!$I21 -> 00:00:00 | J23: =Feb!$I21 -> 00:00:00 | K23: =Mars!$I21 -> 00:00:00 | L23: =April!$I21 -> 00:00:00 | M23: =Maj!$I21 -> 00:00:00 | N23: =Juni!$I21 -> 00:00:00 | R23: =Årsarbetsschema!R23 -> 2 | S23: =Årsarbetsschema!S23 -> 5 | T23: =Årsarbetsschema!T23 -> 7 | U23: =Årsarbetsschema!U23 -> 3 | V23: =Årsarbetsschema!V23 -> 5 | W23: =Årsarbetsschema!X23 -> 1 | X23: =Årsarbetsschema!Y23 -> 4 | Y23: =Årsarbetsschema!Z23 -> 4 | Z23: =Årsarbetsschema!AA23 -> 7 | AA23: =Årsarbetsschema!AB23 -> 2 | AB23: =Årsarbetsschema!AC23 -> 6 | AD23: =Årsarbetsschema!C23 -> 0.2916666667 | AE23: =Årsarbetsschema!D23 -> 0.2916666667 | AF23: =Årsarbetsschema!E23 -> 0 | AG23: =Årsarbetsschema!F23 -> 0.2916666667 | AH23: =Årsarbetsschema!G23 -> 0.2916666667 | AJ23: =Årsarbetsschema!I23 -> 0.2916666667 | AK23: =Årsarbetsschema!J23 -> 0.2916666667 | AL23: =Årsarbetsschema!K23 -> 0.2916666667 | AM23: =Årsarbetsschema!L23 -> 0 | AN23: =Årsarbetsschema!M23 -> 0.2916666667 | AO23: =Årsarbetsschema!N23 -> 0
B24: 19 | C24: =Aug!$I22 -> 00:00:00 | D24: =Sept!$I22 -> 00:00:00 | E24: =Okt!$I22 -> 00:00:00 | F24: =Nov!$I22 -> 00:00:00 | G24: =Dec!$I22 -> 00:00:00 | I24: =Jan!$I22 -> 00:00:00 | J24: =Feb!$I22 -> 00:00:00 | K24: =Mars!$I22 -> 00:00:00 | L24: =April!$I22 -> 00:00:00 | M24: =Maj!$I22 -> 00:00:00 | N24: =Juni!$I22 -> 00:00:00 | R24: =Årsarbetsschema!R24 -> 3 | S24: =Årsarbetsschema!S24 -> 6 | T24: =Årsarbetsschema!T24 -> 1 | U24: =Årsarbetsschema!U24 -> 4 | V24: =Årsarbetsschema!V24 -> 6 | W24: =Årsarbetsschema!X24 -> 2 | X24: =Årsarbetsschema!Y24 -> 5 | Y24: =Årsarbetsschema!Z24 -> 5 | Z24: =Årsarbetsschema!AA24 -> 1 | AA24: =Årsarbetsschema!AB24 -> 3 | AB24: =Årsarbetsschema!AC24 -> 6 | AD24: =Årsarbetsschema!C24 -> 0.2916666667 | AE24: =Årsarbetsschema!D24 -> 0 | AF24: =Årsarbetsschema!E24 -> 0.2916666667 | AG24: =Årsarbetsschema!F24 -> 0.2916666667 | AH24: =Årsarbetsschema!G24 -> 0 | AJ24: =Årsarbetsschema!I24 -> 0.2916666667 | AK24: =Årsarbetsschema!J24 -> 0.2916666667 | AL24: =Årsarbetsschema!K24 -> 0.2916666667 | AM24: =Årsarbetsschema!L24 -> 0.2916666667 | AN24: =Årsarbetsschema!M24 -> 0.2916666667 | AO24: =Årsarbetsschema!N24 -> 0
B25: 20 | C25: =Aug!$I23 -> 00:00:00 | D25: =Sept!$I23 -> 00:00:00 | E25: =Okt!$I23 -> 00:00:00 | F25: =Nov!$I23 -> 00:00:00 | G25: =Dec!$I23 -> 00:00:00 | I25: =Jan!$I23 -> 00:00:00 | J25: =Feb!$I23 -> 00:00:00 | K25: =Mars!$I23 -> 00:00:00 | L25: =April!$I23 -> 00:00:00 | M25: =Maj!$I23 -> 00:00:00 | N25: =Juni!$I23 -> 00:00:00 | R25: =Årsarbetsschema!R25 -> 4 | S25: =Årsarbetsschema!S25 -> 7 | T25: =Årsarbetsschema!T25 -> 2 | U25: =Årsarbetsschema!U25 -> 5 | V25: =Årsarbetsschema!V25 -> 7 | W25: =Årsarbetsschema!X25 -> 3 | X25: =Årsarbetsschema!Y25 -> 6 | Y25: =Årsarbetsschema!Z25 -> 6 | Z25: =Årsarbetsschema!AA25 -> 2 | AA25: =Årsarbetsschema!AB25 -> 4 | AB25: =Årsarbetsschema!AC25 -> 7 | AD25: =Årsarbetsschema!C25 -> 0.2916666667 | AE25: =Årsarbetsschema!D25 -> 0 | AF25: =Årsarbetsschema!E25 -> 0.2916666667 | AG25: =Årsarbetsschema!F25 -> 0.2916666667 | AH25: =Årsarbetsschema!G25 -> 0 | AJ25: =Årsarbetsschema!I25 -> 0.2916666667 | AK25: =Årsarbetsschema!J25 -> 0 | AL25: =Årsarbetsschema!K25 -> 0 | AM25: =Årsarbetsschema!L25 -> 0.2916666667 | AN25: =Årsarbetsschema!M25 -> 0.2916666667 | AO25: =Årsarbetsschema!N25 -> 0
B26: 21 | C26: =Aug!$I24 -> 00:00:00 | D26: =Sept!$I24 -> 00:00:00 | E26: =Okt!$I24 -> 00:00:00 | F26: =Nov!$I24 -> 00:00:00 | G26: =Dec!$I24 -> 00:00:00 | I26: =Jan!$I24 -> 00:00:00 | J26: =Feb!$I24 -> 00:00:00 | K26: =Mars!$I24 -> 00:00:00 | L26: =April!$I24 -> 00:00:00 | M26: =Maj!$I24 -> 00:00:00 | N26: =Juni!$I24 -> 00:00:00 | R26: =Årsarbetsschema!R26 -> 5 | S26: =Årsarbetsschema!S26 -> 1 | T26: =Årsarbetsschema!T26 -> 3 | U26: =Årsarbetsschema!U26 -> 6 | V26: =Årsarbetsschema!V26 -> 1 | W26: =Årsarbetsschema!X26 -> 4 | X26: =Årsarbetsschema!Y26 -> 7 | Y26: =Årsarbetsschema!Z26 -> 7 | Z26: =Årsarbetsschema!AA26 -> 3 | AA26: =Årsarbetsschema!AB26 -> 5 | AB26: =Årsarbetsschema!AC26 -> 6 | AD26: =Årsarbetsschema!C26 -> 0.2916666667 | AE26: =Årsarbetsschema!D26 -> 0.2916666667 | AF26: =Årsarbetsschema!E26 -> 0.2916666667 | AG26: =Årsarbetsschema!F26 -> 0 | AH26: =Årsarbetsschema!G26 -> 0.2916666667 | AJ26: =Årsarbetsschema!I26 -> 0.2916666667 | AK26: =Årsarbetsschema!J26 -> 0 | AL26: =Årsarbetsschema!K26 -> 0 | AM26: =Årsarbetsschema!L26 -> 0.2916666667 | AN26: =Årsarbetsschema!M26 -> 0.2916666667 | AO26: =Årsarbetsschema!N26 -> 0
B27: 22 | C27: =Aug!$I25 -> 00:00:00 | D27: =Sept!$I25 -> 00:00:00 | E27: =Okt!$I25 -> 00:00:00 | F27: =Nov!$I25 -> 00:00:00 | G27: =Dec!$I25 -> 00:00:00 | I27: =Jan!$I25 -> 00:00:00 | J27: =Feb!$I25 -> 00:00:00 | K27: =Mars!$I25 -> 00:00:00 | L27: =April!$I25 -> 00:00:00 | M27: =Maj!$I25 -> 00:00:00 | N27: =Juni!$I25 -> 00:00:00 | R27: =Årsarbetsschema!R27 -> 6 | S27: =Årsarbetsschema!S27 -> 2 | T27: =Årsarbetsschema!T27 -> 4 | U27: =Årsarbetsschema!U27 -> 7 | V27: =Årsarbetsschema!V27 -> 2 | W27: =Årsarbetsschema!X27 -> 5 | X27: =Årsarbetsschema!Y27 -> 6 | Y27: =Årsarbetsschema!Z27 -> 1 | Z27: =Årsarbetsschema!AA27 -> 4 | AA27: =Årsarbetsschema!AB27 -> 6 | AB27: =Årsarbetsschema!AC27 -> 6 | AD27: =Årsarbetsschema!C27 -> 0 | AE27: =Årsarbetsschema!D27 -> 0.2916666667 | AF27: =Årsarbetsschema!E27 -> 0.2916666667 | AG27: =Årsarbetsschema!F27 -> 0 | AH27: =Årsarbetsschema!G27 -> 0.2916666667 | AJ27: =Årsarbetsschema!I27 -> 0.2916666667 | AK27: =Årsarbetsschema!J27 -> 0 | AL27: =Årsarbetsschema!K27 -> 0.2916666667 | AM27: =Årsarbetsschema!L27 -> 0.2916666667 | AN27: =Årsarbetsschema!M27 -> 0 | AO27: =Årsarbetsschema!N27 -> 0
B28: 23 | C28: =Aug!$I26 -> 00:00:00 | D28: =Sept!$I26 -> 00:00:00 | E28: =Okt!$I26 -> 00:00:00 | F28: =Nov!$I26 -> 00:00:00 | G28: =Dec!$I26 -> 00:00:00 | I28: =Jan!$I26 -> 00:00:00 | J28: =Feb!$I26 -> 00:00:00 | K28: =Mars!$I26 -> 00:00:00 | L28: =April!$I26 -> 00:00:00 | M28: =Maj!$I26 -> 00:00:00 | N28: =Juni!$I26 -> 00:00:00 | R28: =Årsarbetsschema!R28 -> 7 | S28: =Årsarbetsschema!S28 -> 3 | T28: =Årsarbetsschema!T28 -> 5 | U28: =Årsarbetsschema!U28 -> 1 | V28: =Årsarbetsschema!V28 -> 6 | W28: =Årsarbetsschema!X28 -> 6 | X28: =Årsarbetsschema!Y28 -> 6 | Y28: =Årsarbetsschema!Z28 -> 2 | Z28: =Årsarbetsschema!AA28 -> 5 | AA28: =Årsarbetsschema!AB28 -> 7 | AB28: =Årsarbetsschema!AC28 -> 6 | AD28: =Årsarbetsschema!C28 -> 0 | AE28: =Årsarbetsschema!D28 -> 0.2916666667 | AF28: =Årsarbetsschema!E28 -> 0.2916666667 | AG28: =Årsarbetsschema!F28 -> 0.2916666667 | AH28: =Årsarbetsschema!G28 -> 0 | AJ28: =Årsarbetsschema!I28 -> 0 | AK28: =Årsarbetsschema!J28 -> 0 | AL28: =Årsarbetsschema!K28 -> 0.2916666667 | AM28: =Årsarbetsschema!L28 -> 0.2916666667 | AN28: =Årsarbetsschema!M28 -> 0 | AO28: =Årsarbetsschema!N28 -> 0
B29: 24 | C29: =Aug!$I27 -> 00:00:00 | D29: =Sept!$I27 -> 00:00:00 | E29: =Okt!$I27 -> 00:00:00 | F29: =Nov!$I27 -> 00:00:00 | G29: =Dec!$I27 -> 00:00:00 | I29: =Jan!$I27 -> 00:00:00 | J29: =Feb!$I27 -> 00:00:00 | K29: =Mars!$I27 -> 00:00:00 | L29: =April!$I27 -> 00:00:00 | M29: =Maj!$I27 -> 00:00:00 | N29: =Juni!$I27 -> 00:00:00 | R29: =Årsarbetsschema!R29 -> 1 | S29: =Årsarbetsschema!S29 -> 4 | T29: =Årsarbetsschema!T29 -> 6 | U29: =Årsarbetsschema!U29 -> 2 | V29: =Årsarbetsschema!V29 -> 6 | W29: =Årsarbetsschema!X29 -> 7 | X29: =Årsarbetsschema!Y29 -> 6 | Y29: =Årsarbetsschema!Z29 -> 3 | Z29: =Årsarbetsschema!AA29 -> 6 | AA29: =Årsarbetsschema!AB29 -> 1 | AB29: =Årsarbetsschema!AC29 -> 6 | AD29: =Årsarbetsschema!C29 -> 0.2916666667 | AE29: =Årsarbetsschema!D29 -> 0.2916666667 | AF29: =Årsarbetsschema!E29 -> 0 | AG29: =Årsarbetsschema!F29 -> 0.2916666667 | AH29: =Årsarbetsschema!G29 -> 0 | AJ29: =Årsarbetsschema!I29 -> 0 | AK29: =Årsarbetsschema!J29 -> 0 | AL29: =Årsarbetsschema!K29 -> 0.2916666667 | AM29: =Årsarbetsschema!L29 -> 0 | AN29: =Årsarbetsschema!M29 -> 0.2916666667 | AO29: =Årsarbetsschema!N29 -> 0
B30: 25 | C30: =Aug!$I28 -> 00:00:00 | D30: =Sept!$I28 -> 00:00:00 | E30: =Okt!$I28 -> 00:00:00 | F30: =Nov!$I28 -> 00:00:00 | G30: =Dec!$I28 -> 00:00:00 | I30: =Jan!$I28 -> 00:00:00 | J30: =Feb!$I28 -> 00:00:00 | K30: =Mars!$I28 -> 00:00:00 | L30: =April!$I28 -> 00:00:00 | M30: =Maj!$I28 -> 00:00:00 | N30: =Juni!$I28 -> 00:00:00 | R30: =Årsarbetsschema!R30 -> 2 | S30: =Årsarbetsschema!S30 -> -1 | T30: =Årsarbetsschema!T30 -> 7 | U30: =Årsarbetsschema!U30 -> 3 | V30: =Årsarbetsschema!V30 -> 6 | W30: =Årsarbetsschema!X30 -> 1 | X30: =Årsarbetsschema!Y30 -> 6 | Y30: =Årsarbetsschema!Z30 -> 4 | Z30: =Årsarbetsschema!AA30 -> 7 | AA30: =Årsarbetsschema!AB30 -> 2 | AB30: =Årsarbetsschema!AC30 -> 6 | AD30: =Årsarbetsschema!C30 -> 0.2916666667 | AE30: =Årsarbetsschema!D30 -> 0.2916666667 | AF30: =Årsarbetsschema!E30 -> 0 | AG30: =Årsarbetsschema!F30 -> 0.2916666667 | AH30: =Årsarbetsschema!G30 -> 0 | AJ30: =Årsarbetsschema!I30 -> 0.2916666667 | AK30: =Årsarbetsschema!J30 -> 0 | AL30: =Årsarbetsschema!K30 -> 0.2916666667 | AM30: =Årsarbetsschema!L30 -> 0 | AN30: =Årsarbetsschema!M30 -> 0.2916666667 | AO30: =Årsarbetsschema!N30 -> 0
B31: 26 | C31: =Aug!$I29 -> 00:00:00 | D31: =Sept!$I29 -> 00:00:00 | E31: =Okt!$I29 -> 00:00:00 | F31: =Nov!$I29 -> 00:00:00 | G31: =Dec!$I29 -> 00:00:00 | I31: =Jan!$I29 -> 00:00:00 | J31: =Feb!$I29 -> 00:00:00 | K31: =Mars!$I29 -> 00:00:00 | L31: =April!$I29 -> 00:00:00 | M31: =Maj!$I29 -> 00:00:00 | N31: =Juni!$I29 -> 00:00:00 | R31: =Årsarbetsschema!R31 -> 3 | S31: =Årsarbetsschema!S31 -> 6 | T31: =Årsarbetsschema!T31 -> -1 | U31: =Årsarbetsschema!U31 -> 4 | V31: =Årsarbetsschema!V31 -> 6 | W31: =Årsarbetsschema!X31 -> 2 | X31: =Årsarbetsschema!Y31 -> 6 | Y31: =Årsarbetsschema!Z31 -> 6 | Z31: =Årsarbetsschema!AA31 -> 1 | AA31: =Årsarbetsschema!AB31 -> 3 | AB31: =Årsarbetsschema!AC31 -> 6 | AD31: =Årsarbetsschema!C31 -> 0.2916666667 | AE31: =Årsarbetsschema!D31 -> 0 | AF31: =Årsarbetsschema!E31 -> 0.2916666667 | AG31: =Årsarbetsschema!F31 -> 0.2916666667 | AH31: =Årsarbetsschema!G31 -> 0 | AJ31: =Årsarbetsschema!I31 -> 0.2916666667 | AK31: =Årsarbetsschema!J31 -> 0 | AL31: =Årsarbetsschema!K31 -> 0 | AM31: =Årsarbetsschema!L31 -> 0.2916666667 | AN31: =Årsarbetsschema!M31 -> 0.2916666667 | AO31: =Årsarbetsschema!N31 -> 0
B32: 27 | C32: =Aug!$I30 -> 00:00:00 | D32: =Sept!$I30 -> 00:00:00 | E32: =Okt!$I30 -> 00:00:00 | F32: =Nov!$I30 -> 00:00:00 | G32: =Dec!$I30 -> 00:00:00 | I32: =Jan!$I30 -> 00:00:00 | J32: =Feb!$I30 -> 00:00:00 | K32: =Mars!$I30 -> 00:00:00 | L32: =April!$I30 -> 00:00:00 | M32: =Maj!$I30 -> 00:00:00 | N32: =Juni!$I30 -> 00:00:00 | R32: =Årsarbetsschema!R32 -> 4 | S32: =Årsarbetsschema!S32 -> 7 | T32: =Årsarbetsschema!T32 -> -1 | U32: =Årsarbetsschema!U32 -> 5 | V32: =Årsarbetsschema!V32 -> 6 | W32: =Årsarbetsschema!X32 -> 3 | X32: =Årsarbetsschema!Y32 -> 6 | Y32: =Årsarbetsschema!Z32 -> 6 | Z32: =Årsarbetsschema!AA32 -> 2 | AA32: =Årsarbetsschema!AB32 -> 4 | AB32: =Årsarbetsschema!AC32 -> 6 | AD32: =Årsarbetsschema!C32 -> 0.2916666667 | AE32: =Årsarbetsschema!D32 -> 0 | AF32: =Årsarbetsschema!E32 -> 0.2916666667 | AG32: =Årsarbetsschema!F32 -> 0.2916666667 | AH32: =Årsarbetsschema!G32 -> 0 | AJ32: =Årsarbetsschema!I32 -> 0.2916666667 | AK32: =Årsarbetsschema!J32 -> 0 | AL32: =Årsarbetsschema!K32 -> 0 | AM32: =Årsarbetsschema!L32 -> 0.2916666667 | AN32: =Årsarbetsschema!M32 -> 0.2916666667 | AO32: =Årsarbetsschema!N32 -> 0
B33: 28 | C33: =Aug!$I31 -> 00:00:00 | D33: =Sept!$I31 -> 00:00:00 | E33: =Okt!$I31 -> 00:00:00 | F33: =Nov!$I31 -> 00:00:00 | G33: =Dec!$I31 -> 00:00:00 | I33: =Jan!$I31 -> 00:00:00 | J33: =Feb!$I31 -> 00:00:00 | K33: =Mars!$I31 -> 00:00:00 | L33: =April!$I31 -> 00:00:00 | M33: =Maj!$I31 -> 00:00:00 | N33: =Juni!$I31 -> 00:00:00 | R33: =Årsarbetsschema!R33 -> 5 | S33: =Årsarbetsschema!S33 -> 1 | T33: =Årsarbetsschema!T33 -> -1 | U33: =Årsarbetsschema!U33 -> 6 | V33: =Årsarbetsschema!V33 -> 6 | W33: =Årsarbetsschema!X33 -> 4 | X33: =Årsarbetsschema!Y33 -> 7 | Y33: =Årsarbetsschema!Z33 -> 7 | Z33: =Årsarbetsschema!AA33 -> 3 | AA33: =Årsarbetsschema!AB33 -> 5 | AB33: =Årsarbetsschema!AC33 -> 6 | AD33: =Årsarbetsschema!C33 -> 0.2916666667 | AE33: =Årsarbetsschema!D33 -> 0.2916666667 | AF33: =Årsarbetsschema!E33 -> 0.2916666667 | AG33: =Årsarbetsschema!F33 -> 0 | AH33: =Årsarbetsschema!G33 -> 0 | AJ33: =Årsarbetsschema!I33 -> 0.2916666667 | AK33: =Årsarbetsschema!J33 -> 0 | AL33: =Årsarbetsschema!K33 -> 0 | AM33: =Årsarbetsschema!L33 -> 0.2916666667 | AN33: =Årsarbetsschema!M33 -> 0.2916666667 | AO33: =Årsarbetsschema!N33 -> 0
B34: 29 | C34: =Aug!$I32 -> 00:00:00 | D34: =Sept!$I32 -> 00:00:00 | E34: =Okt!$I32 -> 00:00:00 | F34: =Nov!$I32 -> 00:00:00 | G34: =Dec!$I32 -> 00:00:00 | I34: =Jan!$I32 -> 00:00:00 | J34: =Feb!$I32 -> 00:00:00 | K34: =Mars!$I32 -> 00:00:00 | L34: =April!$I32 -> 00:00:00 | M34: =Maj!$I32 -> 00:00:00 | N34: =Juni!$I32 -> 00:00:00 | R34: =Årsarbetsschema!R34 -> 6 | S34: =Årsarbetsschema!S34 -> 2 | T34: =Årsarbetsschema!T34 -> 6 | U34: =Årsarbetsschema!U34 -> 7 | V34: =Årsarbetsschema!V34 -> 6 | W34: =Årsarbetsschema!X34 -> 5 | Y34: =Årsarbetsschema!Z34 -> 6 | Z34: =Årsarbetsschema!AA34 -> 4 | AA34: =Årsarbetsschema!AB34 -> 6 | AB34: =Årsarbetsschema!AC34 -> 6 | AD34: =Årsarbetsschema!C34 -> 0 | AE34: =Årsarbetsschema!D34 -> 0.2916666667 | AF34: =Årsarbetsschema!E34 -> 0 | AG34: =Årsarbetsschema!F34 -> 0 | AH34: =Årsarbetsschema!G34 -> 0 | AJ34: =Årsarbetsschema!I34 -> 0.2916666667 | AK34: =Årsarbetsschema!J34 -> 0 | AL34: =Årsarbetsschema!K34 -> 0 | AM34: =Årsarbetsschema!L34 -> 0.2916666667 | AN34: =Årsarbetsschema!M34 -> 0 | AO34: =Årsarbetsschema!N34 -> 0
B35: 30 | C35: =Aug!$I33 -> 00:00:00 | D35: =Sept!$I33 -> 00:00:00 | E35: =Okt!$I33 -> 00:00:00 | F35: =Nov!$I33 -> 00:00:00 | G35: =Dec!$I33 -> 00:00:00 | I35: =Jan!$I33 -> 00:00:00 | K35: =Mars!$I33 -> 00:00:00 | L35: =April!$I33 -> 00:00:00 | M35: =Maj!$I33 -> 00:00:00 | N35: =Juni!$I33 -> 00:00:00 | R35: =Årsarbetsschema!R35 -> 7 | S35: =Årsarbetsschema!S35 -> 3 | T35: =Årsarbetsschema!T35 -> 6 | U35: =Årsarbetsschema!U35 -> 1 | V35: =Årsarbetsschema!V35 -> 6 | W35: =Årsarbetsschema!X35 -> 6 | Y35: =Årsarbetsschema!Z35 -> 6 | Z35: =Årsarbetsschema!AA35 -> 6 | AA35: =Årsarbetsschema!AB35 -> 7 | AB35: =Årsarbetsschema!AC35 -> 6 | AD35: =Årsarbetsschema!C35 -> 0 | AE35: =Årsarbetsschema!D35 -> 0.2916666667 | AF35: =Årsarbetsschema!E35 -> 0 | AG35: =Årsarbetsschema!F35 -> 0.2916666667 | AH35: =Årsarbetsschema!G35 -> 0 | AJ35: =Årsarbetsschema!I35 -> 0 | AL35: =Årsarbetsschema!K35 -> 0 | AM35: =Årsarbetsschema!L35 -> 0 | AN35: =Årsarbetsschema!M35 -> 0 | AO35: =Årsarbetsschema!N35 -> 0
B36: 31 | C36: =Aug!$I34 -> 00:00:00 | E36: =Okt!$I34 -> 00:00:00 | G36: =Dec!$I34 -> 00:00:00 | I36: =Jan!$I34 -> 00:00:00 | K36: =Mars!$I34 -> 00:00:00 | M36: =Maj!$I34 -> 00:00:00 | R36: =Årsarbetsschema!R36 -> 1 | T36: =Årsarbetsschema!T36 -> 6 | V36: =Årsarbetsschema!V36 -> 6 | W36: =Årsarbetsschema!X36 -> 7 | Y36: =Årsarbetsschema!Z36 -> 6 | AA36: =Årsarbetsschema!AB36 -> 1 | AD36: =Årsarbetsschema!C36 -> 0.2916666667 | AF36: =Årsarbetsschema!E36 -> 0 | AH36: =Årsarbetsschema!G36 -> 0 | AJ36: =Årsarbetsschema!I36 -> 0 | AL36: =Årsarbetsschema!K36 -> 0 | AN36: =Årsarbetsschema!M36 -> 0.2916666667
B38: Arbetat | C38: =SUM(C6:C36)*24 -> 0 | D38: =SUM(D6:D36)*24 -> 0 | E38: 0 | F38: 0 | G38: 0 | I38: =SUM(I6:I36)*24 -> 0 | J38: =SUM(J6:J34)*24 -> 0 | K38: =SUM(K6:K36)*24 -> 0 | L38: =SUM(L6:L36)*24 -> 0 | M38: =SUM(M6:M36)*24 -> 0 | N38: =SUM(N6:N36)*24 -> 0 | O38: =SUM(C38:G38)+SUM(I38:N38) -> 0
B39: Planerat | C39: =Årsarbetsschema!C38 -> 112 | D39: =Årsarbetsschema!D38 -> 154 | E39: =Årsarbetsschema!E38 -> 140 | F39: =Årsarbetsschema!F38 -> 147 | G39: =Årsarbetsschema!G38 -> 112 | I39: =Årsarbetsschema!I38 -> 105 | J39: =Årsarbetsschema!J38 -> 105 | K39: =Årsarbetsschema!K38 -> 133 | L39: =Årsarbetsschema!L38 -> 133 | M39: =Årsarbetsschema!M38 -> 133 | N39: =Årsarbetsschema!N38 -> 84 | O39: =SUM(C39:N39) -> 1358
O40: =O38-O39 -> -1358
B42: Förtroendetid | C42: =Aug!K35*24 -> 0 | D42: =Sept!K35*24 -> 0 | E42: =Okt!K35*24 -> 0 | F42: =Nov!K35*24 -> 0 | G42: =Dec!K35*24 -> 0 | I42: =Jan!K35*24 -> 0 | J42: =Feb!K35*24 -> 0 | K42: =Mars!K35*24 -> 0 | L42: =April!K35*24 -> 0 | M42: =Maj!K35*24 -> 0 | N42: =Juni!K35*24 -> 0 | O42: =SUM(C42:G42:I42:N42) -> 0
AD43: =Aug!C4 -> 0 | AE43: =Sept!C4 -> 0 | AF43: =Okt!C4 -> 0 | AG43: =Nov!C4 -> 0 | AH43: =Dec!C4 -> 0 | AJ43: =Jan!C4 -> 0 | AK43: =Feb!C4 -> 0 | AL43: =Mars!C4 -> 0 | AM43: =April!C4 -> 0 | AN43: =Maj!C4 -> 0 | AO43: =Juni!C4 -> 0
AD44: =Aug!C5 -> 0 | AE44: =Sept!C5 -> 0 | AF44: =Okt!C5 -> 0 | AG44: =Nov!C5 -> 0 | AH44: =Dec!C5 -> 0 | AJ44: =Jan!C5 -> 0 | AK44: =Feb!C5 -> 0 | AL44: =Mars!C5 -> 0 | AM44: =April!C5 -> 0 | AN44: =Maj!C5 -> 0 | AO44: =Juni!C5 -> 0
M45: Kompetensutvecklingsdagar | N45: =COUNTIF(R5:AB37,"-1") -> 16 | AD45: =Aug!C6 -> 0 | AE45: =Sept!C6 -> 0 | AF45: =Okt!C6 -> 0 | AG45: =Nov!C6 -> 0 | AH45: =Dec!C6 -> 0 | AJ45: =Jan!C6 -> 0 | AK45: =Feb!C6 -> 0 | AL45: =Mars!C6 -> 0 | AM45: =April!C6 -> 0 | AN45: =Maj!C6 -> 0 | AO45: =Juni!C6 -> 0
C46: =Uppgifter!C6 -> 0 | M46: Arbetat mer än planerat | AD46: =Aug!C7 -> 0 | AE46: =Sept!C7 -> 0 | AF46: =Okt!C7 -> 0 | AG46: =Nov!C7 -> 0 | AH46: =Dec!C7 -> 0 | AJ46: =Jan!C7 -> 0 | AK46: =Feb!C7 -> 0 | AL46: =Mars!C7 -> 0 | AM46: =April!C7 -> 0 | AN46: =Maj!C7 -> 0 | AO46: =Juni!C7 -> 0
C47: Namn | M47: Arbetat mindre än planerat | AD47: =Aug!C8 -> 0 | AE47: =Sept!C8 -> 0 | AF47: =Okt!C8 -> 0 | AG47: =Nov!C8 -> 0 | AH47: =Dec!C8 -> 0 | AJ47: =Jan!C8 -> 0 | AK47: =Feb!C8 -> 0 | AL47: =Mars!C8 -> 0 | AM47: =April!C8 -> 0 | AN47: =Maj!C8 -> 0 | AO47: =Juni!C8 -> 0
AD48: =Aug!C9 -> 0 | AE48: =Sept!C9 -> 0 | AF48: =Okt!C9 -> 0 | AG48: =Nov!C9 -> 0 | AH48: =Dec!C9 -> 0 | AJ48: =Jan!C9 -> 0 | AK48: =Feb!C9 -> 0 | AL48: =Mars!C9 -> 0 | AM48: =April!C9 -> 0 | AN48: =Maj!C9 -> 0 | AO48: =Juni!C9 -> 0
AD49: =Aug!C10 -> 0 | AE49: =Sept!C10 -> 0 | AF49: =Okt!C10 -> 0 | AG49: =Nov!C10 -> 0 | AH49: =Dec!C10 -> 0 | AJ49: =Jan!C10 -> 0 | AK49: =Feb!C10 -> 0 | AL49: =Mars!C10 -> 0 | AM49: =April!C10 -> 0 | AN49: =Maj!C10 -> 0 | AO49: =Juni!C10 -> 0
AD50: =Aug!C11 -> 0 | AE50: =Sept!C11 -> 0 | AF50: =Okt!C11 -> 0 | AG50: =Nov!C11 -> 0 | AH50: =Dec!C11 -> 0 | AJ50: =Jan!C11 -> 0 | AK50: =Feb!C11 -> 0 | AL50: =Mars!C11 -> 0 | AM50: =April!C11 -> 0 | AN50: =Maj!C11 -> 0 | AO50: =Juni!C11 -> 0
AD51: =Aug!C12 -> 0 | AE51: =Sept!C12 -> 0 | AF51: =Okt!C12 -> 0 | AG51: =Nov!C12 -> 0 | AH51: =Dec!C12 -> 0 | AJ51: =Jan!C12 -> 0 | AK51: =Feb!C12 -> 0 | AL51: =Mars!C12 -> 0 | AM51: =April!C12 -> 0 | AN51: =Maj!C12 -> 0 | AO51: =Juni!C12 -> 0
AD52: =Aug!C13 -> 0 | AE52: =Sept!C13 -> 0 | AF52: =Okt!C13 -> 0 | AG52: =Nov!C13 -> 0 | AH52: =Dec!C13 -> 0 | AJ52: =Jan!C13 -> 0 | AK52: =Feb!C13 -> 0 | AL52: =Mars!C13 -> 0 | AM52: =April!C13 -> 0 | AN52: =Maj!C13 -> 0 | AO52: =Juni!C13 -> 0
AD53: =Aug!C14 -> 0 | AE53: =Sept!C14 -> 0 | AF53: =Okt!C14 -> 0 | AG53: =Nov!C14 -> 0 | AH53: =Dec!C14 -> 0 | AJ53: =Jan!C14 -> 0 | AK53: =Feb!C14 -> 0 | AL53: =Mars!C14 -> 0 | AM53: =April!C14 -> 0 | AN53: =Maj!C14 -> 0 | AO53: =Juni!C14 -> 0
AD54: =Aug!C15 -> 0 | AE54: =Sept!C15 -> 0 | AF54: =Okt!C15 -> 0 | AG54: =Nov!C15 -> 0 | AH54: =Dec!C15 -> 0 | AJ54: =Jan!C15 -> 0 | AK54: =Feb!C15 -> 0 | AL54: =Mars!C15 -> 0 | AM54: =April!C15 -> 0 | AN54: =Maj!C15 -> 0 | AO54: =Juni!C15 -> 0
AD55: =Aug!C16 -> 0 | AE55: =Sept!C16 -> 0 | AF55: =Okt!C16 -> 0 | AG55: =Nov!C16 -> 0 | AH55: =Dec!C16 -> 0 | AJ55: =Jan!C16 -> 0 | AK55: =Feb!C16 -> 0 | AL55: =Mars!C16 -> 0 | AM55: =April!C16 -> 0 | AN55: =Maj!C16 -> 0 | AO55: =Juni!C16 -> 0
AD56: =Aug!C17 -> 0 | AE56: =Sept!C17 -> 0 | AF56: =Okt!C17 -> 0 | AG56: =Nov!C17 -> 0 | AH56: =Dec!C17 -> 0 | AJ56: =Jan!C17 -> 0 | AK56: =Feb!C17 -> 0 | AL56: =Mars!C17 -> 0 | AM56: =April!C17 -> 0 | AN56: =Maj!C17 -> 0 | AO56: =Juni!C17 -> 0
AD57: =Aug!C18 -> 0 | AE57: =Sept!C18 -> 0 | AF57: =Okt!C18 -> 0 | AG57: =Nov!C18 -> 0 | AH57: =Dec!C18 -> 0 | AJ57: =Jan!C18 -> 0 | AK57: =Feb!C18 -> 0 | AL57: =Mars!C18 -> 0 | AM57: =April!C18 -> 0 | AN57: =Maj!C18 -> 0 | AO57: =Juni!C18 -> 0
AD58: =Aug!C19 -> 0 | AE58: =Sept!C19 -> 0 | AF58: =Okt!C19 -> 0 | AG58: =Nov!C19 -> 0 | AH58: =Dec!C19 -> 0 | AJ58: =Jan!C19 -> 0 | AK58: =Feb!C19 -> 0 | AL58: =Mars!C19 -> 0 | AM58: =April!C19 -> 0 | AN58: =Maj!C19 -> 0 | AO58: =Juni!C19 -> 0
AD59: =Aug!C20 -> 0 | AE59: =Sept!C20 -> 0 | AF59: =Okt!C20 -> 0 | AG59: =Nov!C20 -> 0 | AH59: =Dec!C20 -> 0 | AJ59: =Jan!C20 -> 0 | AK59: =Feb!C20 -> 0 | AL59: =Mars!C20 -> 0 | AM59: =April!C20 -> 0 | AN59: =Maj!C20 -> 0 | AO59: =Juni!C20 -> 0
AD60: =Aug!C21 -> 0 | AE60: =Sept!C21 -> 0 | AF60: =Okt!C21 -> 0 | AG60: =Nov!C21 -> 0 | AH60: =Dec!C21 -> 0 | AJ60: =Jan!C21 -> 0 | AK60: =Feb!C21 -> 0 | AL60: =Mars!C21 -> 0 | AM60: =April!C21 -> 0 | AN60: =Maj!C21 -> 0 | AO60: =Juni!C21 -> 0
AD61: =Aug!C22 -> 0 | AE61: =Sept!C22 -> 0 | AF61: =Okt!C22 -> 0 | AG61: =Nov!C22 -> 0 | AH61: =Dec!C22 -> 0 | AJ61: =Jan!C22 -> 0 | AK61: =Feb!C22 -> 0 | AL61: =Mars!C22 -> 0 | AM61: =April!C22 -> 0 | AN61: =Maj!C22 -> 0 | AO61: =Juni!C22 -> 0
AD62: =Aug!C23 -> 0 | AE62: =Sept!C23 -> 0 | AF62: =Okt!C23 -> 0 | AG62: =Nov!C23 -> 0 | AH62: =Dec!C23 -> 0 | AJ62: =Jan!C23 -> 0 | AK62: =Feb!C23 -> 0 | AL62: =Mars!C23 -> 0 | AM62: =April!C23 -> 0 | AN62: =Maj!C23 -> 0 | AO62: =Juni!C23 -> 0
AD63: =Aug!C24 -> 0 | AE63: =Sept!C24 -> 0 | AF63: =Okt!C24 -> 0 | AG63: =Nov!C24 -> 0 | AH63: =Dec!C24 -> 0 | AJ63: =Jan!C24 -> 0 | AK63: =Feb!C24 -> 0 | AL63: =Mars!C24 -> 0 | AM63: =April!C24 -> 0 | AN63: =Maj!C24 -> 0 | AO63: =Juni!C24 -> 0
AD64: =Aug!C25 -> 0 | AE64: =Sept!C25 -> 0 | AF64: =Okt!C25 -> 0 | AG64: =Nov!C25 -> 0 | AH64: =Dec!C25 -> 0 | AJ64: =Jan!C25 -> 0 | AK64: =Feb!C25 -> 0 | AL64: =Mars!C25 -> 0 | AM64: =April!C25 -> 0 | AN64: =Maj!C25 -> 0 | AO64: =Juni!C25 -> 0
AD65: =Aug!C26 -> 0 | AE65: =Sept!C26 -> 0 | AF65: =Okt!C26 -> 0 | AG65: =Nov!C26 -> 0 | AH65: =Dec!C26 -> 0 | AJ65: =Jan!C26 -> 0 | AK65: =Feb!C26 -> 0 | AL65: =Mars!C26 -> 0 | AM65: =April!C26 -> 0 | AN65: =Maj!C26 -> 0 | AO65: =Juni!C26 -> 0
AD66: =Aug!C27 -> 0 | AE66: =Sept!C27 -> 0 | AF66: =Okt!C27 -> 0 | AG66: =Nov!C27 -> 0 | AH66: =Dec!C27 -> 0 | AJ66: =Jan!C27 -> 0 | AK66: =Feb!C27 -> 0 | AL66: =Mars!C27 -> 0 | AM66: =April!C27 -> 0 | AN66: =Maj!C27 -> 0 | AO66: =Juni!C27 -> 0
AD67: =Aug!C28 -> 0 | AE67: =Sept!C28 -> 0 | AF67: =Okt!C28 -> 0 | AG67: =Nov!C28 -> 0 | AH67: =Dec!C28 -> 0 | AJ67: =Jan!C28 -> 0 | AK67: =Feb!C28 -> 0 | AL67: =Mars!C28 -> 0 | AM67: =April!C28 -> 0 | AN67: =Maj!C28 -> 0 | AO67: =Juni!C28 -> 0
AD68: =Aug!C29 -> 0 | AE68: =Sept!C29 -> 0 | AF68: =Okt!C29 -> 0 | AG68: =Nov!C29 -> 0 | AH68: =Dec!C29 -> 0 | AJ68: =Jan!C29 -> 0 | AK68: =Feb!C29 -> 0 | AL68: =Mars!C29 -> 0 | AM68: =April!C29 -> 0 | AN68: =Maj!C29 -> 0 | AO68: =Juni!C29 -> 0
AD69: =Aug!C30 -> 0 | AE69: =Sept!C30 -> 0 | AF69: =Okt!C30 -> 0 | AG69: =Nov!C30 -> 0 | AH69: =Dec!C30 -> 0 | AJ69: =Jan!C30 -> 0 | AK69: =Feb!C30 -> 0 | AL69: =Mars!C30 -> 0 | AM69: =April!C30 -> 0 | AN69: =Maj!C30 -> 0 | AO69: =Juni!C30 -> 0
AD70: =Aug!C31 -> 0 | AE70: =Sept!C31 -> 0 | AF70: =Okt!C31 -> 0 | AG70: =Nov!C31 -> 0 | AH70: =Dec!C31 -> 0 | AJ70: =Jan!C31 -> 0 | AK70: =Feb!C31 -> 0 | AL70: =Mars!C31 -> 0 | AM70: =April!C31 -> 0 | AN70: =Maj!C31 -> 0 | AO70: =Juni!C31 -> 0
AD71: =Aug!C32 -> 0 | AE71: =Sept!C32 -> 0 | AF71: =Okt!C32 -> 0 | AG71: =Nov!C32 -> 0 | AH71: =Dec!C32 -> 0 | AJ71: =Jan!C32 -> 0 | AK71: =Feb!C32 -> 0 | AL71: =Mars!C32 -> 0 | AM71: =April!C32 -> 0 | AN71: =Maj!C32 -> 0 | AO71: =Juni!C32 -> 0
AD72: =Aug!C33 -> 0 | AE72: =Sept!C33 -> 0 | AF72: =Okt!C33 -> 0 | AG72: =Nov!C33 -> 0 | AH72: =Dec!C33 -> 0 | AJ72: =Jan!C33 -> 0 | AK72: =Feb!C33 -> 0 | AL72: =Mars!C33 -> 0 | AM72: =April!C33 -> 0 | AN72: =Maj!C33 -> 0 | AO72: =Juni!C33 -> 0
AD73: =Aug!C34 -> 0 | AE73: =Sept!C34 -> 0 | AF73: =Okt!C34 -> 0 | AG73: =Nov!C34 -> 0 | AH73: =Dec!C34 -> 0 | AJ73: =Jan!C34 -> 0 | AK73: =Feb!C34 -> 0 | AL73: =Mars!C34 -> 0 | AM73: =April!C34 -> 0 | AN73: =Maj!C34 -> 0 | AO73: =Juni!C34 -> 0
AD74: =Aug!C35 -> 0 | AE74: =Sept!C35 -> 0 | AF74: =Okt!C35 -> 0 | AG74: =Nov!C35 -> 0 | AH74: =Dec!C35 -> 0 | AJ74: =Jan!C35 -> 0 | AK74: =Feb!C35 -> 0 | AL74: =Mars!C35 -> 0 | AM74: =April!C35 -> 0 | AN74: =Maj!C35 -> 0 | AO74: =Juni!C35 -> 0

Sheet Avstämningsperioder
A1: ="Avstämningsperioder " & Uppgifter!C4 & " / " & Uppgifter!D4 & " för " & IF(Uppgifter!C6<>"",Uppgifter!C6,"") -> Avstämningsperioder 2026 / 2027 för
H4: =Uppgifter!C4 -> 2026 | N4: =Uppgifter!D4 -> 2027 | V4: =Uppgifter!C4 -> 2026 | AA4: =Uppgifter!D4 -> 2027
A5: Avstämningsperiod 1 | C5: Datum i perioden | G5: Datum | H5: Aug | I5: Sept | J5: Okt | K5: Nov | L5: Dec | N5: Jan | O5: Feb | P5: Mars | Q5: April | R5: Maj | S5: Juni | V5: 8 | W5: 9 | X5: 10 | Y5: 11 | Z5: 12 | AA5: 1 | AB5: 2 | AC5: 3 | AD5: 4 | AE5: 5 | AF5: 6
C6: 260810 tom 261018 | G6: 1 | H6: =Årsarbetsschema!C6 -> 00:00:00 | I6: =Årsarbetsschema!D6 -> 07:00:00 | J6: =Årsarbetsschema!E6 -> 07:00:00 | K6: =Årsarbetsschema!F6 -> 00:00:00 | L6: =Årsarbetsschema!G6 -> 07:00:00 | N6: =Årsarbetsschema!I6 -> 00:00:00 | O6: =Årsarbetsschema!J6 -> 07:00:00 | P6: =Årsarbetsschema!K6 -> 07:00:00 | Q6: =Årsarbetsschema!L6 -> 00:00:00 | R6: =Årsarbetsschema!M6 -> 00:00:00 | S6: =Årsarbetsschema!N6 -> 07:00:00 | V6: =Årsarbetsschema!R6 -> 6 | W6: =Årsarbetsschema!S6 -> 2 | X6: =Årsarbetsschema!T6 -> 4 | Y6: =Årsarbetsschema!U6 -> 7 | Z6: =Årsarbetsschema!V6 -> 2 | AA6: =Årsarbetsschema!X6 -> 6 | AB6: =Årsarbetsschema!Y6 -> 1 | AC6: =Årsarbetsschema!Z6 -> 1 | AD6: =Årsarbetsschema!AA6 -> 6 | AE6: =Årsarbetsschema!AB6 -> 6 | AF6: =Årsarbetsschema!AC6 -> 2
A7: Periodens planerade arbetstid | B7: =SUM(Årsarbetsschema!C6:C36)*24+SUM(Årsarbetsschema!D6:D35)*24+SUM(Årsarbetsschema!E6:E23)*24 -> 350 | G7: 2 | H7: =Årsarbetsschema!C7 -> 00:00:00 | I7: =Årsarbetsschema!D7 -> 07:00:00 | J7: =Årsarbetsschema!E7 -> 07:00:00 | K7: =Årsarbetsschema!F7 -> 07:00:00 | L7: =Årsarbetsschema!G7 -> 07:00:00 | N7: =Årsarbetsschema!I7 -> 00:00:00 | O7: =Årsarbetsschema!J7 -> 07:00:00 | P7: =Årsarbetsschema!K7 -> 07:00:00 | Q7: =Årsarbetsschema!L7 -> 00:00:00 | R7: =Årsarbetsschema!M7 -> 00:00:00 | S7: =Årsarbetsschema!N7 -> 07:00:00 | V7: =Årsarbetsschema!R7 -> 6 | W7: =Årsarbetsschema!S7 -> 3 | X7: =Årsarbetsschema!T7 -> 5 | Y7: =Årsarbetsschema!U7 -> 1 | Z7: =Årsarbetsschema!V7 -> 3 | AA7: =Årsarbetsschema!X7 -> 6 | AB7: =Årsarbetsschema!Y7 -> 2 | AC7: =Årsarbetsschema!Z7 -> 2 | AD7: =Årsarbetsschema!AA7 -> 6 | AE7: =Årsarbetsschema!AB7 -> 7 | AF7: =Årsarbetsschema!AC7 -> 3
A8: Periodens faktiskt arbetad tid | B8: =SUM(Arbetat!C15:C36)*24+SUM(Arbetat!D6:D35)*24+SUM(Arbetat!E6:E23)*24 -> 0 | G8: 3 | H8: =Årsarbetsschema!C8 -> 00:00:00 | I8: =Årsarbetsschema!D8 -> 07:00:00 | J8: =Årsarbetsschema!E8 -> 00:00:00 | K8: =Årsarbetsschema!F8 -> 07:00:00 | L8: =Årsarbetsschema!G8 -> 07:00:00 | N8: =Årsarbetsschema!I8 -> 00:00:00 | O8: =Årsarbetsschema!J8 -> 07:00:00 | P8: =Årsarbetsschema!K8 -> 07:00:00 | Q8: =Årsarbetsschema!L8 -> 00:00:00 | R8: =Årsarbetsschema!M8 -> 07:00:00 | S8: =Årsarbetsschema!N8 -> 07:00:00 | V8: =Årsarbetsschema!R8 -> 6 | W8: =Årsarbetsschema!S8 -> 4 | X8: =Årsarbetsschema!T8 -> 6 | Y8: =Årsarbetsschema!U8 -> 2 | Z8: =Årsarbetsschema!V8 -> 4 | AA8: =Årsarbetsschema!X8 -> 6 | AB8: =Årsarbetsschema!Y8 -> 3 | AC8: =Årsarbetsschema!Z8 -> 3 | AD8: =Årsarbetsschema!AA8 -> 6 | AE8: =Årsarbetsschema!AB8 -> 1 | AF8: =Årsarbetsschema!AC8 -> 4
A9: Differans avstämningsperiod 1 | B9: =B8-B7 -> -350 | G9: 4 | H9: =Årsarbetsschema!C9 -> 00:00:00 | I9: =Årsarbetsschema!D9 -> 07:00:00 | J9: =Årsarbetsschema!E9 -> 00:00:00 | K9: =Årsarbetsschema!F9 -> 07:00:00 | L9: =Årsarbetsschema!G9 -> 07:00:00 | N9: =Årsarbetsschema!I9 -> 00:00:00 | O9: =Årsarbetsschema!J9 -> 07:00:00 | P9: =Årsarbetsschema!K9 -> 07:00:00 | Q9: =Årsarbetsschema!L9 -> 00:00:00 | R9: =Årsarbetsschema!M9 -> 07:00:00 | S9: =Årsarbetsschema!N9 -> 07:00:00 | V9: =Årsarbetsschema!R9 -> 6 | W9: =Årsarbetsschema!S9 -> 5 | X9: =Årsarbetsschema!T9 -> 7 | Y9: =Årsarbetsschema!U9 -> 3 | Z9: =Årsarbetsschema!V9 -> 5 | AA9: =Årsarbetsschema!X9 -> 6 | AB9: =Årsarbetsschema!Y9 -> 4 | AC9: =Årsarbetsschema!Z9 -> 4 | AD9: =Årsarbetsschema!AA9 -> 7 | AE9: =Årsarbetsschema!AB9 -> 2 | AF9: =Årsarbetsschema!AC9 -> 5
G10: 5 | H10: =Årsarbetsschema!C10 -> 00:00:00 | I10: =Årsarbetsschema!D10 -> 00:00:00 | J10: =Årsarbetsschema!E10 -> 07:00:00 | K10: =Årsarbetsschema!F10 -> 07:00:00 | L10: =Årsarbetsschema!G10 -> 00:00:00 | N10: =Årsarbetsschema!I10 -> 00:00:00 | O10: =Årsarbetsschema!J10 -> 07:00:00 | P10: =Årsarbetsschema!K10 -> 07:00:00 | Q10: =Årsarbetsschema!L10 -> 07:00:00 | R10: =Årsarbetsschema!M10 -> 07:00:00 | S10: =Årsarbetsschema!N10 -> 00:00:00 | V10: =Årsarbetsschema!R10 -> 6 | W10: =Årsarbetsschema!S10 -> 6 | X10: =Årsarbetsschema!T10 -> 1 | Y10: =Årsarbetsschema!U10 -> 4 | Z10: =Årsarbetsschema!V10 -> 6 | AA10: =Årsarbetsschema!X10 -> 6 | AB10: =Årsarbetsschema!Y10 -> 5 | AC10: =Årsarbetsschema!Z10 -> 5 | AD10: =Årsarbetsschema!AA10 -> 1 | AE10: =Årsarbetsschema!AB10 -> 3 | AF10: =Årsarbetsschema!AC10 -> 6
A11: Avstämningsperiod 2 | C11: Datum i perioden | G11: 6 | H11: =Årsarbetsschema!C11 -> 00:00:00 | I11: =Årsarbetsschema!D11 -> 00:00:00 | J11: =Årsarbetsschema!E11 -> 07:00:00 | K11: =Årsarbetsschema!F11 -> 07:00:00 | L11: =Årsarbetsschema!G11 -> 00:00:00 | N11: =Årsarbetsschema!I11 -> 00:00:00 | O11: =Årsarbetsschema!J11 -> 00:00:00 | P11: =Årsarbetsschema!K11 -> 00:00:00 | Q11: =Årsarbetsschema!L11 -> 07:00:00 | R11: =Årsarbetsschema!M11 -> 00:00:00 | S11: =Årsarbetsschema!N11 -> 00:00:00 | V11: =Årsarbetsschema!R11 -> 6 | W11: =Årsarbetsschema!S11 -> 7 | X11: =Årsarbetsschema!T11 -> 2 | Y11: =Årsarbetsschema!U11 -> 5 | Z11: =Årsarbetsschema!V11 -> 7 | AA11: =Årsarbetsschema!X11 -> 6 | AB11: =Årsarbetsschema!Y11 -> 6 | AC11: =Årsarbetsschema!Z11 -> 6 | AD11: =Årsarbetsschema!AA11 -> 2 | AE11: =Årsarbetsschema!AB11 -> 6 | AF11: =Årsarbetsschema!AC11 -> 7
C12: 261019 tom 261231 | G12: 7 | H12: =Årsarbetsschema!C12 -> 00:00:00 | I12: =Årsarbetsschema!D12 -> 07:00:00 | J12: =Årsarbetsschema!E12 -> 07:00:00 | K12: =Årsarbetsschema!F12 -> 00:00:00 | L12: =Årsarbetsschema!G12 -> 07:00:00 | N12: =Årsarbetsschema!I12 -> 00:00:00 | O12: =Årsarbetsschema!J12 -> 00:00:00 | P12: =Årsarbetsschema!K12 -> 00:00:00 | Q12: =Årsarbetsschema!L12 -> 07:00:00 | R12: =Årsarbetsschema!M12 -> 00:00:00 | S12: =Årsarbetsschema!N12 -> 07:00:00 | V12: =Årsarbetsschema!R12 -> 6 | W12: =Årsarbetsschema!S12 -> 1 | X12: =Årsarbetsschema!T12 -> 3 | Y12: =Årsarbetsschema!U12 -> 6 | Z12: =Årsarbetsschema!V12 -> 1 | AA12: =Årsarbetsschema!X12 -> 6 | AB12: =Årsarbetsschema!Y12 -> 7 | AC12: =Årsarbetsschema!Z12 -> 7 | AD12: =Årsarbetsschema!AA12 -> 3 | AE12: =Årsarbetsschema!AB12 -> 6 | AF12: =Årsarbetsschema!AC12 -> 1
A13: Periodens planerade arbetstid | B13: =SUM(Årsarbetsschema!E24:E36)*24+SUM(Årsarbetsschema!F6:F35)*24+SUM(Årsarbetsschema!G6:G36)*24 -> 315 | G13: 8 | H13: =Årsarbetsschema!C13 -> 00:00:00 | I13: =Årsarbetsschema!D13 -> 07:00:00 | J13: =Årsarbetsschema!E13 -> 07:00:00 | K13: =Årsarbetsschema!F13 -> 00:00:00 | L13: =Årsarbetsschema!G13 -> 07:00:00 | N13: =Årsarbetsschema!I13 -> 00:00:00 | O13: =Årsarbetsschema!J13 -> 07:00:00 | P13: =Årsarbetsschema!K13 -> 07:00:00 | Q13: =Årsarbetsschema!L13 -> 07:00:00 | R13: =Årsarbetsschema!M13 -> 00:00:00 | S13: =Årsarbetsschema!N13 -> 07:00:00 | V13: =Årsarbetsschema!R13 -> 6 | W13: =Årsarbetsschema!S13 -> 2 | X13: =Årsarbetsschema!T13 -> 4 | Y13: =Årsarbetsschema!U13 -> 7 | Z13: =Årsarbetsschema!V13 -> 2 | AA13: =Årsarbetsschema!X13 -> 6 | AB13: =Årsarbetsschema!Y13 -> 1 | AC13: =Årsarbetsschema!Z13 -> 1 | AD13: =Årsarbetsschema!AA13 -> 4 | AE13: =Årsarbetsschema!AB13 -> 6 | AF13: =Årsarbetsschema!AC13 -> 2
A14: Periodens faktiskt arbetad tid | B14: =SUM(Arbetat!E24:E36)*24+SUM(Arbetat!F6:F35)*24+SUM(Arbetat!G6:G36)*24 -> 0 | G14: 9 | H14: =Årsarbetsschema!C14 -> 00:00:00 | I14: =Årsarbetsschema!D14 -> 07:00:00 | J14: =Årsarbetsschema!E14 -> 07:00:00 | K14: =Årsarbetsschema!F14 -> 07:00:00 | L14: =Årsarbetsschema!G14 -> 07:00:00 | N14: =Årsarbetsschema!I14 -> 00:00:00 | O14: =Årsarbetsschema!J14 -> 07:00:00 | P14: =Årsarbetsschema!K14 -> 07:00:00 | Q14: =Årsarbetsschema!L14 -> 07:00:00 | R14: =Årsarbetsschema!M14 -> 00:00:00 | S14: =Årsarbetsschema!N14 -> 07:00:00 | V14: =Årsarbetsschema!R14 -> 6 | W14: =Årsarbetsschema!S14 -> 3 | X14: =Årsarbetsschema!T14 -> 5 | Y14: =Årsarbetsschema!U14 -> 1 | Z14: =Årsarbetsschema!V14 -> 3 | AA14: =Årsarbetsschema!X14 -> 6 | AB14: =Årsarbetsschema!Y14 -> 2 | AC14: =Årsarbetsschema!Z14 -> 2 | AD14: =Årsarbetsschema!AA14 -> 5 | AE14: =Årsarbetsschema!AB14 -> 7 | AF14: =Årsarbetsschema!AC14 -> 3
A15: Differans avstämningsperiod 2 | B15: =B14-B13 -> -315 | G15: 10 | H15: =Årsarbetsschema!C15 -> 07:00:00 | I15: =Årsarbetsschema!D15 -> 07:00:00 | J15: =Årsarbetsschema!E15 -> 00:00:00 | K15: =Årsarbetsschema!F15 -> 07:00:00 | L15: =Årsarbetsschema!G15 -> 07:00:00 | N15: =Årsarbetsschema!I15 -> 00:00:00 | O15: =Årsarbetsschema!J15 -> 07:00:00 | P15: =Årsarbetsschema!K15 -> 07:00:00 | Q15: =Årsarbetsschema!L15 -> 00:00:00 | R15: =Årsarbetsschema!M15 -> 07:00:00 | S15: =Årsarbetsschema!N15 -> 07:00:00 | V15: =Årsarbetsschema!R15 -> -1 | W15: =Årsarbetsschema!S15 -> 4 | X15: =Årsarbetsschema!T15 -> 6 | Y15: =Årsarbetsschema!U15 -> 2 | Z15: =Årsarbetsschema!V15 -> 4 | AA15: =Årsarbetsschema!X15 -> 7 | AB15: =Årsarbetsschema!Y15 -> 3 | AC15: =Årsarbetsschema!Z15 -> 3 | AD15: =Årsarbetsschema!AA15 -> 6 | AE15: =Årsarbetsschema!AB15 -> 1 | AF15: =Årsarbetsschema!AC15 -> 4
G16: 11 | H16: =Årsarbetsschema!C16 -> 07:00:00 | I16: =Årsarbetsschema!D16 -> 07:00:00 | J16: =Årsarbetsschema!E16 -> 00:00:00 | K16: =Årsarbetsschema!F16 -> 07:00:00 | L16: =Årsarbetsschema!G16 -> 07:00:00 | N16: =Årsarbetsschema!I16 -> 07:00:00 | O16: =Årsarbetsschema!J16 -> 07:00:00 | P16: =Årsarbetsschema!K16 -> 07:00:00 | Q16: =Årsarbetsschema!L16 -> 00:00:00 | R16: =Årsarbetsschema!M16 -> 07:00:00 | S16: =Årsarbetsschema!N16 -> 07:00:00 | V16: =Årsarbetsschema!R16 -> -1 | W16: =Årsarbetsschema!S16 -> 5 | X16: =Årsarbetsschema!T16 -> 7 | Y16: =Årsarbetsschema!U16 -> 3 | Z16: =Årsarbetsschema!V16 -> 5 | AA16: =Årsarbetsschema!X16 -> -1 | AB16: =Årsarbetsschema!Y16 -> 4 | AC16: =Årsarbetsschema!Z16 -> 4 | AD16: =Årsarbetsschema!AA16 -> 7 | AE16: =Årsarbetsschema!AB16 -> 2 | AF16: =Årsarbetsschema!AC16 -> -1
A17: Avstämningsperiod 3 | C17: Datum i perioden | G17: 12 | H17: =Årsarbetsschema!C17 -> 07:00:00 | I17: =Årsarbetsschema!D17 -> 00:00:00 | J17: =Årsarbetsschema!E17 -> 07:00:00 | K17: =Årsarbetsschema!F17 -> 07:00:00 | L17: =Årsarbetsschema!G17 -> 00:00:00 | N17: =Årsarbetsschema!I17 -> 07:00:00 | O17: =Årsarbetsschema!J17 -> 07:00:00 | P17: =Årsarbetsschema!K17 -> 07:00:00 | Q17: =Årsarbetsschema!L17 -> 07:00:00 | R17: =Årsarbetsschema!M17 -> 07:00:00 | S17: =Årsarbetsschema!N17 -> 00:00:00 | V17: =Årsarbetsschema!R17 -> -1 | W17: =Årsarbetsschema!S17 -> 6 | X17: =Årsarbetsschema!T17 -> 1 | Y17: =Årsarbetsschema!U17 -> 4 | Z17: =Årsarbetsschema!V17 -> 6 | AA17: =Årsarbetsschema!X17 -> -1 | AB17: =Årsarbetsschema!Y17 -> 5 | AC17: =Årsarbetsschema!Z17 -> 5 | AD17: =Årsarbetsschema!AA17 -> 1 | AE17: =Årsarbetsschema!AB17 -> 3 | AF17: =Årsarbetsschema!AC17 -> 6
C18: 270101 tom 270331 | G18: 13 | H18: =Årsarbetsschema!C18 -> 07:00:00 | I18: =Årsarbetsschema!D18 -> 00:00:00 | J18: =Årsarbetsschema!E18 -> 07:00:00 | K18: =Årsarbetsschema!F18 -> 07:00:00 | L18: =Årsarbetsschema!G18 -> 00:00:00 | N18: =Årsarbetsschema!I18 -> 07:00:00 | O18: =Årsarbetsschema!J18 -> 00:00:00 | P18: =Årsarbetsschema!K18 -> 00:00:00 | Q18: =Årsarbetsschema!L18 -> 07:00:00 | R18: =Årsarbetsschema!M18 -> 07:00:00 | S18: =Årsarbetsschema!N18 -> 00:00:00 | V18: =Årsarbetsschema!R18 -> -1 | W18: =Årsarbetsschema!S18 -> 7 | X18: =Årsarbetsschema!T18 -> 2 | Y18: =Årsarbetsschema!U18 -> 5 | Z18: =Årsarbetsschema!V18 -> 7 | AA18: =Årsarbetsschema!X18 -> 3 | AB18: =Årsarbetsschema!Y18 -> 6 | AC18: =Årsarbetsschema!Z18 -> 6 | AD18: =Årsarbetsschema!AA18 -> 2 | AE18: =Årsarbetsschema!AB18 -> 4 | AF18: =Årsarbetsschema!AC18 -> 7
A19: Periodens planerade arbetstid | B19: =SUM(Årsarbetsschema!I6:I36)*24+SUM(Årsarbetsschema!J6:J34)*24+SUM(Årsarbetsschema!K6:K36)*24 -> 343 | G19: 14 | H19: =Årsarbetsschema!C19 -> 07:00:00 | I19: =Årsarbetsschema!D19 -> 07:00:00 | J19: =Årsarbetsschema!E19 -> 07:00:00 | K19: =Årsarbetsschema!F19 -> 00:00:00 | L19: =Årsarbetsschema!G19 -> 07:00:00 | N19: =Årsarbetsschema!I19 -> 07:00:00 | O19: =Årsarbetsschema!J19 -> 00:00:00 | P19: =Årsarbetsschema!K19 -> 00:00:00 | Q19: =Årsarbetsschema!L19 -> 07:00:00 | R19: =Årsarbetsschema!M19 -> 07:00:00 | S19: =Årsarbetsschema!N19 -> 07:00:00 | V19: =Årsarbetsschema!R19 -> -1 | W19: =Årsarbetsschema!S19 -> 1 | X19: =Årsarbetsschema!T19 -> 3 | Y19: =Årsarbetsschema!U19 -> 6 | Z19: =Årsarbetsschema!V19 -> 1 | AA19: =Årsarbetsschema!X19 -> 4 | AB19: =Årsarbetsschema!Y19 -> 7 | AC19: =Årsarbetsschema!Z19 -> 7 | AD19: =Årsarbetsschema!AA19 -> 3 | AE19: =Årsarbetsschema!AB19 -> 5 | AF19: =Årsarbetsschema!AC19 -> -1
A20: Periodens faktiskt arbetad tid | B20: =SUM(Arbetat!I6:I36)*24+SUM(Arbetat!J6:J33)*24+SUM(Arbetat!K6:K28)*24 -> 0 | G20: 15 | H20: =Årsarbetsschema!C20 -> 00:00:00 | I20: =Årsarbetsschema!D20 -> 07:00:00 | J20: =Årsarbetsschema!E20 -> 07:00:00 | K20: =Årsarbetsschema!F20 -> 00:00:00 | L20: =Årsarbetsschema!G20 -> 07:00:00 | N20: =Årsarbetsschema!I20 -> 07:00:00 | O20: =Årsarbetsschema!J20 -> 07:00:00 | P20: =Årsarbetsschema!K20 -> 07:00:00 | Q20: =Årsarbetsschema!L20 -> 07:00:00 | R20: =Årsarbetsschema!M20 -> 00:00:00 | S20: =Årsarbetsschema!N20 -> 07:00:00 | V20: =Årsarbetsschema!R20 -> 6 | W20: =Årsarbetsschema!S20 -> 2 | X20: =Årsarbetsschema!T20 -> 4 | Y20: =Årsarbetsschema!U20 -> 7 | Z20: =Årsarbetsschema!V20 -> 2 | AA20: =Årsarbetsschema!X20 -> 5 | AB20: =Årsarbetsschema!Y20 -> 1 | AC20: =Årsarbetsschema!Z20 -> 1 | AD20: =Årsarbetsschema!AA20 -> 4 | AE20: =Årsarbetsschema!AB20 -> 6 | AF20: =Årsarbetsschema!AC20 -> -1
A21: Differans avstämningsperiod 3 | B21: =B20-B19 -> -343 | G21: 16 | H21: =Årsarbetsschema!C21 -> 00:00:00 | I21: =Årsarbetsschema!D21 -> 07:00:00 | J21: =Årsarbetsschema!E21 -> 07:00:00 | K21: =Årsarbetsschema!F21 -> 07:00:00 | L21: =Årsarbetsschema!G21 -> 07:00:00 | N21: =Årsarbetsschema!I21 -> 00:00:00 | O21: =Årsarbetsschema!J21 -> 07:00:00 | P21: =Årsarbetsschema!K21 -> 07:00:00 | Q21: =Årsarbetsschema!L21 -> 07:00:00 | R21: =Årsarbetsschema!M21 -> 00:00:00 | S21: =Årsarbetsschema!N21 -> 07:00:00 | V21: =Årsarbetsschema!R21 -> 7 | W21: =Årsarbetsschema!S21 -> 3 | X21: =Årsarbetsschema!T21 -> 5 | Y21: =Årsarbetsschema!U21 -> 1 | Z21: =Årsarbetsschema!V21 -> 3 | AA21: =Årsarbetsschema!X21 -> 6 | AB21: =Årsarbetsschema!Y21 -> 2 | AC21: =Årsarbetsschema!Z21 -> 2 | AD21: =Årsarbetsschema!AA21 -> 5 | AE21: =Årsarbetsschema!AB21 -> 7 | AF21: =Årsarbetsschema!AC21 -> -1
G22: 17 | H22: =Årsarbetsschema!C22 -> 07:00:00 | I22: =Årsarbetsschema!D22 -> 07:00:00 | J22: =Årsarbetsschema!E22 -> 00:00:00 | K22: =Årsarbetsschema!F22 -> 07:00:00 | L22: =Årsarbetsschema!G22 -> 07:00:00 | N22: =Årsarbetsschema!I22 -> 00:00:00 | O22: =Årsarbetsschema!J22 -> 07:00:00 | P22: =Årsarbetsschema!K22 -> 07:00:00 | Q22: =Årsarbetsschema!L22 -> 00:00:00 | R22: =Årsarbetsschema!M22 -> 07:00:00 | S22: =Årsarbetsschema!N22 -> 00:00:00 | V22: =Årsarbetsschema!R22 -> -1 | W22: =Årsarbetsschema!S22 -> 4 | X22: =Årsarbetsschema!T22 -> 6 | Y22: =Årsarbetsschema!U22 -> 2 | Z22: =Årsarbetsschema!V22 -> 4 | AA22: =Årsarbetsschema!X22 -> 7 | AB22: =Årsarbetsschema!Y22 -> 3 | AC22: =Årsarbetsschema!Z22 -> 3 | AD22: =Årsarbetsschema!AA22 -> 6 | AE22: =Årsarbetsschema!AB22 -> 1 | AF22: =Årsarbetsschema!AC22 -> 6
A23: Avstämningsperiod 4 | C23: Datum i perioden | G23: 18 | H23: =Årsarbetsschema!C23 -> 07:00:00 | I23: =Årsarbetsschema!D23 -> 07:00:00 | J23: =Årsarbetsschema!E23 -> 00:00:00 | K23: =Årsarbetsschema!F23 -> 07:00:00 | L23: =Årsarbetsschema!G23 -> 07:00:00 | N23: =Årsarbetsschema!I23 -> 07:00:00 | O23: =Årsarbetsschema!J23 -> 07:00:00 | P23: =Årsarbetsschema!K23 -> 07:00:00 | Q23: =Årsarbetsschema!L23 -> 00:00:00 | R23: =Årsarbetsschema!M23 -> 07:00:00 | S23: =Årsarbetsschema!N23 -> 00:00:00 | V23: =Årsarbetsschema!R23 -> 2 | W23: =Årsarbetsschema!S23 -> 5 | X23: =Årsarbetsschema!T23 -> 7 | Y23: =Årsarbetsschema!U23 -> 3 | Z23: =Årsarbetsschema!V23 -> 5 | AA23: =Årsarbetsschema!X23 -> 1 | AB23: =Årsarbetsschema!Y23 -> 4 | AC23: =Årsarbetsschema!Z23 -> 4 | AD23: =Årsarbetsschema!AA23 -> 7 | AE23: =Årsarbetsschema!AB23 -> 2 | AF23: =Årsarbetsschema!AC23 -> 6
C24: 270401 tom 270616 | G24: 19 | H24: =Årsarbetsschema!C24 -> 07:00:00 | I24: =Årsarbetsschema!D24 -> 00:00:00 | J24: =Årsarbetsschema!E24 -> 07:00:00 | K24: =Årsarbetsschema!F24 -> 07:00:00 | L24: =Årsarbetsschema!G24 -> 00:00:00 | N24: =Årsarbetsschema!I24 -> 07:00:00 | O24: =Årsarbetsschema!J24 -> 07:00:00 | P24: =Årsarbetsschema!K24 -> 07:00:00 | Q24: =Årsarbetsschema!L24 -> 07:00:00 | R24: =Årsarbetsschema!M24 -> 07:00:00 | S24: =Årsarbetsschema!N24 -> 00:00:00 | V24: =Årsarbetsschema!R24 -> 3 | W24: =Årsarbetsschema!S24 -> 6 | X24: =Årsarbetsschema!T24 -> 1 | Y24: =Årsarbetsschema!U24 -> 4 | Z24: =Årsarbetsschema!V24 -> 6 | AA24: =Årsarbetsschema!X24 -> 2 | AB24: =Årsarbetsschema!Y24 -> 5 | AC24: =Årsarbetsschema!Z24 -> 5 | AD24: =Årsarbetsschema!AA24 -> 1 | AE24: =Årsarbetsschema!AB24 -> 3 | AF24: =Årsarbetsschema!AC24 -> 6
A25: Periodens planerade arbetstid | B25: =SUM(Årsarbetsschema!L6:L35)*24+SUM(Årsarbetsschema!M6:M36)*24+SUM(Årsarbetsschema!N6:N35)*24 -> 350 | G25: 20 | H25: =Årsarbetsschema!C25 -> 07:00:00 | I25: =Årsarbetsschema!D25 -> 00:00:00 | J25: =Årsarbetsschema!E25 -> 07:00:00 | K25: =Årsarbetsschema!F25 -> 07:00:00 | L25: =Årsarbetsschema!G25 -> 00:00:00 | N25: =Årsarbetsschema!I25 -> 07:00:00 | O25: =Årsarbetsschema!J25 -> 00:00:00 | P25: =Årsarbetsschema!K25 -> 00:00:00 | Q25: =Årsarbetsschema!L25 -> 07:00:00 | R25: =Årsarbetsschema!M25 -> 07:00:00 | S25: =Årsarbetsschema!N25 -> 00:00:00 | V25: =Årsarbetsschema!R25 -> 4 | W25: =Årsarbetsschema!S25 -> 7 | X25: =Årsarbetsschema!T25 -> 2 | Y25: =Årsarbetsschema!U25 -> 5 | Z25: =Årsarbetsschema!V25 -> 7 | AA25: =Årsarbetsschema!X25 -> 3 | AB25: =Årsarbetsschema!Y25 -> 6 | AC25: =Årsarbetsschema!Z25 -> 6 | AD25: =Årsarbetsschema!AA25 -> 2 | AE25: =Årsarbetsschema!AB25 -> 4 | AF25: =Årsarbetsschema!AC25 -> 7
A26: Periodens faktiskt arbetad tid | B26: =SUM(Arbetat!K29:K36)*24+SUM(Arbetat!L6:L35)*24+SUM(Arbetat!M6:M36)*24+SUM(Arbetat!N6:N23)*24 -> 0 | G26: 21 | H26: =Årsarbetsschema!C26 -> 07:00:00 | I26: =Årsarbetsschema!D26 -> 07:00:00 | J26: =Årsarbetsschema!E26 -> 07:00:00 | K26: =Årsarbetsschema!F26 -> 00:00:00 | L26: =Årsarbetsschema!G26 -> 07:00:00 | N26: =Årsarbetsschema!I26 -> 07:00:00 | O26: =Årsarbetsschema!J26 -> 00:00:00 | P26: =Årsarbetsschema!K26 -> 00:00:00 | Q26: =Årsarbetsschema!L26 -> 07:00:00 | R26: =Årsarbetsschema!M26 -> 07:00:00 | S26: =Årsarbetsschema!N26 -> 00:00:00 | V26: =Årsarbetsschema!R26 -> 5 | W26: =Årsarbetsschema!S26 -> 1 | X26: =Årsarbetsschema!T26 -> 3 | Y26: =Årsarbetsschema!U26 -> 6 | Z26: =Årsarbetsschema!V26 -> 1 | AA26: =Årsarbetsschema!X26 -> 4 | AB26: =Årsarbetsschema!Y26 -> 7 | AC26: =Årsarbetsschema!Z26 -> 7 | AD26: =Årsarbetsschema!AA26 -> 3 | AE26: =Årsarbetsschema!AB26 -> 5 | AF26: =Årsarbetsschema!AC26 -> 6
A27: Differans avstämningsperiod 4 | B27: =B26-B25 -> -350 | G27: 22 | H27: =Årsarbetsschema!C27 -> 00:00:00 | I27: =Årsarbetsschema!D27 -> 07:00:00 | J27: =Årsarbetsschema!E27 -> 07:00:00 | K27: =Årsarbetsschema!F27 -> 00:00:00 | L27: =Årsarbetsschema!G27 -> 07:00:00 | N27: =Årsarbetsschema!I27 -> 07:00:00 | O27: =Årsarbetsschema!J27 -> 00:00:00 | P27: =Årsarbetsschema!K27 -> 07:00:00 | Q27: =Årsarbetsschema!L27 -> 07:00:00 | R27: =Årsarbetsschema!M27 -> 00:00:00 | S27: =Årsarbetsschema!N27 -> 00:00:00 | V27: =Årsarbetsschema!R27 -> 6 | W27: =Årsarbetsschema!S27 -> 2 | X27: =Årsarbetsschema!T27 -> 4 | Y27: =Årsarbetsschema!U27 -> 7 | Z27: =Årsarbetsschema!V27 -> 2 | AA27: =Årsarbetsschema!X27 -> 5 | AB27: =Årsarbetsschema!Y27 -> 6 | AC27: =Årsarbetsschema!Z27 -> 1 | AD27: =Årsarbetsschema!AA27 -> 4 | AE27: =Årsarbetsschema!AB27 -> 6 | AF27: =Årsarbetsschema!AC27 -> 6
G28: 23 | H28: =Årsarbetsschema!C28 -> 00:00:00 | I28: =Årsarbetsschema!D28 -> 07:00:00 | J28: =Årsarbetsschema!E28 -> 07:00:00 | K28: =Årsarbetsschema!F28 -> 07:00:00 | L28: =Årsarbetsschema!G28 -> 00:00:00 | N28: =Årsarbetsschema!I28 -> 00:00:00 | O28: =Årsarbetsschema!J28 -> 00:00:00 | P28: =Årsarbetsschema!K28 -> 07:00:00 | Q28: =Årsarbetsschema!L28 -> 07:00:00 | R28: =Årsarbetsschema!M28 -> 00:00:00 | S28: =Årsarbetsschema!N28 -> 00:00:00 | V28: =Årsarbetsschema!R28 -> 7 | W28: =Årsarbetsschema!S28 -> 3 | X28: =Årsarbetsschema!T28 -> 5 | Y28: =Årsarbetsschema!U28 -> 1 | Z28: =Årsarbetsschema!V28 -> 6 | AA28: =Årsarbetsschema!X28 -> 6 | AB28: =Årsarbetsschema!Y28 -> 6 | AC28: =Årsarbetsschema!Z28 -> 2 | AD28: =Årsarbetsschema!AA28 -> 5 | AE28: =Årsarbetsschema!AB28 -> 7 | AF28: =Årsarbetsschema!AC28 -> 6
G29: 24 | H29: =Årsarbetsschema!C29 -> 07:00:00 | I29: =Årsarbetsschema!D29 -> 07:00:00 | J29: =Årsarbetsschema!E29 -> 00:00:00 | K29: =Årsarbetsschema!F29 -> 07:00:00 | L29: =Årsarbetsschema!G29 -> 00:00:00 | N29: =Årsarbetsschema!I29 -> 00:00:00 | O29: =Årsarbetsschema!J29 -> 00:00:00 | P29: =Årsarbetsschema!K29 -> 07:00:00 | Q29: =Årsarbetsschema!L29 -> 00:00:00 | R29: =Årsarbetsschema!M29 -> 07:00:00 | S29: =Årsarbetsschema!N29 -> 00:00:00 | V29: =Årsarbetsschema!R29 -> 1 | W29: =Årsarbetsschema!S29 -> 4 | X29: =Årsarbetsschema!T29 -> 6 | Y29: =Årsarbetsschema!U29 -> 2 | Z29: =Årsarbetsschema!V29 -> 6 | AA29: =Årsarbetsschema!X29 -> 7 | AB29: =Årsarbetsschema!Y29 -> 6 | AC29: =Årsarbetsschema!Z29 -> 3 | AD29: =Årsarbetsschema!AA29 -> 6 | AE29: =Årsarbetsschema!AB29 -> 1 | AF29: =Årsarbetsschema!AC29 -> 6
G30: 25 | H30: =Årsarbetsschema!C30 -> 07:00:00 | I30: =Årsarbetsschema!D30 -> 07:00:00 | J30: =Årsarbetsschema!E30 -> 00:00:00 | K30: =Årsarbetsschema!F30 -> 07:00:00 | L30: =Årsarbetsschema!G30 -> 00:00:00 | N30: =Årsarbetsschema!I30 -> 07:00:00 | O30: =Årsarbetsschema!J30 -> 00:00:00 | P30: =Årsarbetsschema!K30 -> 07:00:00 | Q30: =Årsarbetsschema!L30 -> 00:00:00 | R30: =Årsarbetsschema!M30 -> 07:00:00 | S30: =Årsarbetsschema!N30 -> 00:00:00 | V30: =Årsarbetsschema!R30 -> 2 | W30: =Årsarbetsschema!S30 -> -1 | X30: =Årsarbetsschema!T30 -> 7 | Y30: =Årsarbetsschema!U30 -> 3 | Z30: =Årsarbetsschema!V30 -> 6 | AA30: =Årsarbetsschema!X30 -> 1 | AB30: =Årsarbetsschema!Y30 -> 6 | AC30: =Årsarbetsschema!Z30 -> 4 | AD30: =Årsarbetsschema!AA30 -> 7 | AE30: =Årsarbetsschema!AB30 -> 2 | AF30: =Årsarbetsschema!AC30 -> 6
A31: Årsavstämning - totalt | G31: 26 | H31: =Årsarbetsschema!C31 -> 07:00:00 | I31: =Årsarbetsschema!D31 -> 00:00:00 | J31: =Årsarbetsschema!E31 -> 07:00:00 | K31: =Årsarbetsschema!F31 -> 07:00:00 | L31: =Årsarbetsschema!G31 -> 00:00:00 | N31: =Årsarbetsschema!I31 -> 07:00:00 | O31: =Årsarbetsschema!J31 -> 00:00:00 | P31: =Årsarbetsschema!K31 -> 00:00:00 | Q31: =Årsarbetsschema!L31 -> 07:00:00 | R31: =Årsarbetsschema!M31 -> 07:00:00 | S31: =Årsarbetsschema!N31 -> 00:00:00 | V31: =Årsarbetsschema!R31 -> 3 | W31: =Årsarbetsschema!S31 -> 6 | X31: =Årsarbetsschema!T31 -> -1 | Y31: =Årsarbetsschema!U31 -> 4 | Z31: =Årsarbetsschema!V31 -> 6 | AA31: =Årsarbetsschema!X31 -> 2 | AB31: =Årsarbetsschema!Y31 -> 6 | AC31: =Årsarbetsschema!Z31 -> 6 | AD31: =Årsarbetsschema!AA31 -> 1 | AE31: =Årsarbetsschema!AB31 -> 3 | AF31: =Årsarbetsschema!AC31 -> 6
G32: 27 | H32: =Årsarbetsschema!C32 -> 07:00:00 | I32: =Årsarbetsschema!D32 -> 00:00:00 | J32: =Årsarbetsschema!E32 -> 07:00:00 | K32: =Årsarbetsschema!F32 -> 07:00:00 | L32: =Årsarbetsschema!G32 -> 00:00:00 | N32: =Årsarbetsschema!I32 -> 07:00:00 | O32: =Årsarbetsschema!J32 -> 00:00:00 | P32: =Årsarbetsschema!K32 -> 00:00:00 | Q32: =Årsarbetsschema!L32 -> 07:00:00 | R32: =Årsarbetsschema!M32 -> 07:00:00 | S32: =Årsarbetsschema!N32 -> 00:00:00 | V32: =Årsarbetsschema!R32 -> 4 | W32: =Årsarbetsschema!S32 -> 7 | X32: =Årsarbetsschema!T32 -> -1 | Y32: =Årsarbetsschema!U32 -> 5 | Z32: =Årsarbetsschema!V32 -> 6 | AA32: =Årsarbetsschema!X32 -> 3 | AB32: =Årsarbetsschema!Y32 -> 6 | AC32: =Årsarbetsschema!Z32 -> 6 | AD32: =Årsarbetsschema!AA32 -> 2 | AE32: =Årsarbetsschema!AB32 -> 4 | AF32: =Årsarbetsschema!AC32 -> 6
A33: Planerad arbetstid | B33: =B7+B13+B19+B25 -> 1358 | G33: 28 | H33: =Årsarbetsschema!C33 -> 07:00:00 | I33: =Årsarbetsschema!D33 -> 07:00:00 | J33: =Årsarbetsschema!E33 -> 07:00:00 | K33: =Årsarbetsschema!F33 -> 00:00:00 | L33: =Årsarbetsschema!G33 -> 00:00:00 | N33: =Årsarbetsschema!I33 -> 07:00:00 | O33: =Årsarbetsschema!J33 -> 00:00:00 | P33: =Årsarbetsschema!K33 -> 00:00:00 | Q33: =Årsarbetsschema!L33 -> 07:00:00 | R33: =Årsarbetsschema!M33 -> 07:00:00 | S33: =Årsarbetsschema!N33 -> 00:00:00 | V33: =Årsarbetsschema!R33 -> 5 | W33: =Årsarbetsschema!S33 -> 1 | X33: =Årsarbetsschema!T33 -> -1 | Y33: =Årsarbetsschema!U33 -> 6 | Z33: =Årsarbetsschema!V33 -> 6 | AA33: =Årsarbetsschema!X33 -> 4 | AB33: =Årsarbetsschema!Y33 -> 7 | AC33: =Årsarbetsschema!Z33 -> 7 | AD33: =Årsarbetsschema!AA33 -> 3 | AE33: =Årsarbetsschema!AB33 -> 5 | AF33: =Årsarbetsschema!AC33 -> 6
A34: Faktiskt arbetad tid | B34: =B8+B14+B20+B26 -> 0 | G34: 29 | H34: =Årsarbetsschema!C34 -> 00:00:00 | I34: =Årsarbetsschema!D34 -> 07:00:00 | J34: =Årsarbetsschema!E34 -> 00:00:00 | K34: =Årsarbetsschema!F34 -> 00:00:00 | L34: =Årsarbetsschema!G34 -> 00:00:00 | N34: =Årsarbetsschema!I34 -> 07:00:00 | P34: =Årsarbetsschema!K34 -> 00:00:00 | Q34: =Årsarbetsschema!L34 -> 07:00:00 | R34: =Årsarbetsschema!M34 -> 00:00:00 | S34: =Årsarbetsschema!N34 -> 00:00:00 | V34: =Årsarbetsschema!R34 -> 6 | W34: =Årsarbetsschema!S34 -> 2 | X34: =Årsarbetsschema!T34 -> 6 | Y34: =Årsarbetsschema!U34 -> 7 | Z34: =Årsarbetsschema!V34 -> 6 | AA34: =Årsarbetsschema!X34 -> 5 | AC34: =Årsarbetsschema!Z34 -> 6 | AD34: =Årsarbetsschema!AA34 -> 4 | AE34: =Årsarbetsschema!AB34 -> 6 | AF34: =Årsarbetsschema!AC34 -> 6
A35: +/- | B35: =B33-(Uppgifter!E11*Uppgifter!E12) -> -2 | G35: 30 | H35: =Årsarbetsschema!C35 -> 00:00:00 | I35: =Årsarbetsschema!D35 -> 07:00:00 | J35: =Årsarbetsschema!E35 -> 00:00:00 | K35: =Årsarbetsschema!F35 -> 07:00:00 | L35: =Årsarbetsschema!G35 -> 00:00:00 | N35: =Årsarbetsschema!I35 -> 00:00:00 | P35: =Årsarbetsschema!K35 -> 00:00:00 | Q35: =Årsarbetsschema!L35 -> 00:00:00 | R35: =Årsarbetsschema!M35 -> 00:00:00 | S35: =Årsarbetsschema!N35 -> 00:00:00 | V35: =Årsarbetsschema!R35 -> 7 | W35: =Årsarbetsschema!S35 -> 3 | X35: =Årsarbetsschema!T35 -> 6 | Y35: =Årsarbetsschema!U35 -> 1 | Z35: =Årsarbetsschema!V35 -> 6 | AA35: =Årsarbetsschema!X35 -> 6 | AC35: =Årsarbetsschema!Z35 -> 6 | AD35: =Årsarbetsschema!AA35 -> 6 | AE35: =Årsarbetsschema!AB35 -> 7 | AF35: =Årsarbetsschema!AC35 -> 6
A36: Kontroll | B36: =Uppgifter!E13-B34 -> 1360 | C36: Skall bli = 0 vid läsårets slut | G36: 31 | H36: =Årsarbetsschema!C36 -> 07:00:00 | J36: =Årsarbetsschema!E36 -> 00:00:00 | L36: =Årsarbetsschema!G36 -> 00:00:00 | N36: =Årsarbetsschema!I36 -> 00:00:00 | P36: =Årsarbetsschema!K36 -> 00:00:00 | R36: =Årsarbetsschema!M36 -> 07:00:00 | V36: =Årsarbetsschema!R36 -> 1 | X36: =Årsarbetsschema!T36 -> 6 | Z36: =Årsarbetsschema!V36 -> 6 | AA36: =Årsarbetsschema!X36 -> 7 | AC36: =Årsarbetsschema!Z36 -> 6 | AE36: =Årsarbetsschema!AB36 -> 1
H38: =Årsarbetsschema!C38 -> 112 | I38: =Årsarbetsschema!D38 -> 154 | J38: =Årsarbetsschema!E38 -> 140 | K38: =Årsarbetsschema!F38 -> 147 | L38: =Årsarbetsschema!G38 -> 112 | N38: =Årsarbetsschema!I38 -> 105 | O38: =Årsarbetsschema!J38 -> 105 | P38: =Årsarbetsschema!K38 -> 133 | Q38: =Årsarbetsschema!L38 -> 133 | R38: =Årsarbetsschema!M38 -> 133 | S38: =SUM(S6:S36)*24 -> 84 | T38: =SUM(H38:S38) -> 1358

Sheet Aug
B1: =PROPER(TEXT(B4,"MMMM ÅÅÅÅ")) -> Augusti 2026 | G1: =IF(Uppgifter!$C$6="","",Uppgifter!$C$6) -> 
N2: Dagsumma | O2: Vdag
B3: Datum | C3: Kod | D3: In | E3: Ut | F3: Lunch | G3: Planerat | H3: Ledighet | I3: Arbetstid | J3: Förtroendetid | L3: Anteckningar
B4: =DATEVALUE(Uppgifter!C4 & "-08-01") -> 2026-08-01 | I4: =IF(N4<0,-N4,N4) -> 0 | J4: + | K4: 0 | N4: =IF(E4>0,E4-D4-F4-H4,IF(C4="",0,IF(C4="F",0,Årsarbetsschema!$C6))) -> 0 | O4: =Årsarbetsschema!R6 -> 6 | P4: Sj
B5: =B4+1 -> 2026-08-02 | I5: 0 | J5: + | K5: 0 | N5: =IF(E5>0,E5-D5-F5-H5,IF(C5="",0,IF(C5="F",0,Årsarbetsschema!$C7))) -> 0 | O5: =Årsarbetsschema!R7 -> 6 | P5: Tj
B6: =B5+1 -> 2026-08-03 | I6: 0 | J6: + | K6: 0 | N6: =IF(E6>0,E6-D6-F6-H6,IF(C6="",0,IF(C6="F",0,Årsarbetsschema!$C8))) -> 0 | O6: =Årsarbetsschema!R8 -> 6 | P6: VB
B7: 2026-08-04 | I7: 0 | J7: + | K7: 0 | N7: =IF(E7>0,E7-D7-F7-H7,IF(C7="",0,IF(C7="F",0,Årsarbetsschema!$C9))) -> 0 | O7: =Årsarbetsschema!R9 -> 6 | P7: FL
B8: 2026-08-05 | I8: 0 | J8: + | K8: 0 | N8: =IF(E8>0,E8-D8-F8-H8,IF(C8="",0,IF(C8="F",0,Årsarbetsschema!$C10))) -> 0 | O8: =Årsarbetsschema!R10 -> 6
B9: 2026-08-06 | I9: 0 | J9: + | K9: 0 | N9: =IF(E9>0,E9-D9-F9-H9,IF(C9="",0,IF(C9="F",0,Årsarbetsschema!$C11))) -> 0 | O9: =Årsarbetsschema!R11 -> 6
B10: 2026-08-07 | I10: 0 | J10: + | K10: 0 | N10: =IF(E10>0,E10-D10-F10-H10,IF(C10="",0,IF(C10="F",0,Årsarbetsschema!$C12))) -> 0 | O10: =Årsarbetsschema!R12 -> 6
B11: 2026-08-08 | I11: 0 | J11: + | K11: 0 | N11: =IF(E11>0,E11-D11-F11-H11,IF(C11="",0,IF(C11="F",0,Årsarbetsschema!$C13))) -> 0 | O11: =Årsarbetsschema!R13 -> 6
B12: 2026-08-09 | I12: 0 | J12: + | K12: 0 | N12: =IF(E12>0,E12-D12-F12-H12,IF(C12="",0,IF(C12="F",0,Årsarbetsschema!$C14))) -> 0 | O12: =Årsarbetsschema!R14 -> 6
B13: 2026-08-10 | I13: 0 | J13: + | K13: 0 | N13: =IF(E13>0,E13-D13-F13-H13,IF(C13="",0,IF(C13="F",0,Årsarbetsschema!$C15))) -> 0 | O13: =Årsarbetsschema!R15 -> -1
B14: 2026-08-11 | I14: 0 | J14: + | K14: 0 | N14: =IF(E14>0,E14-D14-F14-H14,IF(C14="",0,IF(C14="F",0,Årsarbetsschema!$C16))) -> 0 | O14: =Årsarbetsschema!R16 -> -1
B15: 2026-08-12 | I15: 0 | J15: + | K15: 0 | N15: =IF(E15>0,E15-D15-F15-H15,IF(C15="",0,IF(C15="F",0,Årsarbetsschema!$C17))) -> 0 | O15: =Årsarbetsschema!R17 -> -1
B16: 2026-08-13 | I16: 0 | J16: + | K16: 0 | N16: =IF(E16>0,E16-D16-F16-H16,IF(C16="",0,IF(C16="F",0,Årsarbetsschema!$C18))) -> 0 | O16: =Årsarbetsschema!R18 -> -1
B17: 2026-08-14 | I17: 0 | J17: + | K17: 0 | N17: =IF(E17>0,E17-D17-F17-H17,IF(C17="",0,IF(C17="F",0,Årsarbetsschema!$C19))) -> 0 | O17: =Årsarbetsschema!R19 -> -1
B18: 2026-08-15 | I18: 0 | J18: + | K18: 0 | N18: =IF(E18>0,E18-D18-F18-H18,IF(C18="",0,IF(C18="F",0,Årsarbetsschema!$C20))) -> 0 | O18: =Årsarbetsschema!R20 -> 6
B19: 2026-08-16 | I19: 0 | J19: + | K19: 0 | N19: =IF(E19>0,E19-D19-F19-H19,IF(C19="",0,IF(C19="F",0,Årsarbetsschema!$C21))) -> 0 | O19: =Årsarbetsschema!R21 -> 7
B20: 2026-08-17 | I20: 0 | J20: + | K20: 0 | N20: =IF(E20>0,E20-D20-F20-H20,IF(C20="",0,IF(C20="F",0,Årsarbetsschema!$C22))) -> 0 | O20: =Årsarbetsschema!R22 -> -1
B21: 2026-08-18 | I21: 0 | J21: + | K21: 0 | N21: =IF(E21>0,E21-D21-F21-H21,IF(C21="",0,IF(C21="F",0,Årsarbetsschema!$C23))) -> 0 | O21: =Årsarbetsschema!R23 -> 2
B22: 2026-08-19 | I22: 0 | J22: + | K22: 0 | N22: =IF(E22>0,E22-D22-F22-H22,IF(C22="",0,IF(C22="F",0,Årsarbetsschema!$C24))) -> 0 | O22: =Årsarbetsschema!R24 -> 3
B23: 2026-08-20 | I23: 0 | J23: + | K23: 0 | N23: =IF(E23>0,E23-D23-F23-H23,IF(C23="",0,IF(C23="F",0,Årsarbetsschema!$C25))) -> 0 | O23: =Årsarbetsschema!R25 -> 4
B24: 2026-08-21 | I24: 0 | J24: + | K24: 0 | N24: =IF(E24>0,E24-D24-F24-H24,IF(C24="",0,IF(C24="F",0,Årsarbetsschema!$C26))) -> 0 | O24: =Årsarbetsschema!R26 -> 5
B25: 2026-08-22 | I25: 0 | J25: + | K25: 0 | N25: =IF(E25>0,E25-D25-F25-H25,IF(C25="",0,IF(C25="F",0,Årsarbetsschema!$C27))) -> 0 | O25: =Årsarbetsschema!R27 -> 6
B26: 2026-08-23 | I26: 0 | J26: + | K26: 0 | N26: =IF(E26>0,E26-D26-F26-H26,IF(C26="",0,IF(C26="F",0,Årsarbetsschema!$C28))) -> 0 | O26: =Årsarbetsschema!R28 -> 7
B27: 2026-08-24 | I27: 0 | J27: + | K27: 0 | N27: =IF(E27>0,E27-D27-F27-H27,IF(C27="",0,IF(C27="F",0,Årsarbetsschema!$C29))) -> 0 | O27: =Årsarbetsschema!R29 -> 1
B28: 2026-08-25 | I28: 0 | J28: + | K28: 0 | N28: =IF(E28>0,E28-D28-F28-H28,IF(C28="",0,IF(C28="F",0,Årsarbetsschema!$C30))) -> 0 | O28: =Årsarbetsschema!R30 -> 2
B29: 2026-08-26 | I29: 0 | J29: + | K29: 0 | N29: =IF(E29>0,E29-D29-F29-H29,IF(C29="",0,IF(C29="F",0,Årsarbetsschema!$C31))) -> 0 | O29: =Årsarbetsschema!R31 -> 3
B30: 2026-08-27 | I30: 0 | J30: + | K30: 0 | N30: =IF(E30>0,E30-D30-F30-H30,IF(C30="",0,IF(C30="F",0,Årsarbetsschema!$C32))) -> 0 | O30: =Årsarbetsschema!R32 -> 4
B31: 2026-08-28 | I31: 0 | J31: + | K31: 0 | N31: =IF(E31>0,E31-D31-F31-H31,IF(C31="",0,IF(C31="F",0,Årsarbetsschema!$C33))) -> 0 | O31: =Årsarbetsschema!R33 -> 5
B32: 2026-08-29 | I32: 0 | J32: + | K32: 0 | N32: =IF(E32>0,E32-D32-F32-H32,IF(C32="",0,IF(C32="F",0,Årsarbetsschema!$C34))) -> 0 | O32: =Årsarbetsschema!R34 -> 6
B33: 2026-08-30 | I33: 0 | J33: + | K33: 0 | N33: =IF(E33>0,E33-D33-F33-H33,IF(C33="",0,IF(C33="F",0,Årsarbetsschema!$C35))) -> 0 | O33: =Årsarbetsschema!R35 -> 7
B34: 2026-08-31 | I34: 0 | J34: + | K34: 0 | N34: =IF(E34>0,E34-D34-F34-H34,IF(C34="",0,IF(C34="F",0,Årsarbetsschema!$C36))) -> 0 | O34: =Årsarbetsschema!R36 -> 1
H35: Månad | I35: 0 | J35: + | K35: =SUM(K4:K34) -> 0 | N35: =SUM(N4:N34) -> 0
H36: Totalt | I36: 0 | J36: + | K36: =K35 -> 0 | N36: =N35+N3 -> 0
B38: =IF(Uppgifter!$C$6="","",Uppgifter!$C$6) -> 

Sheet Sept
B1: =PROPER(TEXT(B4,"MMMM ÅÅÅÅ")) -> September 2026 | G1: =IF(Uppgifter!$C$6="","",Uppgifter!$C$6) -> 
N2: Dagsumma | O2: Vdag
B3: Datum | C3: Kod | D3: In | E3: Ut | F3: Lunch | G3: Planerat | H3: Ledighet | I3: Arbetstid | J3: Förtroendetid | L3: Anteckningar | N3: =Aug!N36 -> 0
B4: =DATEVALUE(Uppgifter!C4 & "-09-01") -> 2026-09-01 | I4: =IF(N4<0,-N4,N4) -> 0 | J4: + | K4: 0 | N4: =IF(E4>0,E4-D4-F4-H4,IF(C4="",0,IF(C4="F",0,Årsarbetsschema!$D6))) -> 0 | O4: =Årsarbetsschema!S6 -> 2 | P4: Sj
B5: =B4+1 -> 2026-09-02 | I5: =IF(N5<0,-N5,N5) -> 0 | J5: + | K5: 0 | N5: =IF(E5>0,E5-D5-F5-H5,IF(C5="",0,IF(C5="F",0,Årsarbetsschema!$D7))) -> 0 | O5: =Årsarbetsschema!S7 -> 3 | P5: Tj
B6: =B5+1 -> 2026-09-03 | I6: 0 | J6: + | K6: 0 | N6: =IF(E6>0,E6-D6-F6-H6,IF(C6="",0,IF(C6="F",0,Årsarbetsschema!$D8))) -> 0 | O6: =Årsarbetsschema!S8 -> 4 | P6: VB
B7: 2026-09-04 | I7: 0 | J7: + | K7: 0 | N7: =IF(E7>0,E7-D7-F7-H7,IF(C7="",0,IF(C7="F",0,Årsarbetsschema!$D9))) -> 0 | O7: =Årsarbetsschema!S9 -> 5 | P7: FL
B8: 2026-09-05 | I8: 0 | J8: + | K8: 0 | N8: =IF(E8>0,E8-D8-F8-H8,IF(C8="",0,IF(C8="F",0,Årsarbetsschema!$D10))) -> 0 | O8: =Årsarbetsschema!S10 -> 6
B9: 2026-09-06 | I9: 0 | J9: + | K9: 0 | N9: =IF(E9>0,E9-D9-F9-H9,IF(C9="",0,IF(C9="F",0,Årsarbetsschema!$D11))) -> 0 | O9: =Årsarbetsschema!S11 -> 7
B10: 2026-09-07 | I10: 0 | J10: + | K10: 0 | N10: =IF(E10>0,E10-D10-F10-H10,IF(C10="",0,IF(C10="F",0,Årsarbetsschema!$D12))) -> 0 | O10: =Årsarbetsschema!S12 -> 1
B11: 2026-09-08 | I11: 0 | J11: + | K11: 0 | N11: =IF(E11>0,E11-D11-F11-H11,IF(C11="",0,IF(C11="F",0,Årsarbetsschema!$D13))) -> 0 | O11: =Årsarbetsschema!S13 -> 2
B12: 2026-09-09 | I12: 0 | J12: + | K12: 0 | N12: =IF(E12>0,E12-D12-F12-H12,IF(C12="",0,IF(C12="F",0,Årsarbetsschema!$D14))) -> 0 | O12: =Årsarbetsschema!S14 -> 3
B13: 2026-09-10 | I13: 0 | J13: + | K13: 0 | N13: =IF(E13>0,E13-D13-F13-H13,IF(C13="",0,IF(C13="F",0,Årsarbetsschema!$D15))) -> 0 | O13: =Årsarbetsschema!S15 -> 4
B14: 2026-09-11 | I14: 0 | J14: + | K14: 0 | N14: =IF(E14>0,E14-D14-F14-H14,IF(C14="",0,IF(C14="F",0,Årsarbetsschema!$D16))) -> 0 | O14: =Årsarbetsschema!S16 -> 5
B15: 2026-09-12 | I15: 0 | J15: + | K15: 0 | N15: =IF(E15>0,E15-D15-F15-H15,IF(C15="",0,IF(C15="F",0,Årsarbetsschema!$D17))) -> 0 | O15: =Årsarbetsschema!S17 -> 6
B16: 2026-09-13 | I16: 0 | J16: + | K16: 0 | N16: =IF(E16>0,E16-D16-F16-H16,IF(C16="",0,IF(C16="F",0,Årsarbetsschema!$D18))) -> 0 | O16: =Årsarbetsschema!S18 -> 7
B17: 2026-09-14 | I17: =IF(N17<0,-N17,N17) -> 0 | J17: + | K17: 0 | N17: =IF(E17>0,E17-D17-F17-H17,IF(C17="",0,IF(C17="F",0,Årsarbetsschema!$D19))) -> 0 | O17: =Årsarbetsschema!S19 -> 1
B18: 2026-09-15 | I18: 0 | J18: + | K18: 0 | N18: =IF(E18>0,E18-D18-F18-H18,IF(C18="",0,IF(C18="F",0,Årsarbetsschema!$D20))) -> 0 | O18: =Årsarbetsschema!S20 -> 2
B19: 2026-09-16 | I19: 0 | J19: + | K19: 0 | N19: =IF(E19>0,E19-D19-F19-H19,IF(C19="",0,IF(C19="F",0,Årsarbetsschema!$D21))) -> 0 | O19: =Årsarbetsschema!S21 -> 3
B20: 2026-09-17 | I20: 0 | J20: + | K20: 0 | N20: =IF(E20>0,E20-D20-F20-H20,IF(C20="",0,IF(C20="F",0,Årsarbetsschema!$D22))) -> 0 | O20: =Årsarbetsschema!S22 -> 4
B21: 2026-09-18 | I21: 0 | J21: + | K21: 0 | N21: =IF(E21>0,E21-D21-F21-H21,IF(C21="",0,IF(C21="F",0,Årsarbetsschema!$D23))) -> 0 | O21: =Årsarbetsschema!S23 -> 5
B22: 2026-09-19 | I22: 0 | J22: + | K22: 0 | N22: =IF(E22>0,E22-D22-F22-H22,IF(C22="",0,IF(C22="F",0,Årsarbetsschema!$D24))) -> 0 | O22: =Årsarbetsschema!S24 -> 6
B23: 2026-09-20 | I23: 0 | J23: + | K23: 0 | N23: =IF(E23>0,E23-D23-F23-H23,IF(C23="",0,IF(C23="F",0,Årsarbetsschema!$D25))) -> 0 | O23: =Årsarbetsschema!S25 -> 7
B24: 2026-09-21 | I24: 0 | J24: + | K24: 0 | N24: =IF(E24>0,E24-D24-F24-H24,IF(C24="",0,IF(C24="F",0,Årsarbetsschema!$D26))) -> 0 | O24: =Årsarbetsschema!S26 -> 1
B25: 2026-09-22 | I25: 0 | J25: + | K25: 0 | N25: =IF(E25>0,E25-D25-F25-H25,IF(C25="",0,IF(C25="F",0,Årsarbetsschema!$D27))) -> 0 | O25: =Årsarbetsschema!S27 -> 2
B26: 2026-09-23 | I26: 0 | J26: + | K26: 0 | N26: =IF(E26>0,E26-D26-F26-H26,IF(C26="",0,IF(C26="F",0,Årsarbetsschema!$D28))) -> 0 | O26: =Årsarbetsschema!S28 -> 3
B27: 2026-09-24 | I27: 0 | J27: + | K27: 0 | N27: =IF(E27>0,E27-D27-F27-H27,IF(C27="",0,IF(C27="F",0,Årsarbetsschema!$D29))) -> 0 | O27: =Årsarbetsschema!S29 -> 4
B28: 2026-09-25 | I28: 0 | J28: + | K28: 0 | N28: =IF(E28>0,E28-D28-F28-H28,IF(C28="",0,IF(C28="F",0,Årsarbetsschema!$D30))) -> 0 | O28: =Årsarbetsschema!S30 -> -1
B29: 2026-09-26 | I29: 0 | J29: + | K29: 0 | N29: =IF(E29>0,E29-D29-F29-H29,IF(C29="",0,IF(C29="F",0,Årsarbetsschema!$D31))) -> 0 | O29: =Årsarbetsschema!S31 -> 6
B30: 2026-09-27 | I30: 0 | J30: + | K30: 0 | N30: =IF(E30>0,E30-D30-F30-H30,IF(C30="",0,IF(C30="F",0,Årsarbetsschema!$D32))) -> 0 | O30: =Årsarbetsschema!S32 -> 7
B31: 2026-09-28 | I31: 0 | J31: + | K31: 0 | N31: =IF(E31>0,E31-D31-F31-H31,IF(C31="",0,IF(C31="F",0,Årsarbetsschema!$D33))) -> 0 | O31: =Årsarbetsschema!S33 -> 1
B32: 2026-09-29 | I32: 0 | J32: + | K32: 0 | N32: =IF(E32>0,E32-D32-F32-H32,IF(C32="",0,IF(C32="F",0,Årsarbetsschema!$D34))) -> 0 | O32: =Årsarbetsschema!S34 -> 2
B33: 2026-09-30 | I33: =IF(N33<0,-N33,N33) -> 0 | J33: + | K33: 0 | N33: =IF(E33>0,E33-D33-F33-H33,IF(C33="",0,IF(C33="F",0,Årsarbetsschema!$D35))) -> 0 | O33: =Årsarbetsschema!S35 -> 3
B34: 2026-10-01 | F34: 00:30:00 | G34: 147 | I34: 0 | J34: =IF(#REF!>=0,"+","-") ->  | K34: =IF(#REF!<0,-#REF!,#REF!) ->  | N34: =IF(E34>0,E34-D34-F34-H34,IF(C34="",0,IF(C34="F",0,Årsarbetsschema!$D$40))) -> 0 | O34: =WEEKDAY(B34,2) -> 4
H35: Månad | I35: =IF(N35<0,-N35,N35) -> 0 | J35: + | K35: =SUM(K4:K33) -> 0 | N35: =SUM(N4:N34) -> 0
H36: Totalt | I36: =IF(N36<0,-N36,N36) -> 0 | J36: + | K36: =Aug!K36+Sept!K35 -> 0 | N36: =N35+N3 -> 0
B38: =IF(Uppgifter!$C$6="","",Uppgifter!$C$6) -> 

Sheet Okt
B1: =PROPER(TEXT(B4,"MMMM ÅÅÅÅ")) -> Oktober 2026 | G1: =IF(Uppgifter!$C$6="","",Uppgifter!$C$6) -> 
N2: Dagsumma | O2: Vdag
B3: Datum | C3: Kod | D3: In | E3: Ut | F3: Lunch | G3: Planerat | H3: Ledighet | I3: Arbetstid | J3: Förtroendetid | L3: Anteckningar | N3: =Sept!N36 -> 0
B4: =DATEVALUE(Uppgifter!C4 & "-10-01") -> 2026-10-01 | I4: =IF(N4<0,-N4,N4) -> 0 | J4: + | K4: 0 | N4: =IF(E4>0,E4-D4-F4-H4,IF(C4="",0,IF(C4="F",0,Årsarbetsschema!$E6))) -> 0 | O4: =Årsarbetsschema!T6 -> 4 | P4: Sj
B5: =B4+1 -> 2026-10-02 | I5: =IF(N5<0,-N5,N5) -> 0 | J5: + | K5: 0 | N5: =IF(E5>0,E5-D5-F5-H5,IF(C5="",0,IF(C5="F",0,Årsarbetsschema!$E7))) -> 0 | O5: =Årsarbetsschema!T7 -> 5 | P5: Tj
B6: =B5+1 -> 2026-10-03 | I6: 0 | J6: + | K6: 0 | N6: =IF(E6>0,E6-D6-F6-H6,IF(C6="",0,IF(C6="F",0,Årsarbetsschema!$E8))) -> 0 | O6: =Årsarbetsschema!T8 -> 6 | P6: VB
B7: 2026-10-04 | I7: 0 | J7: + | K7: 0 | N7: =IF(E7>0,E7-D7-F7-H7,IF(C7="",0,IF(C7="F",0,Årsarbetsschema!$E9))) -> 0 | O7: =Årsarbetsschema!T9 -> 7 | P7: FL
B8: 2026-10-05 | I8: 0 | J8: + | K8: 0 | N8: =IF(E8>0,E8-D8-F8-H8,IF(C8="",0,IF(C8="F",0,Årsarbetsschema!$E10))) -> 0 | O8: =Årsarbetsschema!T10 -> 1
B9: 2026-10-06 | I9: 0 | J9: + | K9: 0 | N9: =IF(E9>0,E9-D9-F9-H9,IF(C9="",0,IF(C9="F",0,Årsarbetsschema!$E11))) -> 0 | O9: =Årsarbetsschema!T11 -> 2
B10: 2026-10-07 | I10: 0 | J10: + | K10: 0 | N10: =IF(E10>0,E10-D10-F10-H10,IF(C10="",0,IF(C10="F",0,Årsarbetsschema!$E12))) -> 0 | O10: =Årsarbetsschema!T12 -> 3
B11: 2026-10-08 | I11: 0 | J11: + | K11: 0 | N11: =IF(E11>0,E11-D11-F11-H11,IF(C11="",0,IF(C11="F",0,Årsarbetsschema!$E13))) -> 0 | O11: =Årsarbetsschema!T13 -> 4
B12: 2026-10-09 | I12: 0 | J12: + | K12: 0 | N12: =IF(E12>0,E12-D12-F12-H12,IF(C12="",0,IF(C12="F",0,Årsarbetsschema!$E14))) -> 0 | O12: =Årsarbetsschema!T14 -> 5
B13: 2026-10-10 | I13: 0 | J13: + | K13: 0 | N13: =IF(E13>0,E13-D13-F13-H13,IF(C13="",0,IF(C13="F",0,Årsarbetsschema!$E15))) -> 0 | O13: =Årsarbetsschema!T15 -> 6
B14: 2026-10-11 | I14: 0 | J14: + | K14: 0 | N14: =IF(E14>0,E14-D14-F14-H14,IF(C14="",0,IF(C14="F",0,Årsarbetsschema!$E16))) -> 0 | O14: =Årsarbetsschema!T16 -> 7
B15: 2026-10-12 | I15: 0 | J15: + | K15: 0 | N15: =IF(E15>0,E15-D15-F15-H15,IF(C15="",0,IF(C15="F",0,Årsarbetsschema!$E17))) -> 0 | O15: =Årsarbetsschema!T17 -> 1
B16: 2026-10-13 | I16: 0 | J16: + | K16: 0 | N16: =IF(E16>0,E16-D16-F16-H16,IF(C16="",0,IF(C16="F",0,Årsarbetsschema!$E18))) -> 0 | O16: =Årsarbetsschema!T18 -> 2
B17: 2026-10-14 | I17: 0 | J17: + | K17: 0 | N17: =IF(E17>0,E17-D17-F17-H17,IF(C17="",0,IF(C17="F",0,Årsarbetsschema!$E19))) -> 0 | O17: =Årsarbetsschema!T19 -> 3
B18: 2026-10-15 | I18: 0 | J18: + | K18: 0 | N18: =IF(E18>0,E18-D18-F18-H18,IF(C18="",0,IF(C18="F",0,Årsarbetsschema!$E20))) -> 0 | O18: =Årsarbetsschema!T20 -> 4
B19: 2026-10-16 | I19: 0 | J19: + | K19: 0 | N19: =IF(E19>0,E19-D19-F19-H19,IF(C19="",0,IF(C19="F",0,Årsarbetsschema!$E21))) -> 0 | O19: =Årsarbetsschema!T21 -> 5
B20: 2026-10-17 | I20: 0 | J20: + | K20: 0 | N20: =IF(E20>0,E20-D20-F20-H20,IF(C20="",0,IF(C20="F",0,Årsarbetsschema!$E22))) -> 0 | O20: =Årsarbetsschema!T22 -> 6
B21: 2026-10-18 | I21: 0 | J21: + | K21: 0 | N21: =IF(E21>0,E21-D21-F21-H21,IF(C21="",0,IF(C21="F",0,Årsarbetsschema!$E23))) -> 0 | O21: =Årsarbetsschema!T23 -> 7
B22: 2026-10-19 | I22: 0 | J22: + | K22: 0 | N22: =IF(E22>0,E22-D22-F22-H22,IF(C22="",0,IF(C22="F",0,Årsarbetsschema!$E24))) -> 0 | O22: =Årsarbetsschema!T24 -> 1
B23: 2026-10-20 | I23: 0 | J23: + | K23: 0 | N23: =IF(E23>0,E23-D23-F23-H23,IF(C23="",0,IF(C23="F",0,Årsarbetsschema!$E25))) -> 0 | O23: =Årsarbetsschema!T25 -> 2
B24: 2026-10-21 | I24: 0 | J24: + | K24: 0 | N24: =IF(E24>0,E24-D24-F24-H24,IF(C24="",0,IF(C24="F",0,Årsarbetsschema!$E26))) -> 0 | O24: =Årsarbetsschema!T26 -> 3
B25: 2026-10-22 | I25: 0 | J25: + | K25: 0 | N25: =IF(E25>0,E25-D25-F25-H25,IF(C25="",0,IF(C25="F",0,Årsarbetsschema!$E27))) -> 0 | O25: =Årsarbetsschema!T27 -> 4
B26: 2026-10-23 | I26: 0 | J26: + | K26: 0 | N26: =IF(E26>0,E26-D26-F26-H26,IF(C26="",0,IF(C26="F",0,Årsarbetsschema!$E28))) -> 0 | O26: =Årsarbetsschema!T28 -> 5
B27: 2026-10-24 | I27: 0 | J27: + | K27: 0 | N27: =IF(E27>0,E27-D27-F27-H27,IF(C27="",0,IF(C27="F",0,Årsarbetsschema!$E29))) -> 0 | O27: =Årsarbetsschema!T29 -> 6
B28: 2026-10-25 | I28: 0 | J28: + | K28: 0 | N28: =IF(E28>0,E28-D28-F28-H28,IF(C28="",0,IF(C28="F",0,Årsarbetsschema!$E30))) -> 0 | O28: =Årsarbetsschema!T30 -> 7
B29: 2026-10-26 | I29: 0 | J29: + | K29: 0 | N29: =IF(E29>0,E29-D29-F29-H29,IF(C29="",0,IF(C29="F",0,Årsarbetsschema!$E31))) -> 0 | O29: =Årsarbetsschema!T31 -> -1
B30: 2026-10-27 | I30: 0 | J30: + | K30: 0 | N30: =IF(E30>0,E30-D30-F30-H30,IF(C30="",0,IF(C30="F",0,Årsarbetsschema!$E32))) -> 0 | O30: =Årsarbetsschema!T32 -> -1
B31: 2026-10-28 | I31: 0 | J31: + | K31: 0 | N31: =IF(E31>0,E31-D31-F31-H31,IF(C31="",0,IF(C31="F",0,Årsarbetsschema!$E33))) -> 0 | O31: =Årsarbetsschema!T33 -> -1
B32: 2026-10-29 | I32: 0 | J32: + | K32: 0 | N32: =IF(E32>0,E32-D32-F32-H32,IF(C32="",0,IF(C32="F",0,Årsarbetsschema!$E34))) -> 0 | O32: =Årsarbetsschema!T34 -> 6
B33: 2026-10-30 | I33: 0 | J33: + | K33: 0 | N33: =IF(E33>0,E33-D33-F33-H33,IF(C33="",0,IF(C33="F",0,Årsarbetsschema!$E35))) -> 0 | O33: =Årsarbetsschema!T35 -> 6
B34: 2026-10-31 | I34: 0 | J34: + | K34: 0 | N34: =IF(E34>0,E34-D34-F34-H34,IF(C34="",0,IF(C34="F",0,Årsarbetsschema!$E36))) -> 0 | O34: =Årsarbetsschema!T36 -> 6
H35: Månad | I35: =IF(N35<0,-N35,N35) -> 0 | J35: + | K35: =SUM(K4:K34) -> 0 | N35: =SUM(N4:N34) -> 0
H36: Totalt | I36: =IF(N36<0,-N36,N36) -> 0 | J36: + | K36: =Sept!K36+Okt!K35 -> 0 | N36: =N35+N3 -> 0
B38: =IF(Uppgifter!$C$6="","",Uppgifter!$C$6) -> 

Sheet Nov
B1: =PROPER(TEXT(B4,"MMMM ÅÅÅÅ")) -> November 2026 | G1: =IF(Uppgifter!$C$6="","",Uppgifter!$C$6) -> 
N2: Dagsumma | O2: Vdag
B3: Datum | C3: Kod | D3: In | E3: Ut | F3: Lunch | G3: Planerat | H3: Ledighet | I3: Arbetstid | J3: Förtroendetid | L3: Anteckningar | N3: =Okt!N36 -> 0
B4: =DATEVALUE(Uppgifter!C4 & "-11-01") -> 2026-11-01 | I4: =IF(N4<0,-N4,N4) -> 0 | J4: + | K4: 0 | N4: =IF(E4>0,E4-D4-F4-H4,IF(C4="",0,IF(C4="F",0,Årsarbetsschema!$F6))) -> 0 | O4: =Årsarbetsschema!U6 -> 7 | P4: Sj
B5: =B4+1 -> 2026-11-02 | I5: =IF(N5<0,-N5,N5) -> 0 | J5: + | K5: 0 | N5: =IF(E5>0,E5-D5-F5-H5,IF(C5="",0,IF(C5="F",0,Årsarbetsschema!$F7))) -> 0 | O5: =Årsarbetsschema!U7 -> 1 | P5: Tj
B6: =B5+1 -> 2026-11-03 | I6: 0 | J6: + | K6: 0 | N6: =IF(E6>0,E6-D6-F6-H6,IF(C6="",0,IF(C6="F",0,Årsarbetsschema!$F8))) -> 0 | O6: =Årsarbetsschema!U8 -> 2 | P6: VB
B7: 2026-11-04 | I7: 0 | J7: + | K7: 0 | N7: =IF(E7>0,E7-D7-F7-H7,IF(C7="",0,IF(C7="F",0,Årsarbetsschema!$F9))) -> 0 | O7: =Årsarbetsschema!U9 -> 3 | P7: FL
B8: 2026-11-05 | I8: 0 | J8: + | K8: 0 | N8: =IF(E8>0,E8-D8-F8-H8,IF(C8="",0,IF(C8="F",0,Årsarbetsschema!$F10))) -> 0 | O8: =Årsarbetsschema!U10 -> 4
B9: 2026-11-06 | I9: 0 | J9: + | K9: 0 | N9: =IF(E9>0,E9-D9-F9-H9,IF(C9="",0,IF(C9="F",0,Årsarbetsschema!$F11))) -> 0 | O9: =Årsarbetsschema!U11 -> 5
B10: 2026-11-07 | I10: 0 | J10: + | K10: 0 | N10: =IF(E10>0,E10-D10-F10-H10,IF(C10="",0,IF(C10="F",0,Årsarbetsschema!$F12))) -> 0 | O10: =Årsarbetsschema!U12 -> 6
B11: 2026-11-08 | I11: 0 | J11: + | K11: 0 | N11: =IF(E11>0,E11-D11-F11-H11,IF(C11="",0,IF(C11="F",0,Årsarbetsschema!$F13))) -> 0 | O11: =Årsarbetsschema!U13 -> 7
B12: 2026-11-09 | I12: 0 | J12: + | K12: 0 | N12: =IF(E12>0,E12-D12-F12-H12,IF(C12="",0,IF(C12="F",0,Årsarbetsschema!$F14))) -> 0 | O12: =Årsarbetsschema!U14 -> 1
B13: 2026-11-10 | I13: 0 | J13: + | K13: 0 | N13: =IF(E13>0,E13-D13-F13-H13,IF(C13="",0,IF(C13="F",0,Årsarbetsschema!$F15))) -> 0 | O13: =Årsarbetsschema!U15 -> 2
B14: 2026-11-11 | I14: 0 | J14: + | K14: 0 | N14: =IF(E14>0,E14-D14-F14-H14,IF(C14="",0,IF(C14="F",0,Årsarbetsschema!$F16))) -> 0 | O14: =Årsarbetsschema!U16 -> 3
B15: 2026-11-12 | I15: 0 | J15: + | K15: 0 | N15: =IF(E15>0,E15-D15-F15-H15,IF(C15="",0,IF(C15="F",0,Årsarbetsschema!$F17))) -> 0 | O15: =Årsarbetsschema!U17 -> 4
B16: 2026-11-13 | I16: 0 | J16: + | K16: 0 | N16: =IF(E16>0,E16-D16-F16-H16,IF(C16="",0,IF(C16="F",0,Årsarbetsschema!$F18))) -> 0 | O16: =Årsarbetsschema!U18 -> 5
B17: 2026-11-14 | I17: 0 | J17: + | K17: 0 | N17: =IF(E17>0,E17-D17-F17-H17,IF(C17="",0,IF(C17="F",0,Årsarbetsschema!$F19))) -> 0 | O17: =Årsarbetsschema!U19 -> 6
B18: 2026-11-15 | I18: 0 | J18: + | K18: 0 | N18: =IF(E18>0,E18-D18-F18-H18,IF(C18="",0,IF(C18="F",0,Årsarbetsschema!$F20))) -> 0 | O18: =Årsarbetsschema!U20 -> 7
B19: 2026-11-16 | I19: 0 | J19: + | K19: 0 | N19: =IF(E19>0,E19-D19-F19-H19,IF(C19="",0,IF(C19="F",0,Årsarbetsschema!$F21))) -> 0 | O19: =Årsarbetsschema!U21 -> 1
B20: 2026-11-17 | I20: 0 | J20: + | K20: 0 | N20: =IF(E20>0,E20-D20-F20-H20,IF(C20="",0,IF(C20="F",0,Årsarbetsschema!$F22))) -> 0 | O20: =Årsarbetsschema!U22 -> 2
B21: 2026-11-18 | I21: 0 | J21: + | K21: 0 | N21: =IF(E21>0,E21-D21-F21-H21,IF(C21="",0,IF(C21="F",0,Årsarbetsschema!$F23))) -> 0 | O21: =Årsarbetsschema!U23 -> 3
B22: 2026-11-19 | I22: 0 | J22: + | K22: 0 | N22: =IF(E22>0,E22-D22-F22-H22,IF(C22="",0,IF(C22="F",0,Årsarbetsschema!$F24))) -> 0 | O22: =Årsarbetsschema!U24 -> 4
B23: 2026-11-20 | I23: 0 | J23: + | K23: 0 | N23: =IF(E23>0,E23-D23-F23-H23,IF(C23="",0,IF(C23="F",0,Årsarbetsschema!$F25))) -> 0 | O23: =Årsarbetsschema!U25 -> 5
B24: 2026-11-21 | I24: 0 | J24: + | K24: 0 | N24: =IF(E24>0,E24-D24-F24-H24,IF(C24="",0,IF(C24="F",0,Årsarbetsschema!$F26))) -> 0 | O24: =Årsarbetsschema!U26 -> 6
B25: 2026-11-22 | I25: 0 | J25: + | K25: 0 | N25: =IF(E25>0,E25-D25-F25-H25,IF(C25="",0,IF(C25="F",0,Årsarbetsschema!$F27))) -> 0 | O25: =Årsarbetsschema!U27 -> 7
B26: 2026-11-23 | I26: 0 | J26: + | K26: 0 | N26: =IF(E26>0,E26-D26-F26-H26,IF(C26="",0,IF(C26="F",0,Årsarbetsschema!$F28))) -> 0 | O26: =Årsarbetsschema!U28 -> 1
B27: 2026-11-24 | I27: 0 | J27: + | K27: 0 | N27: =IF(E27>0,E27-D27-F27-H27,IF(C27="",0,IF(C27="F",0,Årsarbetsschema!$F29))) -> 0 | O27: =Årsarbetsschema!U29 -> 2
B28: 2026-11-25 | I28: 0 | J28: + | K28: 0 | N28: =IF(E28>0,E28-D28-F28-H28,IF(C28="",0,IF(C28="F",0,Årsarbetsschema!$F30))) -> 0 | O28: =Årsarbetsschema!U30 -> 3
B29: 2026-11-26 | I29: 0 | J29: + | K29: 0 | N29: =IF(E29>0,E29-D29-F29-H29,IF(C29="",0,IF(C29="F",0,Årsarbetsschema!$F31))) -> 0 | O29: =Årsarbetsschema!U31 -> 4
B30: 2026-11-27 | I30: 0 | J30: + | K30: 0 | N30: =IF(E30>0,E30-D30-F30-H30,IF(C30="",0,IF(C30="F",0,Årsarbetsschema!$F32))) -> 0 | O30: =Årsarbetsschema!U32 -> 5
B31: 2026-11-28 | I31: 0 | J31: + | K31: 0 | N31: =IF(E31>0,E31-D31-F31-H31,IF(C31="",0,IF(C31="F",0,Årsarbetsschema!$F33))) -> 0 | O31: =Årsarbetsschema!U33 -> 6
B32: 2026-11-29 | I32: 0 | J32: + | K32: 0 | N32: =IF(E32>0,E32-D32-F32-H32,IF(C32="",0,IF(C32="F",0,Årsarbetsschema!$F34))) -> 0 | O32: =Årsarbetsschema!U34 -> 7
B33: 2026-11-30 | I33: =IF(N33<0,-N33,N33) -> 0 | J33: + | K33: 0 | N33: =IF(E33>0,E33-D33-F33-H33,IF(C33="",0,IF(C33="F",0,Årsarbetsschema!$F35))) -> 0 | O33: =Årsarbetsschema!U35 -> 1
B34: 2026-12-01 | F34: 00:30:00 | G34: 140 | I34: 0 | J34: =IF(#REF!>=0,"+","-") ->  | N34: =IF(E34>0,E34-D34-F34-H34,IF(C34="",0,IF(C34="F",0,Årsarbetsschema!$D$40))) -> 0 | O34: =WEEKDAY(B34,2) -> 2
H35: Månad | I35: 0 | J35: + | K35: =SUM(K4:K33) -> 0 | N35: =SUM(N4:N34) -> 0
H36: Totalt | I36: 0 | J36: + | K36: =Okt!K36+Nov!K35 -> 0 | N36: =N35+N3 -> 0
B38: =IF(Uppgifter!$C$6="","",Uppgifter!$C$6) -> 

Sheet Dec
B1: =PROPER(TEXT(B4,"MMMM ÅÅÅÅ")) -> December 2026 | G1: =IF(Uppgifter!$C$6="","",Uppgifter!$C$6) -> 
N2: Dagsumma | O2: Vdag
B3: Datum | C3: Kod | D3: In | E3: Ut | F3: Lunch | G3: Planerat | H3: Ledighet | I3: Arbetstid | J3: Förtroendetid | L3: Anteckningar | N3: =Nov!N36 -> 0
B4: =DATEVALUE(Uppgifter!C4 & "-12-01") -> 2026-12-01 | I4: =IF(N4<0,-N4,N4) -> 0 | J4: + | K4: 0 | N4: =IF(E4>0,E4-D4-F4-H4,IF(C4="",0,IF(C4="F",0,Årsarbetsschema!$G6))) -> 0 | O4: =Årsarbetsschema!V6 -> 2 | P4: Sj
B5: =B4+1 -> 2026-12-02 | I5: =IF(N5<0,-N5,N5) -> 0 | J5: + | K5: 0 | N5: =IF(E5>0,E5-D5-F5-H5,IF(C5="",0,IF(C5="F",0,Årsarbetsschema!$G7))) -> 0 | O5: =Årsarbetsschema!V7 -> 3 | P5: Tj
B6: =B5+1 -> 2026-12-03 | I6: 0 | J6: + | K6: 0 | N6: =IF(E6>0,E6-D6-F6-H6,IF(C6="",0,IF(C6="F",0,Årsarbetsschema!$G8))) -> 0 | O6: =Årsarbetsschema!V8 -> 4 | P6: VB
B7: 2026-12-04 | I7: 0 | J7: + | K7: 0 | N7: =IF(E7>0,E7-D7-F7-H7,IF(C7="",0,IF(C7="F",0,Årsarbetsschema!$G9))) -> 0 | O7: =Årsarbetsschema!V9 -> 5 | P7: FL
B8: 2026-12-05 | I8: 0 | J8: + | K8: 0 | N8: =IF(E8>0,E8-D8-F8-H8,IF(C8="",0,IF(C8="F",0,Årsarbetsschema!$G10))) -> 0 | O8: =Årsarbetsschema!V10 -> 6
B9: 2026-12-06 | I9: 0 | J9: + | K9: 0 | N9: =IF(E9>0,E9-D9-F9-H9,IF(C9="",0,IF(C9="F",0,Årsarbetsschema!$G11))) -> 0 | O9: =Årsarbetsschema!V11 -> 7
B10: 2026-12-07 | I10: 0 | J10: + | K10: 0 | N10: =IF(E10>0,E10-D10-F10-H10,IF(C10="",0,IF(C10="F",0,Årsarbetsschema!$G12))) -> 0 | O10: =Årsarbetsschema!V12 -> 1
B11: 2026-12-08 | I11: 0 | J11: + | K11: 0 | N11: =IF(E11>0,E11-D11-F11-H11,IF(C11="",0,IF(C11="F",0,Årsarbetsschema!$G13))) -> 0 | O11: =Årsarbetsschema!V13 -> 2
B12: 2026-12-09 | I12: 0 | J12: + | K12: 0 | N12: =IF(E12>0,E12-D12-F12-H12,IF(C12="",0,IF(C12="F",0,Årsarbetsschema!$G14))) -> 0 | O12: =Årsarbetsschema!V14 -> 3
B13: 2026-12-10 | I13: 0 | J13: + | K13: 0 | N13: =IF(E13>0,E13-D13-F13-H13,IF(C13="",0,IF(C13="F",0,Årsarbetsschema!$G15))) -> 0 | O13: =Årsarbetsschema!V15 -> 4
B14: 2026-12-11 | I14: 0 | J14: + | K14: 0 | N14: =IF(E14>0,E14-D14-F14-H14,IF(C14="",0,IF(C14="F",0,Årsarbetsschema!$G16))) -> 0 | O14: =Årsarbetsschema!V16 -> 5
B15: 2026-12-12 | I15: 0 | J15: + | K15: 0 | N15: =IF(E15>0,E15-D15-F15-H15,IF(C15="",0,IF(C15="F",0,Årsarbetsschema!$G17))) -> 0 | O15: =Årsarbetsschema!V17 -> 6
B16: 2026-12-13 | I16: 0 | J16: + | K16: 0 | N16: =IF(E16>0,E16-D16-F16-H16,IF(C16="",0,IF(C16="F",0,Årsarbetsschema!$G18))) -> 0 | O16: =Årsarbetsschema!V18 -> 7
B17: 2026-12-14 | I17: 0 | J17: + | K17: 0 | N17: =IF(E17>0,E17-D17-F17-H17,IF(C17="",0,IF(C17="F",0,Årsarbetsschema!$G19))) -> 0 | O17: =Årsarbetsschema!V19 -> 1
B18: 2026-12-15 | I18: 0 | J18: + | K18: 0 | N18: =IF(E18>0,E18-D18-F18-H18,IF(C18="",0,IF(C18="F",0,Årsarbetsschema!$G20))) -> 0 | O18: =Årsarbetsschema!V20 -> 2
B19: 2026-12-16 | I19: 0 | J19: + | K19: 0 | N19: =IF(E19>0,E19-D19-F19-H19,IF(C19="",0,IF(C19="F",0,Årsarbetsschema!$G21))) -> 0 | O19: =Årsarbetsschema!V21 -> 3
B20: 2026-12-17 | I20: 0 | J20: + | K20: 0 | N20: =IF(E20>0,E20-D20-F20-H20,IF(C20="",0,IF(C20="F",0,Årsarbetsschema!$G22))) -> 0 | O20: =Årsarbetsschema!V22 -> 4
B21: 2026-12-18 | I21: 0 | J21: + | K21: 0 | N21: =IF(E21>0,E21-D21-F21-H21,IF(C21="",0,IF(C21="F",0,Årsarbetsschema!$G23))) -> 0 | O21: =Årsarbetsschema!V23 -> 5
B22: 2026-12-19 | I22: 0 | J22: + | K22: 0 | N22: =IF(E22>0,E22-D22-F22-H22,IF(C22="",0,IF(C22="F",0,Årsarbetsschema!$G24))) -> 0 | O22: =Årsarbetsschema!V24 -> 6
B23: 2026-12-20 | I23: 0 | J23: + | K23: 0 | N23: =IF(E23>0,E23-D23-F23-H23,IF(C23="",0,IF(C23="F",0,Årsarbetsschema!$G25))) -> 0 | O23: =Årsarbetsschema!V25 -> 7
B24: 2026-12-21 | I24: 0 | J24: + | K24: 0 | N24: =IF(E24>0,E24-D24-F24-H24,IF(C24="",0,IF(C24="F",0,Årsarbetsschema!$G26))) -> 0 | O24: =Årsarbetsschema!V26 -> 1
B25: 2026-12-22 | I25: 0 | J25: + | K25: 0 | N25: =IF(E25>0,E25-D25-F25-H25,IF(C25="",0,IF(C25="F",0,Årsarbetsschema!$G27))) -> 0 | O25: =Årsarbetsschema!V27 -> 2
B26: 2026-12-23 | I26: 0 | J26: + | K26: 0 | N26: =IF(E26>0,E26-D26-F26-H26,IF(C26="",0,IF(C26="F",0,Årsarbetsschema!$G28))) -> 0 | O26: =Årsarbetsschema!V28 -> 6
B27: 2026-12-24 | I27: 0 | J27: + | K27: 0 | N27: =IF(E27>0,E27-D27-F27-H27,IF(C27="",0,IF(C27="F",0,Årsarbetsschema!$G29))) -> 0 | O27: =Årsarbetsschema!V29 -> 6
B28: 2026-12-25 | I28: 0 | J28: + | K28: 0 | N28: =IF(E28>0,E28-D28-F28-H28,IF(C28="",0,IF(C28="F",0,Årsarbetsschema!$G30))) -> 0 | O28: =Årsarbetsschema!V30 -> 6
B29: 2026-12-26 | I29: 0 | J29: + | K29: 0 | N29: =IF(E29>0,E29-D29-F29-H29,IF(C29="",0,IF(C29="F",0,Årsarbetsschema!$G31))) -> 0 | O29: =Årsarbetsschema!V31 -> 6
B30: 2026-12-27 | I30: 0 | J30: + | K30: 0 | N30: =IF(E30>0,E30-D30-F30-H30,IF(C30="",0,IF(C30="F",0,Årsarbetsschema!$G32))) -> 0 | O30: =Årsarbetsschema!V32 -> 6
B31: 2026-12-28 | I31: 0 | J31: + | K31: 0 | N31: =IF(E31>0,E31-D31-F31-H31,IF(C31="",0,IF(C31="F",0,Årsarbetsschema!$G33))) -> 0 | O31: =Årsarbetsschema!V33 -> 6
B32: 2026-12-29 | I32: 0 | J32: + | K32: 0 | N32: =IF(E32>0,E32-D32-F32-H32,IF(C32="",0,IF(C32="F",0,Årsarbetsschema!$G34))) -> 0 | O32: =Årsarbetsschema!V34 -> 6
B33: 2026-12-30 | I33: 0 | J33: + | K33: 0 | N33: =IF(E33>0,E33-D33-F33-H33,IF(C33="",0,IF(C33="F",0,Årsarbetsschema!$G35))) -> 0 | O33: =Årsarbetsschema!V35 -> 6
B34: 2026-12-31 | I34: 0 | J34: + | K34: 0 | N34: =IF(E34>0,E34-D34-F34-H34,IF(C34="",0,IF(C34="F",0,Årsarbetsschema!$G36))) -> 0 | O34: =Årsarbetsschema!V36 -> 6
H35: Månad | I35: 0 | J35: + | K35: =SUM(K4:K34) -> 0 | N35: =SUM(N4:N34) -> 0
H36: Totalt | I36: 0 | J36: + | K36: =Nov!K36+Dec!K35 -> 0 | N36: =N35+N3 -> 0
B38: =IF(Uppgifter!$C$6="","",Uppgifter!$C$6) -> 

Sheet Jan
B1: =PROPER(TEXT(B4,"MMMM ÅÅÅÅ")) -> Januari 2027 | F1: =IF(Uppgifter!$C$6="","",Uppgifter!$C$6) ->  | N1: Dagsumma | O1: Vdag
B3: Datum | C3: Kod | D3: In | E3: Ut | F3: Lunch | G3: Planerat | H3: Ledighet | I3: Arbetstid | J3: Förtroendetid | L3: Anteckningar | N3: =Dec!N36 -> 0
B4: =DATEVALUE(Uppgifter!D4 & "-01-01") -> 2027-01-01 | I4: =IF(N4<0,-N4,N4) -> 0 | J4: + | K4: 0 | N4: =IF(E4>0,E4-D4-F4-H4,IF(C4="",0,IF(C4="F",0,Årsarbetsschema!$I6))) -> 0 | O4: =Årsarbetsschema!X6 -> 6 | P4: Sj
B5: =B4+1 -> 2027-01-02 | I5: =IF(N5<0,-N5,N5) -> 0 | J5: + | K5: 0 | N5: =IF(E5>0,E5-D5-F5-H5,IF(C5="",0,IF(C5="F",0,Årsarbetsschema!$I7))) -> 0 | O5: =Årsarbetsschema!X7 -> 6 | P5: Tj
B6: =B5+1 -> 2027-01-03 | I6: 0 | J6: + | K6: 0 | N6: =IF(E6>0,E6-D6-F6-H6,IF(C6="",0,IF(C6="F",0,Årsarbetsschema!$I8))) -> 0 | O6: =Årsarbetsschema!X8 -> 6 | P6: VB
B7: 2027-01-04 | I7: 0 | J7: + | K7: 0 | N7: =IF(E7>0,E7-D7-F7-H7,IF(C7="",0,IF(C7="F",0,Årsarbetsschema!$I9))) -> 0 | O7: =Årsarbetsschema!X9 -> 6 | P7: FL
B8: 2027-01-05 | I8: 0 | J8: + | K8: 0 | N8: =IF(E8>0,E8-D8-F8-H8,IF(C8="",0,IF(C8="F",0,Årsarbetsschema!$I10))) -> 0 | O8: =Årsarbetsschema!X10 -> 6
B9: 2027-01-06 | I9: 0 | J9: + | K9: 0 | N9: =IF(E9>0,E9-D9-F9-H9,IF(C9="",0,IF(C9="F",0,Årsarbetsschema!$I11))) -> 0 | O9: =Årsarbetsschema!X11 -> 6
B10: 2027-01-07 | I10: 0 | J10: + | K10: 0 | N10: =IF(E10>0,E10-D10-F10-H10,IF(C10="",0,IF(C10="F",0,Årsarbetsschema!$I12))) -> 0 | O10: =Årsarbetsschema!X12 -> 6
B11: 2027-01-08 | I11: 0 | J11: + | K11: 0 | N11: =IF(E11>0,E11-D11-F11-H11,IF(C11="",0,IF(C11="F",0,Årsarbetsschema!$I13))) -> 0 | O11: =Årsarbetsschema!X13 -> 6
B12: 2027-01-09 | I12: 0 | J12: + | K12: 0 | N12: =IF(E12>0,E12-D12-F12-H12,IF(C12="",0,IF(C12="F",0,Årsarbetsschema!$I14))) -> 0 | O12: =Årsarbetsschema!X14 -> 6
B13: 2027-01-10 | I13: 0 | J13: + | K13: 0 | N13: =IF(E13>0,E13-D13-F13-H13,IF(C13="",0,IF(C13="F",0,Årsarbetsschema!$I15))) -> 0 | O13: =Årsarbetsschema!X15 -> 7
B14: 2027-01-11 | I14: 0 | J14: + | K14: 0 | N14: =IF(E14>0,E14-D14-F14-H14,IF(C14="",0,IF(C14="F",0,Årsarbetsschema!$I16))) -> 0 | O14: =Årsarbetsschema!X16 -> -1
B15: 2027-01-12 | I15: 0 | J15: + | K15: 0 | N15: =IF(E15>0,E15-D15-F15-H15,IF(C15="",0,IF(C15="F",0,Årsarbetsschema!$I17))) -> 0 | O15: =Årsarbetsschema!X17 -> -1
B16: 2027-01-13 | I16: 0 | J16: + | K16: 0 | N16: =IF(E16>0,E16-D16-F16-H16,IF(C16="",0,IF(C16="F",0,Årsarbetsschema!$I18))) -> 0 | O16: =Årsarbetsschema!X18 -> 3
B17: 2027-01-14 | I17: 0 | J17: + | K17: 0 | N17: =IF(E17>0,E17-D17-F17-H17,IF(C17="",0,IF(C17="F",0,Årsarbetsschema!$I19))) -> 0 | O17: =Årsarbetsschema!X19 -> 4
B18: 2027-01-15 | I18: 0 | J18: + | K18: 0 | N18: =IF(E18>0,E18-D18-F18-H18,IF(C18="",0,IF(C18="F",0,Årsarbetsschema!$I20))) -> 0 | O18: =Årsarbetsschema!X20 -> 5
B19: 2027-01-16 | I19: 0 | J19: + | K19: 0 | N19: =IF(E19>0,E19-D19-F19-H19,IF(C19="",0,IF(C19="F",0,Årsarbetsschema!$I21))) -> 0 | O19: =Årsarbetsschema!X21 -> 6
B20: 2027-01-17 | I20: 0 | J20: + | K20: 0 | N20: =IF(E20>0,E20-D20-F20-H20,IF(C20="",0,IF(C20="F",0,Årsarbetsschema!$I22))) -> 0 | O20: =Årsarbetsschema!X22 -> 7
B21: 2027-01-18 | I21: 0 | J21: + | K21: 0 | N21: =IF(E21>0,E21-D21-F21-H21,IF(C21="",0,IF(C21="F",0,Årsarbetsschema!$I23))) -> 0 | O21: =Årsarbetsschema!X23 -> 1
B22: 2027-01-19 | I22: 0 | J22: + | K22: 0 | N22: =IF(E22>0,E22-D22-F22-H22,IF(C22="",0,IF(C22="F",0,Årsarbetsschema!$I24))) -> 0 | O22: =Årsarbetsschema!X24 -> 2
B23: 2027-01-20 | I23: 0 | J23: + | K23: 0 | N23: =IF(E23>0,E23-D23-F23-H23,IF(C23="",0,IF(C23="F",0,Årsarbetsschema!$I25))) -> 0 | O23: =Årsarbetsschema!X25 -> 3
B24: 2027-01-21 | I24: 0 | J24: + | K24: 0 | N24: =IF(E24>0,E24-D24-F24-H24,IF(C24="",0,IF(C24="F",0,Årsarbetsschema!$I26))) -> 0 | O24: =Årsarbetsschema!X26 -> 4
B25: 2027-01-22 | I25: 0 | J25: + | K25: 0 | N25: =IF(E25>0,E25-D25-F25-H25,IF(C25="",0,IF(C25="F",0,Årsarbetsschema!$I27))) -> 0 | O25: =Årsarbetsschema!X27 -> 5
B26: 2027-01-23 | I26: 0 | J26: + | K26: 0 | N26: =IF(E26>0,E26-D26-F26-H26,IF(C26="",0,IF(C26="F",0,Årsarbetsschema!$I28))) -> 0 | O26: =Årsarbetsschema!X28 -> 6
B27: 2027-01-24 | I27: 0 | J27: + | K27: 0 | N27: =IF(E27>0,E27-D27-F27-H27,IF(C27="",0,IF(C27="F",0,Årsarbetsschema!$I29))) -> 0 | O27: =Årsarbetsschema!X29 -> 7
B28: 2027-01-25 | I28: 0 | J28: + | K28: 0 | N28: =IF(E28>0,E28-D28-F28-H28,IF(C28="",0,IF(C28="F",0,Årsarbetsschema!$I30))) -> 0 | O28: =Årsarbetsschema!X30 -> 1
B29: 2027-01-26 | I29: 0 | J29: + | K29: 0 | N29: =IF(E29>0,E29-D29-F29-H29,IF(C29="",0,IF(C29="F",0,Årsarbetsschema!$I31))) -> 0 | O29: =Årsarbetsschema!X31 -> 2
B30: 2027-01-27 | I30: 0 | J30: + | K30: 0 | N30: =IF(E30>0,E30-D30-F30-H30,IF(C30="",0,IF(C30="F",0,Årsarbetsschema!$I32))) -> 0 | O30: =Årsarbetsschema!X32 -> 3
B31: 2027-01-28 | I31: 0 | J31: + | K31: 0 | N31: =IF(E31>0,E31-D31-F31-H31,IF(C31="",0,IF(C31="F",0,Årsarbetsschema!$I33))) -> 0 | O31: =Årsarbetsschema!X33 -> 4
B32: 2027-01-29 | I32: 0 | J32: + | K32: 0 | N32: =IF(E32>0,E32-D32-F32-H32,IF(C32="",0,IF(C32="F",0,Årsarbetsschema!$I34))) -> 0 | O32: =Årsarbetsschema!X34 -> 5
B33: 2027-01-30 | I33: 0 | J33: + | K33: 0 | N33: =IF(E33>0,E33-D33-F33-H33,IF(C33="",0,IF(C33="F",0,Årsarbetsschema!$I35))) -> 0 | O33: =Årsarbetsschema!X35 -> 6
B34: 2027-01-31 | I34: 0 | J34: + | K34: 0 | N34: =IF(E34>0,E34-D34-F34-H34,IF(C34="",0,IF(C34="F",0,Årsarbetsschema!$I36))) -> 0 | O34: =Årsarbetsschema!X36 -> 7
H35: Månad | I35: =IF(N35<0,-N35,N35) -> 0 | J35: + | K35: =SUM(K4:K34) -> 0 | N35: =SUM(N4:N34) -> 0
H36: Totalt | I36: 0 | J36: + | K36: =Dec!K36+Jan!K35 -> 0 | N36: =N3+N35 -> 0
B38: =IF(Uppgifter!$C$6="","",Uppgifter!$C$6) -> 

Sheet Feb
B1: =PROPER(TEXT(B4,"MMMM ÅÅÅÅ")) -> Februari 2027 | G1: =IF(Uppgifter!$C$6="","",Uppgifter!$C$6) -> 
N2: Dagsumma | O2: Vdag
B3: Datum | C3: Kod | D3: In | E3: Ut | F3: Lunch | G3: Planerat | H3: Ledighet | I3: Arbetstid | J3: Förtroendetid | L3: Anteckningar | N3: =Jan!N36 -> 0
B4: =DATEVALUE(Uppgifter!D4 & "-02-01") -> 2027-02-01 | I4: =IF(N4<0,-N4,N4) -> 0 | J4: + | K4: 0 | N4: =IF(E4>0,E4-D4-F4-H4,IF(C4="",0,IF(C4="F",0,Årsarbetsschema!$J6))) -> 0 | O4: =Årsarbetsschema!Y6 -> 1 | P4: Sj
B5: =B4+1 -> 2027-02-02 | I5: =IF(N5<0,-N5,N5) -> 0 | J5: + | K5: 0 | N5: =IF(E5>0,E5-D5-F5-H5,IF(C5="",0,IF(C5="F",0,Årsarbetsschema!$J7))) -> 0 | O5: =Årsarbetsschema!Y7 -> 2 | P5: Tj
B6: =B5+1 -> 2027-02-03 | I6: 0 | J6: + | K6: 0 | N6: =IF(E6>0,E6-D6-F6-H6,IF(C6="",0,IF(C6="F",0,Årsarbetsschema!$J8))) -> 0 | O6: =Årsarbetsschema!Y8 -> 3 | P6: VB
B7: 2027-02-04 | I7: 0 | J7: + | K7: 0 | N7: =IF(E7>0,E7-D7-F7-H7,IF(C7="",0,IF(C7="F",0,Årsarbetsschema!$J9))) -> 0 | O7: =Årsarbetsschema!Y9 -> 4 | P7: FL
B8: 2027-02-05 | I8: 0 | J8: + | K8: 0 | N8: =IF(E8>0,E8-D8-F8-H8,IF(C8="",0,IF(C8="F",0,Årsarbetsschema!$J10))) -> 0 | O8: =Årsarbetsschema!Y10 -> 5
B9: 2027-02-06 | I9: 0 | J9: + | K9: 0 | N9: =IF(E9>0,E9-D9-F9-H9,IF(C9="",0,IF(C9="F",0,Årsarbetsschema!$J11))) -> 0 | O9: =Årsarbetsschema!Y11 -> 6
B10: 2027-02-07 | I10: 0 | J10: + | K10: 0 | N10: =IF(E10>0,E10-D10-F10-H10,IF(C10="",0,IF(C10="F",0,Årsarbetsschema!$J12))) -> 0 | O10: =Årsarbetsschema!Y12 -> 7
B11: 2027-02-08 | I11: 0 | J11: + | K11: 0 | N11: =IF(E11>0,E11-D11-F11-H11,IF(C11="",0,IF(C11="F",0,Årsarbetsschema!$J13))) -> 0 | O11: =Årsarbetsschema!Y13 -> 1
B12: 2027-02-09 | I12: 0 | J12: + | K12: 0 | N12: =IF(E12>0,E12-D12-F12-H12,IF(C12="",0,IF(C12="F",0,Årsarbetsschema!$J14))) -> 0 | O12: =Årsarbetsschema!Y14 -> 2
B13: 2027-02-10 | I13: 0 | J13: + | K13: 0 | N13: =IF(E13>0,E13-D13-F13-H13,IF(C13="",0,IF(C13="F",0,Årsarbetsschema!$J15))) -> 0 | O13: =Årsarbetsschema!Y15 -> 3
B14: 2027-02-11 | I14: 0 | J14: + | K14: 0 | N14: =IF(E14>0,E14-D14-F14-H14,IF(C14="",0,IF(C14="F",0,Årsarbetsschema!$J16))) -> 0 | O14: =Årsarbetsschema!Y16 -> 4
B15: 2027-02-12 | I15: 0 | J15: + | K15: 0 | N15: =IF(E15>0,E15-D15-F15-H15,IF(C15="",0,IF(C15="F",0,Årsarbetsschema!$J17))) -> 0 | O15: =Årsarbetsschema!Y17 -> 5
B16: 2027-02-13 | I16: 0 | J16: + | K16: 0 | N16: =IF(E16>0,E16-D16-F16-H16,IF(C16="",0,IF(C16="F",0,Årsarbetsschema!$J18))) -> 0 | O16: =Årsarbetsschema!Y18 -> 6
B17: 2027-02-14 | I17: 0 | J17: + | K17: 0 | N17: =IF(E17>0,E17-D17-F17-H17,IF(C17="",0,IF(C17="F",0,Årsarbetsschema!$J19))) -> 0 | O17: =Årsarbetsschema!Y19 -> 7
B18: 2027-02-15 | I18: 0 | J18: + | K18: 0 | N18: =IF(E18>0,E18-D18-F18-H18,IF(C18="",0,IF(C18="F",0,Årsarbetsschema!$J20))) -> 0 | O18: =Årsarbetsschema!Y20 -> 1
B19: 2027-02-16 | I19: 0 | J19: + | K19: 0 | N19: =IF(E19>0,E19-D19-F19-H19,IF(C19="",0,IF(C19="F",0,Årsarbetsschema!$J21))) -> 0 | O19: =Årsarbetsschema!Y21 -> 2
B20: 2027-02-17 | I20: 0 | J20: + | K20: 0 | N20: =IF(E20>0,E20-D20-F20-H20,IF(C20="",0,IF(C20="F",0,Årsarbetsschema!$J22))) -> 0 | O20: =Årsarbetsschema!Y22 -> 3
B21: 2027-02-18 | I21: 0 | J21: + | K21: 0 | N21: =IF(E21>0,E21-D21-F21-H21,IF(C21="",0,IF(C21="F",0,Årsarbetsschema!$J23))) -> 0 | O21: =Årsarbetsschema!Y23 -> 4
B22: 2027-02-19 | I22: 0 | J22: + | K22: 0 | N22: =IF(E22>0,E22-D22-F22-H22,IF(C22="",0,IF(C22="F",0,Årsarbetsschema!$J24))) -> 0 | O22: =Årsarbetsschema!Y24 -> 5
B23: 2027-02-20 | I23: 0 | J23: + | K23: 0 | N23: =IF(E23>0,E23-D23-F23-H23,IF(C23="",0,IF(C23="F",0,Årsarbetsschema!$J25))) -> 0 | O23: =Årsarbetsschema!Y25 -> 6
B24: 2027-02-21 | I24: 0 | J24: + | K24: 0 | N24: =IF(E24>0,E24-D24-F24-H24,IF(C24="",0,IF(C24="F",0,Årsarbetsschema!$J26))) -> 0 | O24: =Årsarbetsschema!Y26 -> 7
B25: 2027-02-22 | I25: 0 | J25: + | K25: 0 | N25: =IF(E25>0,E25-D25-F25-H25,IF(C25="",0,IF(C25="F",0,Årsarbetsschema!$J27))) -> 0 | O25: =Årsarbetsschema!Y27 -> 6
B26: 2027-02-23 | I26: 0 | J26: + | K26: 0 | N26: =IF(E26>0,E26-D26-F26-H26,IF(C26="",0,IF(C26="F",0,Årsarbetsschema!$J28))) -> 0 | O26: =Årsarbetsschema!Y28 -> 6
B27: 2027-02-24 | I27: 0 | J27: + | K27: 0 | N27: =IF(E27>0,E27-D27-F27-H27,IF(C27="",0,IF(C27="F",0,Årsarbetsschema!$J29))) -> 0 | O27: =Årsarbetsschema!Y29 -> 6
B28: 2027-02-25 | I28: 0 | J28: + | K28: 0 | N28: =IF(E28>0,E28-D28-F28-H28,IF(C28="",0,IF(C28="F",0,Årsarbetsschema!$J30))) -> 0 | O28: =Årsarbetsschema!Y30 -> 6
B29: 2027-02-26 | I29: 0 | J29: + | K29: 0 | N29: =IF(E29>0,E29-D29-F29-H29,IF(C29="",0,IF(C29="F",0,Årsarbetsschema!$J31))) -> 0 | O29: =Årsarbetsschema!Y31 -> 6
B30: 2027-02-27 | I30: =IF(N30<0,-N30,N30) -> 0 | J30: + | K30: 0 | N30: =IF(E30>0,E30-D30-F30-H30,IF(C30="",0,IF(C30="F",0,Årsarbetsschema!$J32))) -> 0 | O30: =Årsarbetsschema!Y32 -> 6
B31: 2027-02-28 | I31: 0 | J31: + | K31: 0 | N31: =IF(E31>0,E31-D31-F31-H31,IF(C31="",0,IF(C31="F",0,Årsarbetsschema!$J33))) -> 0 | O31: =Årsarbetsschema!Y33 -> 7
B32: =B31+1 -> 2027-03-01 | I32: 0 | J32: + | K32: 0 | N32: =IF(E32>0,E32-D32-F32-H32,IF(C32="",0,IF(C32="F",0,Årsarbetsschema!$D$40))) -> 0 | O32: =Årsarbetsschema!Y34 -> 0
B33: =B32+1 -> 2027-03-02 | F33: 00:30:00 | G33: 07:00:00 | I33: =IF(N33<0,-N33,N33) -> 0 | J33: =IF(#REF!>=0,"+","-") ->  | N33: 0 | O33: =WEEKDAY(B33,2) -> 2
B34: =B33+1 -> 2027-03-03 | F34: 00:30:00 | G34: 07:00:00 | I34: =IF(N34<0,-N34,N34) -> 0 | J34: =IF(#REF!>=0,"+","-") ->  | N34: 0 | O34: =WEEKDAY(B34,2) -> 3
H35: Månad | I35: =IF(N35<0,-N35,N35) -> 0 | J35: + | K35: =SUM(K4:K32) -> 0 | N35: =SUM(N4:N31) -> 0
H36: Totalt | I36: =IF(N36<0,-N36,N36) -> 0 | J36: + | K36: =Jan!K36+Feb!K35 -> 0 | N36: =N35+N3 -> 0
B38: =IF(Uppgifter!$C$6="","",Uppgifter!$C$6) -> 

Sheet Mars
B1: =PROPER(TEXT(B4,"MMMM ÅÅÅÅ")) -> Mars 2027 | G1: =IF(Uppgifter!$C$6="","",Uppgifter!$C$6) -> 
N2: Dagsumma | O2: Vdag
B3: Datum | C3: Kod | D3: In | E3: Ut | F3: Lunch | G3: Planerat | H3: Ledighet | I3: Arbetstid | J3: Förtroendetid | L3: Anteckningar | N3: =Feb!N36 -> 0
B4: =DATEVALUE(Uppgifter!D4 & "-03-01") -> 2027-03-01 | I4: =IF(N4<0,-N4,N4) -> 0 | J4: + | K4: 0 | N4: =IF(E4>0,E4-D4-F4-H4,IF(C4="",0,IF(C4="F",0,Årsarbetsschema!$K6))) -> 0 | O4: =Årsarbetsschema!Z6 -> 1 | P4: Sj
B5: =B4+1 -> 2027-03-02 | I5: =IF(N5<0,-N5,N5) -> 0 | J5: + | K5: 0 | N5: =IF(E5>0,E5-D5-F5-H5,IF(C5="",0,IF(C5="F",0,Årsarbetsschema!$K7))) -> 0 | O5: =Årsarbetsschema!Z7 -> 2 | P5: Tj
B6: =B5+1 -> 2027-03-03 | I6: 0 | J6: + | K6: 0 | N6: =IF(E6>0,E6-D6-F6-H6,IF(C6="",0,IF(C6="F",0,Årsarbetsschema!$K8))) -> 0 | O6: =Årsarbetsschema!Z8 -> 3 | P6: VB
B7: 2027-03-04 | I7: 0 | J7: + | K7: 0 | N7: =IF(E7>0,E7-D7-F7-H7,IF(C7="",0,IF(C7="F",0,Årsarbetsschema!$K9))) -> 0 | O7: =Årsarbetsschema!Z9 -> 4 | P7: FL
B8: 2027-03-05 | I8: 0 | J8: + | K8: 0 | N8: =IF(E8>0,E8-D8-F8-H8,IF(C8="",0,IF(C8="F",0,Årsarbetsschema!$K10))) -> 0 | O8: =Årsarbetsschema!Z10 -> 5
B9: 2027-03-06 | I9: 0 | J9: + | K9: 0 | N9: =IF(E9>0,E9-D9-F9-H9,IF(C9="",0,IF(C9="F",0,Årsarbetsschema!$K11))) -> 0 | O9: =Årsarbetsschema!Z11 -> 6
B10: 2027-03-07 | I10: 0 | J10: + | K10: 0 | N10: =IF(E10>0,E10-D10-F10-H10,IF(C10="",0,IF(C10="F",0,Årsarbetsschema!$K12))) -> 0 | O10: =Årsarbetsschema!Z12 -> 7
B11: 2027-03-08 | I11: 0 | J11: + | K11: 0 | N11: =IF(E11>0,E11-D11-F11-H11,IF(C11="",0,IF(C11="F",0,Årsarbetsschema!$K13))) -> 0 | O11: =Årsarbetsschema!Z13 -> 1
B12: 2027-03-09 | I12: 0 | J12: + | K12: 0 | N12: =IF(E12>0,E12-D12-F12-H12,IF(C12="",0,IF(C12="F",0,Årsarbetsschema!$K14))) -> 0 | O12: =Årsarbetsschema!Z14 -> 2
B13: 2027-03-10 | I13: 0 | J13: + | K13: 0 | N13: =IF(E13>0,E13-D13-F13-H13,IF(C13="",0,IF(C13="F",0,Årsarbetsschema!$K15))) -> 0 | O13: =Årsarbetsschema!Z15 -> 3
B14: 2027-03-11 | I14: 0 | J14: + | K14: 0 | N14: =IF(E14>0,E14-D14-F14-H14,IF(C14="",0,IF(C14="F",0,Årsarbetsschema!$K16))) -> 0 | O14: =Årsarbetsschema!Z16 -> 4
B15: 2027-03-12 | I15: 0 | J15: + | K15: 0 | N15: =IF(E15>0,E15-D15-F15-H15,IF(C15="",0,IF(C15="F",0,Årsarbetsschema!$K17))) -> 0 | O15: =Årsarbetsschema!Z17 -> 5
B16: 2027-03-13 | I16: 0 | J16: + | K16: 0 | N16: =IF(E16>0,E16-D16-F16-H16,IF(C16="",0,IF(C16="F",0,Årsarbetsschema!$K18))) -> 0 | O16: =Årsarbetsschema!Z18 -> 6
B17: 2027-03-14 | I17: 0 | J17: + | K17: 0 | N17: =IF(E17>0,E17-D17-F17-H17,IF(C17="",0,IF(C17="F",0,Årsarbetsschema!$K19))) -> 0 | O17: =Årsarbetsschema!Z19 -> 7
B18: 2027-03-15 | I18: 0 | J18: + | K18: 0 | N18: =IF(E18>0,E18-D18-F18-H18,IF(C18="",0,IF(C18="F",0,Årsarbetsschema!$K20))) -> 0 | O18: =Årsarbetsschema!Z20 -> 1
B19: 2027-03-16 | I19: 0 | J19: + | K19: 0 | N19: =IF(E19>0,E19-D19-F19-H19,IF(C19="",0,IF(C19="F",0,Årsarbetsschema!$K21))) -> 0 | O19: =Årsarbetsschema!Z21 -> 2
B20: 2027-03-17 | I20: 0 | J20: + | K20: 0 | N20: =IF(E20>0,E20-D20-F20-H20,IF(C20="",0,IF(C20="F",0,Årsarbetsschema!$K22))) -> 0 | O20: =Årsarbetsschema!Z22 -> 3
B21: 2027-03-18 | I21: 0 | J21: + | K21: 0 | N21: =IF(E21>0,E21-D21-F21-H21,IF(C21="",0,IF(C21="F",0,Årsarbetsschema!$K23))) -> 0 | O21: =Årsarbetsschema!Z23 -> 4
B22: 2027-03-19 | I22: 0 | J22: + | K22: 0 | N22: =IF(E22>0,E22-D22-F22-H22,IF(C22="",0,IF(C22="F",0,Årsarbetsschema!$K24))) -> 0 | O22: =Årsarbetsschema!Z24 -> 5
B23: 2027-03-20 | I23: 0 | J23: + | K23: 0 | N23: =IF(E23>0,E23-D23-F23-H23,IF(C23="",0,IF(C23="F",0,Årsarbetsschema!$K25))) -> 0 | O23: =Årsarbetsschema!Z25 -> 6
B24: 2027-03-21 | I24: 0 | J24: + | K24: 0 | N24: =IF(E24>0,E24-D24-F24-H24,IF(C24="",0,IF(C24="F",0,Årsarbetsschema!$K26))) -> 0 | O24: =Årsarbetsschema!Z26 -> 7
B25: 2027-03-22 | I25: 0 | J25: + | K25: 0 | N25: =IF(E25>0,E25-D25-F25-H25,IF(C25="",0,IF(C25="F",0,Årsarbetsschema!$K27))) -> 0 | O25: =Årsarbetsschema!Z27 -> 1
B26: 2027-03-23 | I26: 0 | J26: + | K26: 0 | N26: =IF(E26>0,E26-D26-F26-H26,IF(C26="",0,IF(C26="F",0,Årsarbetsschema!$K28))) -> 0 | O26: =Årsarbetsschema!Z28 -> 2
B27: =B26+1 -> 2027-03-24 | I27: =IF(N27<0,-N27,N27) -> 0 | J27: + | K27: 0 | N27: =IF(E27>0,E27-D27-F27-H27,IF(C27="",0,IF(C27="F",0,Årsarbetsschema!$K29))) -> 0 | O27: =Årsarbetsschema!Z29 -> 3
B28: 2027-03-25 | I28: 0 | J28: + | K28: 0 | N28: =IF(E28>0,E28-D28-F28-H28,IF(C28="",0,IF(C28="F",0,Årsarbetsschema!$K30))) -> 0 | O28: =Årsarbetsschema!Z30 -> 4
B29: 2027-03-26 | I29: 0 | J29: + | K29: 0 | N29: =IF(E29>0,E29-D29-F29-H29,IF(C29="",0,IF(C29="F",0,Årsarbetsschema!$K31))) -> 0 | O29: =Årsarbetsschema!Z31 -> 6
B30: 2027-03-27 | I30: 0 | J30: + | K30: 0 | N30: =IF(E30>0,E30-D30-F30-H30,IF(C30="",0,IF(C30="F",0,Årsarbetsschema!$K32))) -> 0 | O30: =Årsarbetsschema!Z32 -> 6
B31: 2027-03-28 | I31: 0 | J31: + | K31: 0 | N31: =IF(E31>0,E31-D31-F31-H31,IF(C31="",0,IF(C31="F",0,Årsarbetsschema!$K33))) -> 0 | O31: =Årsarbetsschema!Z33 -> 7
B32: 2027-03-29 | I32: 0 | J32: + | K32: 0 | N32: =IF(E32>0,E32-D32-F32-H32,IF(C32="",0,IF(C32="F",0,Årsarbetsschema!$K34))) -> 0 | O32: =Årsarbetsschema!Z34 -> 6
B33: 2027-03-30 | I33: 0 | J33: + | K33: 0 | N33: =IF(E33>0,E33-D33-F33-H33,IF(C33="",0,IF(C33="F",0,Årsarbetsschema!$K35))) -> 0 | O33: =Årsarbetsschema!Z35 -> 6
B34: 2027-03-31 | I34: 0 | J34: + | K34: 0 | N34: =IF(E34>0,E34-D34-F34-H34,IF(C34="",0,IF(C34="F",0,Årsarbetsschema!$K36))) -> 0 | O34: =Årsarbetsschema!Z36 -> 6
H35: Månad | I35: =IF(N35<0,-N35,N35) -> 0 | J35: + | K35: =SUM(K4:K34) -> 0 | N35: =SUM(N4:N34) -> 0
H36: Totalt | I36: 0 | J36: + | K36: =Feb!K36+Mars!K35 -> 0 | N36: =N35+N3 -> 0
B38: =IF(Uppgifter!$C$6="","",Uppgifter!$C$6) -> 

Sheet April
B1: =PROPER(TEXT(B4,"MMMM ÅÅÅÅ")) -> April 2027 | G1: =IF(Uppgifter!$C$6="","",Uppgifter!$C$6) -> 
N2: Dagsumma | O2: Vdag
B3: Datum | C3: Kod | D3: In | E3: Ut | F3: Lunch | G3: Planerat | H3: Ledighet | I3: Arbetstid | J3: Förtroendetid | L3: Anteckningar | N3: =Mars!N36 -> 0
B4: =DATEVALUE(Uppgifter!D4 & "-04-01") -> 2027-04-01 | I4: =IF(N4<0,-N4,N4) -> 0 | J4: + | K4: 0 | N4: =IF(E4>0,E4-D4-F4-H4,IF(C4="",0,IF(C4="F",0,Årsarbetsschema!$L6))) -> 0 | O4: =Årsarbetsschema!AA6 -> 6 | P4: Sj
B5: =B4+1 -> 2027-04-02 | I5: =IF(N5<0,-N5,N5) -> 0 | J5: + | K5: 0 | N5: =IF(E5>0,E5-D5-F5-H5,IF(C5="",0,IF(C5="F",0,Årsarbetsschema!$L7))) -> 0 | O5: =Årsarbetsschema!AA7 -> 6 | P5: Tj
B6: =B5+1 -> 2027-04-03 | I6: 0 | J6: + | K6: 0 | N6: =IF(E6>0,E6-D6-F6-H6,IF(C6="",0,IF(C6="F",0,Årsarbetsschema!$L8))) -> 0 | O6: =Årsarbetsschema!AA8 -> 6 | P6: VB
B7: 2027-04-04 | I7: 0 | J7: + | K7: 0 | N7: =IF(E7>0,E7-D7-F7-H7,IF(C7="",0,IF(C7="F",0,Årsarbetsschema!$L9))) -> 0 | O7: =Årsarbetsschema!AA9 -> 7 | P7: FL
B8: 2027-04-05 | I8: 0 | J8: + | K8: 0 | N8: =IF(E8>0,E8-D8-F8-H8,IF(C8="",0,IF(C8="F",0,Årsarbetsschema!$L10))) -> 0 | O8: =Årsarbetsschema!AA10 -> 1
B9: 2027-04-06 | I9: 0 | J9: + | K9: 0 | N9: =IF(E9>0,E9-D9-F9-H9,IF(C9="",0,IF(C9="F",0,Årsarbetsschema!$L11))) -> 0 | O9: =Årsarbetsschema!AA11 -> 2
B10: 2027-04-07 | I10: 0 | J10: + | K10: 0 | N10: =IF(E10>0,E10-D10-F10-H10,IF(C10="",0,IF(C10="F",0,Årsarbetsschema!$L12))) -> 0 | O10: =Årsarbetsschema!AA12 -> 3
B11: 2027-04-08 | I11: 0 | J11: + | K11: 0 | N11: =IF(E11>0,E11-D11-F11-H11,IF(C11="",0,IF(C11="F",0,Årsarbetsschema!$L13))) -> 0 | O11: =Årsarbetsschema!AA13 -> 4
B12: 2027-04-09 | I12: 0 | J12: + | K12: 0 | N12: =IF(E12>0,E12-D12-F12-H12,IF(C12="",0,IF(C12="F",0,Årsarbetsschema!$L14))) -> 0 | O12: =Årsarbetsschema!AA14 -> 5
B13: 2027-04-10 | I13: 0 | J13: + | K13: 0 | N13: =IF(E13>0,E13-D13-F13-H13,IF(C13="",0,IF(C13="F",0,Årsarbetsschema!$L15))) -> 0 | O13: =Årsarbetsschema!AA15 -> 6
B14: 2027-04-11 | I14: 0 | J14: + | K14: 0 | N14: =IF(E14>0,E14-D14-F14-H14,IF(C14="",0,IF(C14="F",0,Årsarbetsschema!$L16))) -> 0 | O14: =Årsarbetsschema!AA16 -> 7
B15: 2027-04-12 | I15: 0 | J15: + | K15: 0 | N15: =IF(E15>0,E15-D15-F15-H15,IF(C15="",0,IF(C15="F",0,Årsarbetsschema!$L17))) -> 0 | O15: =Årsarbetsschema!AA17 -> 1
B16: 2027-04-13 | I16: 0 | J16: + | K16: 0 | N16: =IF(E16>0,E16-D16-F16-H16,IF(C16="",0,IF(C16="F",0,Årsarbetsschema!$L18))) -> 0 | O16: =Årsarbetsschema!AA18 -> 2
B17: 2027-04-14 | I17: 0 | J17: + | K17: 0 | N17: =IF(E17>0,E17-D17-F17-H17,IF(C17="",0,IF(C17="F",0,Årsarbetsschema!$L19))) -> 0 | O17: =Årsarbetsschema!AA19 -> 3
B18: 2027-04-15 | I18: 0 | J18: + | K18: 0 | N18: =IF(E18>0,E18-D18-F18-H18,IF(C18="",0,IF(C18="F",0,Årsarbetsschema!$L20))) -> 0 | O18: =Årsarbetsschema!AA20 -> 4
B19: 2027-04-16 | I19: 0 | J19: + | K19: 0 | N19: =IF(E19>0,E19-D19-F19-H19,IF(C19="",0,IF(C19="F",0,Årsarbetsschema!$L21))) -> 0 | O19: =Årsarbetsschema!AA21 -> 5
B20: 2027-04-17 | I20: 0 | J20: + | K20: 0 | N20: =IF(E20>0,E20-D20-F20-H20,IF(C20="",0,IF(C20="F",0,Årsarbetsschema!$L22))) -> 0 | O20: =Årsarbetsschema!AA22 -> 6
B21: 2027-04-18 | I21: 0 | J21: + | K21: 0 | N21: =IF(E21>0,E21-D21-F21-H21,IF(C21="",0,IF(C21="F",0,Årsarbetsschema!$L23))) -> 0 | O21: =Årsarbetsschema!AA23 -> 7
B22: 2027-04-19 | I22: 0 | J22: + | K22: 0 | N22: =IF(E22>0,E22-D22-F22-H22,IF(C22="",0,IF(C22="F",0,Årsarbetsschema!$L24))) -> 0 | O22: =Årsarbetsschema!AA24 -> 1
B23: 2027-04-20 | I23: 0 | J23: + | K23: 0 | N23: =IF(E23>0,E23-D23-F23-H23,IF(C23="",0,IF(C23="F",0,Årsarbetsschema!$L25))) -> 0 | O23: =Årsarbetsschema!AA25 -> 2
B24: 2027-04-21 | I24: 0 | J24: + | K24: 0 | N24: =IF(E24>0,E24-D24-F24-H24,IF(C24="",0,IF(C24="F",0,Årsarbetsschema!$L26))) -> 0 | O24: =Årsarbetsschema!AA26 -> 3
B25: 2027-04-22 | I25: 0 | J25: + | K25: 0 | N25: =IF(E25>0,E25-D25-F25-H25,IF(C25="",0,IF(C25="F",0,Årsarbetsschema!$L27))) -> 0 | O25: =Årsarbetsschema!AA27 -> 4
B26: 2027-04-23 | I26: 0 | J26: + | K26: 0 | N26: =IF(E26>0,E26-D26-F26-H26,IF(C26="",0,IF(C26="F",0,Årsarbetsschema!$L28))) -> 0 | O26: =Årsarbetsschema!AA28 -> 5
B27: 2027-04-24 | I27: 0 | J27: + | K27: 0 | N27: =IF(E27>0,E27-D27-F27-H27,IF(C27="",0,IF(C27="F",0,Årsarbetsschema!$L29))) -> 0 | O27: =Årsarbetsschema!AA29 -> 6
B28: 2027-04-25 | I28: 0 | J28: + | K28: 0 | N28: =IF(E28>0,E28-D28-F28-H28,IF(C28="",0,IF(C28="F",0,Årsarbetsschema!$L30))) -> 0 | O28: =Årsarbetsschema!AA30 -> 7
B29: 2027-04-26 | I29: 0 | J29: + | K29: 0 | N29: =IF(E29>0,E29-D29-F29-H29,IF(C29="",0,IF(C29="F",0,Årsarbetsschema!$L31))) -> 0 | O29: =Årsarbetsschema!AA31 -> 1
B30: 2027-04-27 | I30: 0 | J30: + | K30: 0 | N30: =IF(E30>0,E30-D30-F30-H30,IF(C30="",0,IF(C30="F",0,Årsarbetsschema!$L32))) -> 0 | O30: =Årsarbetsschema!AA32 -> 2
B31: 2027-04-28 | I31: 0 | J31: + | K31: 0 | N31: =IF(E31>0,E31-D31-F31-H31,IF(C31="",0,IF(C31="F",0,Årsarbetsschema!$L33))) -> 0 | O31: =Årsarbetsschema!AA33 -> 3
B32: 2027-04-29 | I32: 0 | J32: + | K32: 0 | N32: =IF(E32>0,E32-D32-F32-H32,IF(C32="",0,IF(C32="F",0,Årsarbetsschema!$L34))) -> 0 | O32: =Årsarbetsschema!AA34 -> 4
B33: 2027-04-30 | I33: =IF(N33<0,-N33,N33) -> 0 | J33: + | K33: 0 | N33: =IF(E33>0,E33-D33-F33-H33,IF(C33="",0,IF(C33="F",0,Årsarbetsschema!$L35))) -> 0 | O33: =Årsarbetsschema!AA35 -> 6
B34: 2027-05-01 | F34: 00:30:00 | G34: 07:00:00 | I34: 0 | J34: =IF(#REF!>=0,"+","-") ->  | N34: =IF(E34>0,E34-D34-F34-H34,IF(C34="",0,IF(C34="F",0,Årsarbetsschema!$D$40))) -> 0 | O34: =WEEKDAY(B34,2) -> 6
H35: Månad | I35: =IF(N35<0,-N35,N35) -> 0 | J35: + | K35: =SUM(K4:K34) -> 0 | N35: =SUM(N4:N34) -> 0
H36: Totalt | I36: 0 | J36: + | K36: =Mars!K36+April!K35 -> 0 | N36: =N35+N3 -> 0
B38: =IF(Uppgifter!$C$6="","",Uppgifter!$C$6) -> 

Sheet Maj
B1: =PROPER(TEXT(B4,"MMMM ÅÅÅÅ")) -> Maj 2027 | G1: =IF(Uppgifter!$C$6="","",Uppgifter!$C$6) -> 
N2: Dagsumma | O2: Vdag
B3: Datum | C3: Kod | D3: In | E3: Ut | F3: Lunch | G3: Planerat | H3: Ledighet | I3: Arbetstid | J3: Förtroendetid | L3: Anteckningar | N3: =April!N36 -> 0
B4: =DATEVALUE(Uppgifter!D4 & "-05-01") -> 2027-05-01 | I4: =IF(N4<0,-N4,N4) -> 0 | J4: + | K4: 0 | N4: =IF(E4>0,E4-D4-F4-H4,IF(C4="",0,IF(C4="F",0,Årsarbetsschema!$M6))) -> 0 | O4: =Årsarbetsschema!AB6 -> 6 | P4: Sj
B5: =B4+1 -> 2027-05-02 | I5: =IF(N5<0,-N5,N5) -> 0 | J5: + | K5: 0 | N5: =IF(E5>0,E5-D5-F5-H5,IF(C5="",0,IF(C5="F",0,Årsarbetsschema!$M7))) -> 0 | O5: =Årsarbetsschema!AB7 -> 7 | P5: Tj
B6: =B5+1 -> 2027-05-03 | I6: 0 | J6: + | K6: 0 | N6: =IF(E6>0,E6-D6-F6-H6,IF(C6="",0,IF(C6="F",0,Årsarbetsschema!$M8))) -> 0 | O6: =Årsarbetsschema!AB8 -> 1 | P6: VB
B7: 2027-05-04 | I7: 0 | J7: + | K7: 0 | N7: =IF(E7>0,E7-D7-F7-H7,IF(C7="",0,IF(C7="F",0,Årsarbetsschema!$M9))) -> 0 | O7: =Årsarbetsschema!AB9 -> 2 | P7: FL
B8: 2027-05-05 | I8: 0 | J8: + | K8: 0 | N8: =IF(E8>0,E8-D8-F8-H8,IF(C8="",0,IF(C8="F",0,Årsarbetsschema!$M10))) -> 0 | O8: =Årsarbetsschema!AB10 -> 3
B9: 2027-05-06 | I9: 0 | J9: + | K9: 0 | N9: =IF(E9>0,E9-D9-F9-H9,IF(C9="",0,IF(C9="F",0,Årsarbetsschema!$M11))) -> 0 | O9: =Årsarbetsschema!AB11 -> 6
B10: 2027-05-07 | I10: 0 | J10: + | K10: 0 | N10: =IF(E10>0,E10-D10-F10-H10,IF(C10="",0,IF(C10="F",0,Årsarbetsschema!$M12))) -> 0 | O10: =Årsarbetsschema!AB12 -> 6
B11: 2027-05-08 | I11: 0 | J11: + | K11: 0 | N11: =IF(E11>0,E11-D11-F11-H11,IF(C11="",0,IF(C11="F",0,Årsarbetsschema!$M13))) -> 0 | O11: =Årsarbetsschema!AB13 -> 6
B12: 2027-05-09 | I12: 0 | J12: + | K12: 0 | N12: =IF(E12>0,E12-D12-F12-H12,IF(C12="",0,IF(C12="F",0,Årsarbetsschema!$M14))) -> 0 | O12: =Årsarbetsschema!AB14 -> 7
B13: 2027-05-10 | I13: 0 | J13: + | K13: 0 | N13: =IF(E13>0,E13-D13-F13-H13,IF(C13="",0,IF(C13="F",0,Årsarbetsschema!$M15))) -> 0 | O13: =Årsarbetsschema!AB15 -> 1
B14: 2027-05-11 | I14: 0 | J14: + | K14: 0 | N14: =IF(E14>0,E14-D14-F14-H14,IF(C14="",0,IF(C14="F",0,Årsarbetsschema!$M16))) -> 0 | O14: =Årsarbetsschema!AB16 -> 2
B15: 2027-05-12 | I15: 0 | J15: + | K15: 0 | N15: =IF(E15>0,E15-D15-F15-H15,IF(C15="",0,IF(C15="F",0,Årsarbetsschema!$M17))) -> 0 | O15: =Årsarbetsschema!AB17 -> 3
B16: 2027-05-13 | I16: 0 | J16: + | K16: 0 | N16: =IF(E16>0,E16-D16-F16-H16,IF(C16="",0,IF(C16="F",0,Årsarbetsschema!$M18))) -> 0 | O16: =Årsarbetsschema!AB18 -> 4
B17: 2027-05-14 | I17: 0 | J17: + | K17: 0 | N17: =IF(E17>0,E17-D17-F17-H17,IF(C17="",0,IF(C17="F",0,Årsarbetsschema!$M19))) -> 0 | O17: =Årsarbetsschema!AB19 -> 5
B18: 2027-05-15 | I18: 0 | J18: + | K18: 0 | N18: =IF(E18>0,E18-D18-F18-H18,IF(C18="",0,IF(C18="F",0,Årsarbetsschema!$M20))) -> 0 | O18: =Årsarbetsschema!AB20 -> 6
B19: 2027-05-16 | I19: 0 | J19: + | K19: 0 | N19: =IF(E19>0,E19-D19-F19-H19,IF(C19="",0,IF(C19="F",0,Årsarbetsschema!$M21))) -> 0 | O19: =Årsarbetsschema!AB21 -> 7
B20: 2027-05-17 | I20: 0 | J20: + | K20: 0 | N20: =IF(E20>0,E20-D20-F20-H20,IF(C20="",0,IF(C20="F",0,Årsarbetsschema!$M22))) -> 0 | O20: =Årsarbetsschema!AB22 -> 1
B21: 2027-05-18 | I21: 0 | J21: + | K21: 0 | N21: =IF(E21>0,E21-D21-F21-H21,IF(C21="",0,IF(C21="F",0,Årsarbetsschema!$M23))) -> 0 | O21: =Årsarbetsschema!AB23 -> 2
B22: 2027-05-19 | I22: 0 | J22: + | K22: 0 | N22: =IF(E22>0,E22-D22-F22-H22,IF(C22="",0,IF(C22="F",0,Årsarbetsschema!$M24))) -> 0 | O22: =Årsarbetsschema!AB24 -> 3
B23: 2027-05-20 | I23: 0 | J23: + | K23: 0 | N23: =IF(E23>0,E23-D23-F23-H23,IF(C23="",0,IF(C23="F",0,Årsarbetsschema!$M25))) -> 0 | O23: =Årsarbetsschema!AB25 -> 4
B24: 2027-05-21 | I24: 0 | J24: + | K24: 0 | N24: =IF(E24>0,E24-D24-F24-H24,IF(C24="",0,IF(C24="F",0,Årsarbetsschema!$M26))) -> 0 | O24: =Årsarbetsschema!AB26 -> 5
B25: 2027-05-22 | I25: 0 | J25: + | K25: 0 | N25: =IF(E25>0,E25-D25-F25-H25,IF(C25="",0,IF(C25="F",0,Årsarbetsschema!$M27))) -> 0 | O25: =Årsarbetsschema!AB27 -> 6
B26: 2027-05-23 | I26: 0 | J26: + | K26: 0 | N26: =IF(E26>0,E26-D26-F26-H26,IF(C26="",0,IF(C26="F",0,Årsarbetsschema!$M28))) -> 0 | O26: =Årsarbetsschema!AB28 -> 7
B27: 2027-05-24 | I27: 0 | J27: + | K27: 0 | N27: =IF(E27>0,E27-D27-F27-H27,IF(C27="",0,IF(C27="F",0,Årsarbetsschema!$M29))) -> 0 | O27: =Årsarbetsschema!AB29 -> 1
B28: 2027-05-25 | I28: 0 | J28: + | K28: 0 | N28: =IF(E28>0,E28-D28-F28-H28,IF(C28="",0,IF(C28="F",0,Årsarbetsschema!$M30))) -> 0 | O28: =Årsarbetsschema!AB30 -> 2
B29: 2027-05-26 | I29: 0 | J29: + | K29: 0 | N29: =IF(E29>0,E29-D29-F29-H29,IF(C29="",0,IF(C29="F",0,Årsarbetsschema!$M31))) -> 0 | O29: =Årsarbetsschema!AB31 -> 3
B30: 2027-05-27 | I30: 0 | J30: + | K30: 0 | N30: =IF(E30>0,E30-D30-F30-H30,IF(C30="",0,IF(C30="F",0,Årsarbetsschema!$M32))) -> 0 | O30: =Årsarbetsschema!AB32 -> 4
B31: 2027-05-28 | I31: 0 | J31: + | K31: 0 | N31: =IF(E31>0,E31-D31-F31-H31,IF(C31="",0,IF(C31="F",0,Årsarbetsschema!$M33))) -> 0 | O31: =Årsarbetsschema!AB33 -> 5
B32: 2027-05-29 | I32: 0 | J32: + | K32: 0 | N32: =IF(E32>0,E32-D32-F32-H32,IF(C32="",0,IF(C32="F",0,Årsarbetsschema!$M34))) -> 0 | O32: =Årsarbetsschema!AB34 -> 6
B33: 2027-05-30 | I33: 0 | J33: + | K33: 0 | N33: =IF(E33>0,E33-D33-F33-H33,IF(C33="",0,IF(C33="F",0,Årsarbetsschema!$M35))) -> 0 | O33: =Årsarbetsschema!AB35 -> 7
B34: 2027-05-31 | I34: 0 | J34: + | K34: 0 | N34: =IF(E34>0,E34-D34-F34-H34,IF(C34="",0,IF(C34="F",0,Årsarbetsschema!$M36))) -> 0 | O34: =Årsarbetsschema!AB36 -> 1
H35: Månad | I35: 0 | J35: + | K35: =SUM(K4:K34) -> 0 | N35: =SUM(N4:N34) -> 0
H36: Totalt | I36: 0 | J36: + | K36: =April!K36+Maj!K35 -> 0 | N36: =N35+N3 -> 0
B38: =IF(Uppgifter!$C$6="","",Uppgifter!$C$6) -> 

Sheet Juni
B1: =PROPER(TEXT(B4,"MMMM ÅÅÅÅ")) -> Juni 2027 | G1: =IF(Uppgifter!$C$6="","",Uppgifter!$C$6) -> 
N2: Dagsumma | O2: Vdag
B3: Datum | C3: Kod | D3: In | E3: Ut | F3: Lunch | G3: Planerat | H3: Ledighet | I3: Arbetstid | J3: Förtroendetid | L3: Anteckningar | N3: =Maj!N36 -> 0
B4: =DATEVALUE(Uppgifter!D4 & "-06-01") -> 2027-06-01 | I4: =IF(N4<0,-N4,N4) -> 0 | J4: + | K4: 0 | N4: =IF(E4>0,E4-D4-F4-H4,IF(C4="",0,IF(C4="F",0,Årsarbetsschema!$N6))) -> 0 | O4: =Årsarbetsschema!AC6 -> 2 | P4: Sj
B5: =B4+1 -> 2027-06-02 | I5: =IF(N5<0,-N5,N5) -> 0 | J5: + | K5: 0 | N5: =IF(E5>0,E5-D5-F5-H5,IF(C5="",0,IF(C5="F",0,Årsarbetsschema!$N7))) -> 0 | O5: =Årsarbetsschema!AC7 -> 3 | P5: Tj
B6: =B5+1 -> 2027-06-03 | I6: 0 | J6: + | K6: 0 | N6: =IF(E6>0,E6-D6-F6-H6,IF(C6="",0,IF(C6="F",0,Årsarbetsschema!$N8))) -> 0 | O6: =Årsarbetsschema!AC8 -> 4 | P6: VB
B7: 2027-06-04 | I7: 0 | J7: + | K7: 0 | N7: =IF(E7>0,E7-D7-F7-H7,IF(C7="",0,IF(C7="F",0,Årsarbetsschema!$N9))) -> 0 | O7: =Årsarbetsschema!AC9 -> 5 | P7: FL
B8: 2027-06-05 | I8: 0 | J8: + | K8: 0 | N8: =IF(E8>0,E8-D8-F8-H8,IF(C8="",0,IF(C8="F",0,Årsarbetsschema!$N10))) -> 0 | O8: =Årsarbetsschema!AC10 -> 6
B9: 2027-06-06 | I9: 0 | J9: + | K9: 0 | N9: =IF(E9>0,E9-D9-F9-H9,IF(C9="",0,IF(C9="F",0,Årsarbetsschema!$N11))) -> 0 | O9: =Årsarbetsschema!AC11 -> 7
B10: 2027-06-07 | I10: 0 | J10: + | K10: 0 | N10: =IF(E10>0,E10-D10-F10-H10,IF(C10="",0,IF(C10="F",0,Årsarbetsschema!$N12))) -> 0 | O10: =Årsarbetsschema!AC12 -> 1
B11: 2027-06-08 | I11: 0 | J11: + | K11: 0 | N11: =IF(E11>0,E11-D11-F11-H11,IF(C11="",0,IF(C11="F",0,Årsarbetsschema!$N13))) -> 0 | O11: =Årsarbetsschema!AC13 -> 2
B12: 2027-06-09 | I12: 0 | J12: + | K12: 0 | N12: =IF(E12>0,E12-D12-F12-H12,IF(C12="",0,IF(C12="F",0,Årsarbetsschema!$N14))) -> 0 | O12: =Årsarbetsschema!AC14 -> 3
B13: 2027-06-10 | I13: 0 | J13: + | K13: 0 | N13: =IF(E13>0,E13-D13-F13-H13,IF(C13="",0,IF(C13="F",0,Årsarbetsschema!$N15))) -> 0 | O13: =Årsarbetsschema!AC15 -> 4
B14: 2027-06-11 | I14: 0 | J14: + | K14: 0 | N14: =IF(E14>0,E14-D14-F14-H14,IF(C14="",0,IF(C14="F",0,Årsarbetsschema!$N16))) -> 0 | O14: =Årsarbetsschema!AC16 -> -1
B15: 2027-06-12 | I15: 0 | J15: + | K15: 0 | N15: =IF(E15>0,E15-D15-F15-H15,IF(C15="",0,IF(C15="F",0,Årsarbetsschema!$N17))) -> 0 | O15: =Årsarbetsschema!AC17 -> 6
B16: 2027-06-13 | I16: =IF(N16<0,-N16,N16) -> 0 | J16: + | K16: 0 | N16: =IF(E16>0,E16-D16-F16-H16,IF(C16="",0,IF(C16="F",0,Årsarbetsschema!$N18))) -> 0 | O16: =Årsarbetsschema!AC18 -> 7
B17: 2027-06-14 | I17: 0 | J17: + | K17: 0 | N17: =IF(E17>0,E17-D17-F17-H17,IF(C17="",0,IF(C17="F",0,Årsarbetsschema!$N19))) -> 0 | O17: =Årsarbetsschema!AC19 -> -1
B18: 2027-06-15 | I18: 0 | J18: + | K18: 0 | N18: =IF(E18>0,E18-D18-F18-H18,IF(C18="",0,IF(C18="F",0,Årsarbetsschema!$N20))) -> 0 | O18: =Årsarbetsschema!AC20 -> -1
B19: 2027-06-16 | I19: 0 | J19: + | K19: 0 | N19: =IF(E19>0,E19-D19-F19-H19,IF(C19="",0,IF(C19="F",0,Årsarbetsschema!$N21))) -> 0 | O19: =Årsarbetsschema!AC21 -> -1
B20: 2027-06-17 | I20: 0 | J20: + | K20: 0 | N20: =IF(E20>0,E20-D20-F20-H20,IF(C20="",0,IF(C20="F",0,Årsarbetsschema!$N22))) -> 0 | O20: =Årsarbetsschema!AC22 -> 6
B21: 2027-06-18 | I21: 0 | J21: + | K21: 0 | N21: =IF(E21>0,E21-D21-F21-H21,IF(C21="",0,IF(C21="F",0,Årsarbetsschema!$N23))) -> 0 | O21: =Årsarbetsschema!AC23 -> 6
B22: 2027-06-19 | I22: 0 | J22: + | K22: 0 | N22: =IF(E22>0,E22-D22-F22-H22,IF(C22="",0,IF(C22="F",0,Årsarbetsschema!$N24))) -> 0 | O22: =Årsarbetsschema!AC24 -> 6
B23: 2027-06-20 | I23: 0 | J23: + | K23: 0 | N23: =IF(E23>0,E23-D23-F23-H23,IF(C23="",0,IF(C23="F",0,Årsarbetsschema!$N25))) -> 0 | O23: =Årsarbetsschema!AC25 -> 7
B24: 2027-06-21 | I24: 0 | J24: + | K24: 0 | N24: =IF(E24>0,E24-D24-F24-H24,IF(C24="",0,IF(C24="F",0,Årsarbetsschema!$N26))) -> 0 | O24: =Årsarbetsschema!AC26 -> 6
B25: 2027-06-22 | I25: 0 | J25: + | K25: 0 | N25: =IF(E25>0,E25-D25-F25-H25,IF(C25="",0,IF(C25="F",0,Årsarbetsschema!$N27))) -> 0 | O25: =Årsarbetsschema!AC27 -> 6
B26: 2027-06-23 | I26: 0 | J26: + | K26: 0 | N26: =IF(E26>0,E26-D26-F26-H26,IF(C26="",0,IF(C26="F",0,Årsarbetsschema!$N28))) -> 0 | O26: =Årsarbetsschema!AC28 -> 6
B27: 2027-06-24 | I27: 0 | J27: + | K27: 0 | N27: =IF(E27>0,E27-D27-F27-H27,IF(C27="",0,IF(C27="F",0,Årsarbetsschema!$N29))) -> 0 | O27: =Årsarbetsschema!AC29 -> 6
B28: 2027-06-25 | I28: 0 | J28: + | K28: 0 | N28: =IF(E28>0,E28-D28-F28-H28,IF(C28="",0,IF(C28="F",0,Årsarbetsschema!$N30))) -> 0 | O28: =Årsarbetsschema!AC30 -> 6
B29: 2027-06-26 | I29: 0 | J29: + | K29: 0 | N29: =IF(E29>0,E29-D29-F29-H29,IF(C29="",0,IF(C29="F",0,Årsarbetsschema!$N31))) -> 0 | O29: =Årsarbetsschema!AC31 -> 6
B30: 2027-06-27 | I30: 0 | J30: + | K30: 0 | N30: =IF(E30>0,E30-D30-F30-H30,IF(C30="",0,IF(C30="F",0,Årsarbetsschema!$N32))) -> 0 | O30: =Årsarbetsschema!AC32 -> 6
B31: 2027-06-28 | I31: 0 | J31: + | K31: 0 | N31: =IF(E31>0,E31-D31-F31-H31,IF(C31="",0,IF(C31="F",0,Årsarbetsschema!$N33))) -> 0 | O31: =Årsarbetsschema!AC33 -> 6
B32: 2027-06-29 | I32: 0 | J32: + | K32: 0 | N32: =IF(E32>0,E32-D32-F32-H32,IF(C32="",0,IF(C32="F",0,Årsarbetsschema!$N34))) -> 0 | O32: =Årsarbetsschema!AC34 -> 6
B33: 2027-06-30 | I33: =IF(N33<0,-N33,N33) -> 0 | J33: + | K33: 0 | N33: =IF(E33>0,E33-D33-F33-H33,IF(C33="",0,IF(C33="F",0,Årsarbetsschema!$N35))) -> 0 | O33: =Årsarbetsschema!AC35 -> 6
B34: 2027-07-01 | F34: 00:30:00 | G34: 07:00:00 | I34: 0 | J34: =IF(#REF!>=0,"+","-") ->  | N34: =IF(E34>0,E34-D34-F34-H34,IF(C34="",0,IF(C34="F",0,Årsarbetsschema!$N36))) -> 0 | O34: =WEEKDAY(B34,2) -> 4
H35: Månad | I35: 0 | J35: + | K35: =SUM(K4:K33) -> 0 | N35: =SUM(N4:N34) -> 0
H36: Totalt | I36: 0 | J36: + | K36: =Maj!K36+Juni!K35 -> 0 | N36: =N35+N3 -> 0
B38: =IF(Uppgifter!$C$6="","",Uppgifter!$C$6) -> 
